Workbook

Sheet 申請者リスト
A1: 「埼玉県高校生専門資格等取得表彰申請書」提出者リスト（Ver.5.1）
A3: Ｎｏ | B3: 学校コード | C3: 整理番号 | D3: 学校名 | E3: ふりがな | F3: 生徒氏名 | G3: 学科 | H3: 学年 | I3: 生年月日 | J3: NO. | K3: 種目 | L3: 資格・検定試験等の名称 | M3: 級・合格等 | N3: 主催団体等 | O3: 取得年月日 | P3: ランク | Q3: 得点
A4: 1 | U4: 男
A5: 2 | U5: 女
A6: 3
A7: 4
A8: 5
A9: 6
A10: 7
A11: 8
A12: 9
A13: 10
A14: 11
A15: 12
A16: 13
A17: 14
A18: 15
A19: 16
A20: 17
A21: 18
A22: 19
A23: 20
A24: 21
A25: 22
A26: 23
A27: 24
A28: 25
A29: 26
A30: 27
A31: 28
A32: 29
A33: 30
A34: 31
A35: 32
A36: 33
A37: 34
A38: 35
A39: 36
A40: 37
A41: 38
A42: 39
A43: 40
A44: 41
A45: 42
A46: 43
A47: 44
A48: 45
A49: 46
A50: 47
A51: 48
A52: 49
A53: 50
A54: 51
A55: 52
A56: 53
A57: 54
A58: 55
A59: 56
A60: 57
A61: 58
A62: 59
A63: 60
A64: 61
A65: 62
A66: 63
A67: 64
A68: 65
A69: 66
A70: 67
A71: 68
A72: 69
A73: 70
A74: 71
A75: 72
A76: 73
A77: 74
A78: 75
A79: 76
A80: 77
A81: 78
A82: 79
A83: 80
A84: 81
A85: 82
A86: 83
A87: 84
A88: 85
A89: 86
A90: 87
A91: 88
A92: 89
A93: 90
A94: 91
A95: 92
A96: 93
A97: 94
A98: 95
A99: 96
A100: 97
A101: 98
A102: 99
A103: 100
A104: 101
A105: 102
A106: 103
A107: 104
A108: 105
A109: 106
A110: 107
A111: 108
A112: 109
A113: 110
A114: 111
A115: 112
A116: 113
A117: 114
A118: 115
A119: 116
A120: 117
A121: 118
A122: 119
A123: 120
A124: 121
A125: 122
A126: 123
A127: 124
A128: 125
A129: 126
A130: 127
A131: 128
A132: 129
A133: 130
A134: 131
A135: 132
A136: 133
A137: 134
A138: 135
A139: 136
A140: 137
A141: 138
A142: 139
A143: 140
A144: 141
A145: 142
A146: 143
A147: 144
A148: 145
A149: 146
A150: 147
A151: 148
A152: 149
A153: 150
A154: 151
A155: 152
A156: 153
A157: 154
A158: 155
A159: 156
A160: 157
A161: 158
A162: 159
A163: 160
A164: 161
A165: 162
A166: 163
A167: 164
A168: 165
A169: 166
A170: 167
A171: 168
A172: 169
A173: 170
A174: 171
A175: 172
A176: 173
A177: 174
A178: 175
A179: 176
A180: 177
A181: 178
A182: 179
A183: 180
A184: 181
A185: 182
A186: 183
A187: 184
A188: 185
A189: 186
A190: 187
A191: 188
A192: 189
A193: 190
A194: 191
A195: 192
A196: 193
A197: 194
A198: 195
A199: 196
A200: 197
A201: 198
... 1803 more rows

Sheet 様式２
A1: （様式２）
E2: 第 | F2: 第 号
E3: 令和 年 月 日
A4: 埼 玉 県 知 事
D5: 学 校 名 | E5: 学校
D6: 学校長名
D7: 記入者名
A9: 埼玉県高校生専門資格等取得表彰の推薦について（申請）
A11: 標記の件について、埼玉県高校生専門資格等取得表彰制度実施要項第８条の規定により別添のとおり推薦します。 なお、集計の結果は下記のとおりです。
A15: 記
B17: １ 年 | C17: ２ 年 | D17: ３ 年 | E17: ４ 年 | F17: 合 計
A18: 計 | B18: =COUNTIF(様式３!$B$10:$B$24,"1")+COUNTIF(様式３!$B$40:$B$54,"1")+ COUNTIF(様式３!$B$70:$B$84,"1")+COUNTIF(様式３!$B$100:$B$114,"1")+ COUNTIF(様式３!$B$130:$B$144,"1")+COUNTIF(様式３!$B$160:$B$174,"1")+ COUNTIF(様式３!$B$190:$B$204,"1")+COUNTIF(様式３!$B$220:$B$234,"1")+ COUNTIF(様式３!$B$250:$B$264,"1")+COUNTIF(様式３!$B$280:$B$294,"1")+ COUNTIF(様式３!$B$310:$B$324,"1")+COUNTIF(様式３!$B$340:$B$354,"1")+ COUNTIF(様式３!$B$370:$B$384,"1")+COUNTIF(様式３!$B$400:$B$414,"1")+ COUNTIF(様式３!$B$430:$B$444,"1")+COUNTIF(様式３!$B$460:$B$474,"1") -> 0 | C18: =COUNTIF(様式３!$B$10:$B$24,"2")+COUNTIF(様式３!$B$40:$B$54,"2")+ COUNTIF(様式３!$B$70:$B$84,"2")+COUNTIF(様式３!$B$100:$B$114,"2")+ COUNTIF(様式３!$B$130:$B$144,"2")+COUNTIF(様式３!$B$160:$B$174,"2")+ COUNTIF(様式３!$B$190:$B$204,"2")+COUNTIF(様式３!$B$220:$B$234,"2")+ COUNTIF(様式３!$B$250:$B$264,"2")+COUNTIF(様式３!$B$280:$B$294,"2")+ COUNTIF(様式３!$B$310:$B$324,"2")+COUNTIF(様式３!$B$340:$B$354,"2")+ COUNTIF(様式３!$B$370:$B$384,"2")+COUNTIF(様式３!$B$400:$B$414,"2")+ COUNTIF(様式３!$B$430:$B$444,"2")+COUNTIF(様式３!$B$460:$B$474,"2") -> 0 | D18: =COUNTIF(様式３!$B$10:$B$24,"3")+COUNTIF(様式３!$B$40:$B$54,"3")+ COUNTIF(様式３!$B$70:$B$84,"3")+COUNTIF(様式３!$B$100:$B$114,"3")+ COUNTIF(様式３!$B$130:$B$144,"3")+COUNTIF(様式３!$B$160:$B$174,"3")+ COUNTIF(様式３!$B$190:$B$204,"3")+COUNTIF(様式３!$B$220:$B$234,"3")+ COUNTIF(様式３!$B$250:$B$264,"3")+COUNTIF(様式３!$B$280:$B$294,"3")+ COUNTIF(様式３!$B$310:$B$324,"3")+COUNTIF(様式３!$B$340:$B$354,"3")+ COUNTIF(様式３!$B$370:$B$384,"3")+COUNTIF(様式３!$B$400:$B$414,"3")+ COUNTIF(様式３!$B$430:$B$444,"3")+COUNTIF(様式３!$B$460:$B$474,"3") -> 0 | E18: =COUNTIF(様式３!$B$10:$B$24,"4")+COUNTIF(様式３!$B$40:$B$54,"4")+ COUNTIF(様式３!$B$70:$B$84,"4")+COUNTIF(様式３!$B$100:$B$114,"4")+ COUNTIF(様式３!$B$130:$B$144,"4")+COUNTIF(様式３!$B$160:$B$174,"4")+ COUNTIF(様式３!$B$190:$B$204,"4")+COUNTIF(様式３!$B$220:$B$234,"4")+ COUNTIF(様式３!$B$250:$B$264,"4")+COUNTIF(様式３!$B$280:$B$294,"4")+ COUNTIF(様式３!$B$310:$B$324,"4")+COUNTIF(様式３!$B$340:$B$354,"4")+ COUNTIF(様式３!$B$370:$B$384,"4")+COUNTIF(様式３!$B$400:$B$414,"4")+ COUNTIF(様式３!$B$430:$B$444,"4")+COUNTIF(様式３!$B$460:$B$474,"4") -> 0 | F18: =SUM(B18:E18) -> 0
A19: Ａ ランク | B19: =COUNTIFS(申請者リスト!$H$4:$H$2003,1,申請者リスト!$P$4:$P$2003,"A") -> 0 | C19: =COUNTIFS(申請者リスト!$H$4:$H$2003,2,申請者リスト!$P$4:$P$2003,"A") -> 0 | D19: =COUNTIFS(申請者リスト!$H$4:$H$2003,3,申請者リスト!$P$4:$P$2003,"A") -> 0 | E19: =COUNTIFS(申請者リスト!$H$4:$H$2003,,申請者リスト!$P$4:$P$2003,"A") -> 0 | F19: =SUM(B19:E19) -> 0
A20: Ｂ ランク | B20: =COUNTIFS(申請者リスト!$H$4:$H$2003,1,申請者リスト!$P$4:$P$2003,"B") -> 0 | C20: =COUNTIFS(申請者リスト!$H$4:$H$2003,2,申請者リスト!$P$4:$P$2003,"B") -> 0 | D20: =COUNTIFS(申請者リスト!$H$4:$H$2003,3,申請者リスト!$P$4:$P$2003,"B") -> 0 | E20: =COUNTIFS(申請者リスト!$H$4:$H$2003,,申請者リスト!$P$4:$P$2003,"B") -> 0 | F20: =SUM(B20:E20) -> 0
A21: Ｃ ランク | B21: =COUNTIFS(申請者リスト!$H$4:$H$2003,1,申請者リスト!$P$4:$P$2003,"C") -> 0 | C21: =COUNTIFS(申請者リスト!$H$4:$H$2003,2,申請者リスト!$P$4:$P$2003,"C") -> 0 | D21: =COUNTIFS(申請者リスト!$H$4:$H$2003,3,申請者リスト!$P$4:$P$2003,"C") -> 0 | E21: =COUNTIFS(申請者リスト!$H$4:$H$2003,,申請者リスト!$P$4:$P$2003,"C") -> 0 | F21: =SUM(B21:E21) -> 0
A22: Ｄ ランク | B22: =COUNTIFS(申請者リスト!$H$4:$H$2003,1,申請者リスト!$P$4:$P$2003,"D") -> 0 | C22: =COUNTIFS(申請者リスト!$H$4:$H$2003,2,申請者リスト!$P$4:$P$2003,"D") -> 0 | D22: =COUNTIFS(申請者リスト!$H$4:$H$2003,3,申請者リスト!$P$4:$P$2003,"D") -> 0 | E22: =COUNTIFS(申請者リスト!$H$4:$H$2003,,申請者リスト!$P$4:$P$2003,"D") -> 0 | F22: =SUM(B22:E22) -> 0

Sheet 様式３
A1: （様式３） | K1: ( | M1: 枚中 | N1: 1 | O1: 枚目） | P1: このシートの保護は解除したままにしてください。
A3: 埼玉県高校生専門資格等取得表彰推薦名簿
G5: 学 校 名 | O5: 学校
A7: Ｎｏ | B7: 学 年 | C7: 学 科 | D7: 整理番号 | E7: 生 年 月 日 | J7: 資格・試験等ﾗﾝｸ | N7: 得点合計 | O7: 備 考
J8: A | K8: B | L8: C | M8: D
J9: 6 | K9: 3 | L9: 2 | M9: 1
A10: 1 | E10: =IFERROR(YEAR(VLOOKUP($D10,申請者リスト!$C$4:$Q$2003,7,FALSE)),"") ->  | F10: ・ | G10: =IFERROR(MONTH(VLOOKUP($D10,申請者リスト!$C$4:$Q$2003,7,FALSE)),"") ->  | H10: ・ | I10: =IFERROR(DAY(VLOOKUP($D10,申請者リスト!$C$4:$Q$2003,7,FALSE)),"") ->  | J10: =COUNTIFS(申請者リスト!$C$4:$C$2003,様式３!$D10,申請者リスト!$P$4:$P$2003,J$8) -> 0 | K10: =COUNTIFS(申請者リスト!$C$4:$C$2003,様式３!$D10,申請者リスト!$P$4:$P$2003,K$8) -> 0 | L10: =COUNTIFS(申請者リスト!$C$4:$C$2003,様式３!$D10,申請者リスト!$P$4:$P$2003,L$8) -> 0 | M10: =COUNTIFS(申請者リスト!$C$4:$C$2003,様式３!$D10,申請者リスト!$P$4:$P$2003,M$8) -> 0 | N10: =J10*$J$9+K10*$K$9+L10*$L$9+M10*$M$9 -> 0
A11: =+A10+1 -> 2 | E11: =IFERROR(YEAR(VLOOKUP($D11,申請者リスト!$C$4:$Q$2003,7,FALSE)),"") ->  | F11: ・ | G11: =IFERROR(MONTH(VLOOKUP($D11,申請者リスト!$C$4:$Q$2003,7,FALSE)),"") ->  | H11: ・ | I11: =IFERROR(DAY(VLOOKUP($D11,申請者リスト!$C$4:$Q$2003,7,FALSE)),"") ->  | J11: =COUNTIFS(申請者リスト!$C$4:$C$2003,様式３!$D11,申請者リスト!$P$4:$P$2003,J$8) -> 0 | K11: =COUNTIFS(申請者リスト!$C$4:$C$2003,様式３!$D11,申請者リスト!$P$4:$P$2003,K$8) -> 0 | L11: =COUNTIFS(申請者リスト!$C$4:$C$2003,様式３!$D11,申請者リスト!$P$4:$P$2003,L$8) -> 0 | M11: =COUNTIFS(申請者リスト!$C$4:$C$2003,様式３!$D11,申請者リスト!$P$4:$P$2003,M$8) -> 0 | N11: =J11*$J$9+K11*$K$9+L11*$L$9+M11*$M$9 -> 0
A12: =+A11+1 -> 3 | E12: =IFERROR(YEAR(VLOOKUP($D12,申請者リスト!$C$4:$Q$2003,7,FALSE)),"") ->  | F12: ・ | G12: =IFERROR(MONTH(VLOOKUP($D12,申請者リスト!$C$4:$Q$2003,7,FALSE)),"") ->  | H12: ・ | I12: =IFERROR(DAY(VLOOKUP($D12,申請者リスト!$C$4:$Q$2003,7,FALSE)),"") ->  | J12: =COUNTIFS(申請者リスト!$C$4:$C$2003,様式３!$D12,申請者リスト!$P$4:$P$2003,J$8) -> 0 | K12: =COUNTIFS(申請者リスト!$C$4:$C$2003,様式３!$D12,申請者リスト!$P$4:$P$2003,K$8) -> 0 | L12: =COUNTIFS(申請者リスト!$C$4:$C$2003,様式３!$D12,申請者リスト!$P$4:$P$2003,L$8) -> 0 | M12: =COUNTIFS(申請者リスト!$C$4:$C$2003,様式３!$D12,申請者リスト!$P$4:$P$2003,M$8) -> 0 | N12: 0
A13: 4 | E13: =IFERROR(YEAR(VLOOKUP($D13,申請者リスト!$C$4:$Q$2003,7,FALSE)),"") ->  | F13: ・ | G13: =IFERROR(MONTH(VLOOKUP($D13,申請者リスト!$C$4:$Q$2003,7,FALSE)),"") ->  | H13: ・ | I13: =IFERROR(DAY(VLOOKUP($D13,申請者リスト!$C$4:$Q$2003,7,FALSE)),"") ->  | J13: =COUNTIFS(申請者リスト!$C$4:$C$2003,様式３!$D13,申請者リスト!$P$4:$P$2003,J$8) -> 0 | K13: =COUNTIFS(申請者リスト!$C$4:$C$2003,様式３!$D13,申請者リスト!$P$4:$P$2003,K$8) -> 0 | L13: =COUNTIFS(申請者リスト!$C$4:$C$2003,様式３!$D13,申請者リスト!$P$4:$P$2003,L$8) -> 0 | M13: =COUNTIFS(申請者リスト!$C$4:$C$2003,様式３!$D13,申請者リスト!$P$4:$P$2003,M$8) -> 0 | N13: 0
A14: 5 | E14: =IFERROR(YEAR(VLOOKUP($D14,申請者リスト!$C$4:$Q$2003,7,FALSE)),"") ->  | F14: ・ | G14: =IFERROR(MONTH(VLOOKUP($D14,申請者リスト!$C$4:$Q$2003,7,FALSE)),"") ->  | H14: ・ | I14: =IFERROR(DAY(VLOOKUP($D14,申請者リスト!$C$4:$Q$2003,7,FALSE)),"") ->  | J14: =COUNTIFS(申請者リスト!$C$4:$C$2003,様式３!$D14,申請者リスト!$P$4:$P$2003,J$8) -> 0 | K14: =COUNTIFS(申請者リスト!$C$4:$C$2003,様式３!$D14,申請者リスト!$P$4:$P$2003,K$8) -> 0 | L14: =COUNTIFS(申請者リスト!$C$4:$C$2003,様式３!$D14,申請者リスト!$P$4:$P$2003,L$8) -> 0 | M14: =COUNTIFS(申請者リスト!$C$4:$C$2003,様式３!$D14,申請者リスト!$P$4:$P$2003,M$8) -> 0 | N14: 0
A15: 6 | E15: =IFERROR(YEAR(VLOOKUP($D15,申請者リスト!$C$4:$Q$2003,7,FALSE)),"") ->  | F15: ・ | G15: =IFERROR(MONTH(VLOOKUP($D15,申請者リスト!$C$4:$Q$2003,7,FALSE)),"") ->  | H15: ・ | I15: =IFERROR(DAY(VLOOKUP($D15,申請者リスト!$C$4:$Q$2003,7,FALSE)),"") ->  | J15: =COUNTIFS(申請者リスト!$C$4:$C$2003,様式３!$D15,申請者リスト!$P$4:$P$2003,J$8) -> 0 | K15: =COUNTIFS(申請者リスト!$C$4:$C$2003,様式３!$D15,申請者リスト!$P$4:$P$2003,K$8) -> 0 | L15: =COUNTIFS(申請者リスト!$C$4:$C$2003,様式３!$D15,申請者リスト!$P$4:$P$2003,L$8) -> 0 | M15: =COUNTIFS(申請者リスト!$C$4:$C$2003,様式３!$D15,申請者リスト!$P$4:$P$2003,M$8) -> 0 | N15: 0
A16: 7 | E16: =IFERROR(YEAR(VLOOKUP($D16,申請者リスト!$C$4:$Q$2003,7,FALSE)),"") ->  | F16: ・ | G16: =IFERROR(MONTH(VLOOKUP($D16,申請者リスト!$C$4:$Q$2003,7,FALSE)),"") ->  | H16: ・ | I16: =IFERROR(DAY(VLOOKUP($D16,申請者リスト!$C$4:$Q$2003,7,FALSE)),"") ->  | J16: =COUNTIFS(申請者リスト!$C$4:$C$2003,様式３!$D16,申請者リスト!$P$4:$P$2003,J$8) -> 0 | K16: =COUNTIFS(申請者リスト!$C$4:$C$2003,様式３!$D16,申請者リスト!$P$4:$P$2003,K$8) -> 0 | L16: =COUNTIFS(申請者リスト!$C$4:$C$2003,様式３!$D16,申請者リスト!$P$4:$P$2003,L$8) -> 0 | M16: =COUNTIFS(申請者リスト!$C$4:$C$2003,様式３!$D16,申請者リスト!$P$4:$P$2003,M$8) -> 0 | N16: 0
A17: 8 | E17: =IFERROR(YEAR(VLOOKUP($D17,申請者リスト!$C$4:$Q$2003,7,FALSE)),"") ->  | F17: ・ | G17: =IFERROR(MONTH(VLOOKUP($D17,申請者リスト!$C$4:$Q$2003,7,FALSE)),"") ->  | H17: ・ | I17: =IFERROR(DAY(VLOOKUP($D17,申請者リスト!$C$4:$Q$2003,7,FALSE)),"") ->  | J17: =COUNTIFS(申請者リスト!$C$4:$C$2003,様式３!$D17,申請者リスト!$P$4:$P$2003,J$8) -> 0 | K17: =COUNTIFS(申請者リスト!$C$4:$C$2003,様式３!$D17,申請者リスト!$P$4:$P$2003,K$8) -> 0 | L17: =COUNTIFS(申請者リスト!$C$4:$C$2003,様式３!$D17,申請者リスト!$P$4:$P$2003,L$8) -> 0 | M17: =COUNTIFS(申請者リスト!$C$4:$C$2003,様式３!$D17,申請者リスト!$P$4:$P$2003,M$8) -> 0 | N17: 0
A18: 9 | E18: =IFERROR(YEAR(VLOOKUP($D18,申請者リスト!$C$4:$Q$2003,7,FALSE)),"") ->  | F18: ・ | G18: =IFERROR(MONTH(VLOOKUP($D18,申請者リスト!$C$4:$Q$2003,7,FALSE)),"") ->  | H18: ・ | I18: =IFERROR(DAY(VLOOKUP($D18,申請者リスト!$C$4:$Q$2003,7,FALSE)),"") ->  | J18: =COUNTIFS(申請者リスト!$C$4:$C$2003,様式３!$D18,申請者リスト!$P$4:$P$2003,J$8) -> 0 | K18: =COUNTIFS(申請者リスト!$C$4:$C$2003,様式３!$D18,申請者リスト!$P$4:$P$2003,K$8) -> 0 | L18: =COUNTIFS(申請者リスト!$C$4:$C$2003,様式３!$D18,申請者リスト!$P$4:$P$2003,L$8) -> 0 | M18: =COUNTIFS(申請者リスト!$C$4:$C$2003,様式３!$D18,申請者リスト!$P$4:$P$2003,M$8) -> 0 | N18: 0
A19: 10 | E19: =IFERROR(YEAR(VLOOKUP($D19,申請者リスト!$C$4:$Q$2003,7,FALSE)),"") ->  | F19: ・ | G19: =IFERROR(MONTH(VLOOKUP($D19,申請者リスト!$C$4:$Q$2003,7,FALSE)),"") ->  | H19: ・ | I19: =IFERROR(DAY(VLOOKUP($D19,申請者リスト!$C$4:$Q$2003,7,FALSE)),"") ->  | J19: =COUNTIFS(申請者リスト!$C$4:$C$2003,様式３!$D19,申請者リスト!$P$4:$P$2003,J$8) -> 0 | K19: =COUNTIFS(申請者リスト!$C$4:$C$2003,様式３!$D19,申請者リスト!$P$4:$P$2003,K$8) -> 0 | L19: =COUNTIFS(申請者リスト!$C$4:$C$2003,様式３!$D19,申請者リスト!$P$4:$P$2003,L$8) -> 0 | M19: =COUNTIFS(申請者リスト!$C$4:$C$2003,様式３!$D19,申請者リスト!$P$4:$P$2003,M$8) -> 0 | N19: 0
A20: 11 | E20: =IFERROR(YEAR(VLOOKUP($D20,申請者リスト!$C$4:$Q$2003,7,FALSE)),"") ->  | F20: ・ | G20: =IFERROR(MONTH(VLOOKUP($D20,申請者リスト!$C$4:$Q$2003,7,FALSE)),"") ->  | H20: ・ | I20: =IFERROR(DAY(VLOOKUP($D20,申請者リスト!$C$4:$Q$2003,7,FALSE)),"") ->  | J20: =COUNTIFS(申請者リスト!$C$4:$C$2003,様式３!$D20,申請者リスト!$P$4:$P$2003,J$8) -> 0 | K20: =COUNTIFS(申請者リスト!$C$4:$C$2003,様式３!$D20,申請者リスト!$P$4:$P$2003,K$8) -> 0 | L20: =COUNTIFS(申請者リスト!$C$4:$C$2003,様式３!$D20,申請者リスト!$P$4:$P$2003,L$8) -> 0 | M20: =COUNTIFS(申請者リスト!$C$4:$C$2003,様式３!$D20,申請者リスト!$P$4:$P$2003,M$8) -> 0 | N20: 0
A21: 12 | E21: =IFERROR(YEAR(VLOOKUP($D21,申請者リスト!$C$4:$Q$2003,7,FALSE)),"") ->  | F21: ・ | G21: =IFERROR(MONTH(VLOOKUP($D21,申請者リスト!$C$4:$Q$2003,7,FALSE)),"") ->  | H21: ・ | I21: =IFERROR(DAY(VLOOKUP($D21,申請者リスト!$C$4:$Q$2003,7,FALSE)),"") ->  | J21: =COUNTIFS(申請者リスト!$C$4:$C$2003,様式３!$D21,申請者リスト!$P$4:$P$2003,J$8) -> 0 | K21: =COUNTIFS(申請者リスト!$C$4:$C$2003,様式３!$D21,申請者リスト!$P$4:$P$2003,K$8) -> 0 | L21: =COUNTIFS(申請者リスト!$C$4:$C$2003,様式３!$D21,申請者リスト!$P$4:$P$2003,L$8) -> 0 | M21: =COUNTIFS(申請者リスト!$C$4:$C$2003,様式３!$D21,申請者リスト!$P$4:$P$2003,M$8) -> 0 | N21: 0
A22: 13 | E22: =IFERROR(YEAR(VLOOKUP($D22,申請者リスト!$C$4:$Q$2003,7,FALSE)),"") ->  | F22: ・ | G22: =IFERROR(MONTH(VLOOKUP($D22,申請者リスト!$C$4:$Q$2003,7,FALSE)),"") ->  | H22: ・ | I22: =IFERROR(DAY(VLOOKUP($D22,申請者リスト!$C$4:$Q$2003,7,FALSE)),"") ->  | J22: =COUNTIFS(申請者リスト!$C$4:$C$2003,様式３!$D22,申請者リスト!$P$4:$P$2003,J$8) -> 0 | K22: =COUNTIFS(申請者リスト!$C$4:$C$2003,様式３!$D22,申請者リスト!$P$4:$P$2003,K$8) -> 0 | L22: =COUNTIFS(申請者リスト!$C$4:$C$2003,様式３!$D22,申請者リスト!$P$4:$P$2003,L$8) -> 0 | M22: =COUNTIFS(申請者リスト!$C$4:$C$2003,様式３!$D22,申請者リスト!$P$4:$P$2003,M$8) -> 0 | N22: 0
A23: 14 | E23: =IFERROR(YEAR(VLOOKUP($D23,申請者リスト!$C$4:$Q$2003,7,FALSE)),"") ->  | F23: ・ | G23: =IFERROR(MONTH(VLOOKUP($D23,申請者リスト!$C$4:$Q$2003,7,FALSE)),"") ->  | H23: ・ | I23: =IFERROR(DAY(VLOOKUP($D23,申請者リスト!$C$4:$Q$2003,7,FALSE)),"") ->  | J23: =COUNTIFS(申請者リスト!$C$4:$C$2003,様式３!$D23,申請者リスト!$P$4:$P$2003,J$8) -> 0 | K23: =COUNTIFS(申請者リスト!$C$4:$C$2003,様式３!$D23,申請者リスト!$P$4:$P$2003,K$8) -> 0 | L23: =COUNTIFS(申請者リスト!$C$4:$C$2003,様式３!$D23,申請者リスト!$P$4:$P$2003,L$8) -> 0 | M23: =COUNTIFS(申請者リスト!$C$4:$C$2003,様式３!$D23,申請者リスト!$P$4:$P$2003,M$8) -> 0 | N23: 0
A24: 15 | E24: =IFERROR(YEAR(VLOOKUP($D24,申請者リスト!$C$4:$Q$2003,7,FALSE)),"") ->  | F24: ・ | G24: =IFERROR(MONTH(VLOOKUP($D24,申請者リスト!$C$4:$Q$2003,7,FALSE)),"") ->  | H24: ・ | I24: =IFERROR(DAY(VLOOKUP($D24,申請者リスト!$C$4:$Q$2003,7,FALSE)),"") ->  | J24: =COUNTIFS(申請者リスト!$C$4:$C$2003,様式３!$D24,申請者リスト!$P$4:$P$2003,J$8) -> 0 | K24: =COUNTIFS(申請者リスト!$C$4:$C$2003,様式３!$D24,申請者リスト!$P$4:$P$2003,K$8) -> 0 | L24: =COUNTIFS(申請者リスト!$C$4:$C$2003,様式３!$D24,申請者リスト!$P$4:$P$2003,L$8) -> 0 | M24: =COUNTIFS(申請者リスト!$C$4:$C$2003,様式３!$D24,申請者リスト!$P$4:$P$2003,M$8) -> 0 | N24: 0
A25: ※１ | B25: 学科の欄には、大学科名を記入する。
A26: ※２ | B26: 整理番号は、様式１の整理番号（担当者が付記）と一致させる。
B27: なお、整理番号については、各学校の大学科ごとに１～を割り振ること。
A28: ※３ | B28: 資格・試験等ランクの欄には、取得個数を記入する。
A29: ※４ | B29: 得点合計欄には、得点の合計を記入する。
A31: （様式３） | K31: ( | L31: =$L$1 -> 0 | M31: 枚中 | N31: =+N1+1 -> 2 | O31: 枚目）
A33: 埼玉県高校生専門資格等取得表彰推薦名簿
G35: 学 校 名 | J35: =$J$5 -> 0 | O35: 学校
A37: Ｎｏ | B37: 学 年 | C37: 学 科 | D37: 整理番号 | E37: 生 年 月 日 | J37: 資格・試験等ﾗﾝｸ | N37: 得点合計 | O37: 備 考
J38: A | K38: B | L38: C | M38: D
J39: 6 | K39: 3 | L39: 2 | M39: 1
A40: =+A24+1 -> 16 | E40: =IFERROR(YEAR(VLOOKUP($D40,申請者リスト!$C$4:$Q$2003,7,FALSE)),"") ->  | F40: ・ | G40: =IFERROR(MONTH(VLOOKUP($D40,申請者リスト!$C$4:$Q$2003,7,FALSE)),"") ->  | H40: ・ | I40: =IFERROR(DAY(VLOOKUP($D40,申請者リスト!$C$4:$Q$2003,7,FALSE)),"") ->  | J40: =COUNTIFS(申請者リスト!$C$4:$C$2003,様式３!$D40,申請者リスト!$P$4:$P$2003,J$8) -> 0 | K40: =COUNTIFS(申請者リスト!$C$4:$C$2003,様式３!$D40,申請者リスト!$P$4:$P$2003,K$8) -> 0 | L40: =COUNTIFS(申請者リスト!$C$4:$C$2003,様式３!$D40,申請者リスト!$P$4:$P$2003,L$8) -> 0 | M40: =COUNTIFS(申請者リスト!$C$4:$C$2003,様式３!$D40,申請者リスト!$P$4:$P$2003,M$8) -> 0 | N40: =J40*$J$9+K40*$K$9+L40*$L$9+M40*$M$9 -> 0
A41: =+A40+1 -> 17 | E41: =IFERROR(YEAR(VLOOKUP($D41,申請者リスト!$C$4:$Q$2003,7,FALSE)),"") ->  | F41: ・ | G41: =IFERROR(MONTH(VLOOKUP($D41,申請者リスト!$C$4:$Q$2003,7,FALSE)),"") ->  | H41: ・ | I41: =IFERROR(DAY(VLOOKUP($D41,申請者リスト!$C$4:$Q$2003,7,FALSE)),"") ->  | J41: =COUNTIFS(申請者リスト!$C$4:$C$2003,様式３!$D41,申請者リスト!$P$4:$P$2003,J$8) -> 0 | K41: =COUNTIFS(申請者リスト!$C$4:$C$2003,様式３!$D41,申請者リスト!$P$4:$P$2003,K$8) -> 0 | L41: =COUNTIFS(申請者リスト!$C$4:$C$2003,様式３!$D41,申請者リスト!$P$4:$P$2003,L$8) -> 0 | M41: =COUNTIFS(申請者リスト!$C$4:$C$2003,様式３!$D41,申請者リスト!$P$4:$P$2003,M$8) -> 0 | N41: =J41*$J$9+K41*$K$9+L41*$L$9+M41*$M$9 -> 0
A42: =+A41+1 -> 18 | E42: =IFERROR(YEAR(VLOOKUP($D42,申請者リスト!$C$4:$Q$2003,7,FALSE)),"") ->  | F42: ・ | G42: =IFERROR(MONTH(VLOOKUP($D42,申請者リスト!$C$4:$Q$2003,7,FALSE)),"") ->  | H42: ・ | I42: =IFERROR(DAY(VLOOKUP($D42,申請者リスト!$C$4:$Q$2003,7,FALSE)),"") ->  | J42: =COUNTIFS(申請者リスト!$C$4:$C$2003,様式３!$D42,申請者リスト!$P$4:$P$2003,J$8) -> 0 | K42: =COUNTIFS(申請者リスト!$C$4:$C$2003,様式３!$D42,申請者リスト!$P$4:$P$2003,K$8) -> 0 | L42: =COUNTIFS(申請者リスト!$C$4:$C$2003,様式３!$D42,申請者リスト!$P$4:$P$2003,L$8) -> 0 | M42: =COUNTIFS(申請者リスト!$C$4:$C$2003,様式３!$D42,申請者リスト!$P$4:$P$2003,M$8) -> 0 | N42: 0
A43: 19 | E43: =IFERROR(YEAR(VLOOKUP($D43,申請者リスト!$C$4:$Q$2003,7,FALSE)),"") ->  | F43: ・ | G43: =IFERROR(MONTH(VLOOKUP($D43,申請者リスト!$C$4:$Q$2003,7,FALSE)),"") ->  | H43: ・ | I43: =IFERROR(DAY(VLOOKUP($D43,申請者リスト!$C$4:$Q$2003,7,FALSE)),"") ->  | J43: =COUNTIFS(申請者リスト!$C$4:$C$2003,様式３!$D43,申請者リスト!$P$4:$P$2003,J$8) -> 0 | K43: =COUNTIFS(申請者リスト!$C$4:$C$2003,様式３!$D43,申請者リスト!$P$4:$P$2003,K$8) -> 0 | L43: =COUNTIFS(申請者リスト!$C$4:$C$2003,様式３!$D43,申請者リスト!$P$4:$P$2003,L$8) -> 0 | M43: =COUNTIFS(申請者リスト!$C$4:$C$2003,様式３!$D43,申請者リスト!$P$4:$P$2003,M$8) -> 0 | N43: 0
A44: 20 | E44: =IFERROR(YEAR(VLOOKUP($D44,申請者リスト!$C$4:$Q$2003,7,FALSE)),"") ->  | F44: ・ | G44: =IFERROR(MONTH(VLOOKUP($D44,申請者リスト!$C$4:$Q$2003,7,FALSE)),"") ->  | H44: ・ | I44: =IFERROR(DAY(VLOOKUP($D44,申請者リスト!$C$4:$Q$2003,7,FALSE)),"") ->  | J44: =COUNTIFS(申請者リスト!$C$4:$C$2003,様式３!$D44,申請者リスト!$P$4:$P$2003,J$8) -> 0 | K44: =COUNTIFS(申請者リスト!$C$4:$C$2003,様式３!$D44,申請者リスト!$P$4:$P$2003,K$8) -> 0 | L44: =COUNTIFS(申請者リスト!$C$4:$C$2003,様式３!$D44,申請者リスト!$P$4:$P$2003,L$8) -> 0 | M44: =COUNTIFS(申請者リスト!$C$4:$C$2003,様式３!$D44,申請者リスト!$P$4:$P$2003,M$8) -> 0 | N44: 0
A45: 21 | E45: =IFERROR(YEAR(VLOOKUP($D45,申請者リスト!$C$4:$Q$2003,7,FALSE)),"") ->  | F45: ・ | G45: =IFERROR(MONTH(VLOOKUP($D45,申請者リスト!$C$4:$Q$2003,7,FALSE)),"") ->  | H45: ・ | I45: =IFERROR(DAY(VLOOKUP($D45,申請者リスト!$C$4:$Q$2003,7,FALSE)),"") ->  | J45: =COUNTIFS(申請者リスト!$C$4:$C$2003,様式３!$D45,申請者リスト!$P$4:$P$2003,J$8) -> 0 | K45: =COUNTIFS(申請者リスト!$C$4:$C$2003,様式３!$D45,申請者リスト!$P$4:$P$2003,K$8) -> 0 | L45: =COUNTIFS(申請者リスト!$C$4:$C$2003,様式３!$D45,申請者リスト!$P$4:$P$2003,L$8) -> 0 | M45: =COUNTIFS(申請者リスト!$C$4:$C$2003,様式３!$D45,申請者リスト!$P$4:$P$2003,M$8) -> 0 | N45: 0
A46: 22 | E46: =IFERROR(YEAR(VLOOKUP($D46,申請者リスト!$C$4:$Q$2003,7,FALSE)),"") ->  | F46: ・ | G46: =IFERROR(MONTH(VLOOKUP($D46,申請者リスト!$C$4:$Q$2003,7,FALSE)),"") ->  | H46: ・ | I46: =IFERROR(DAY(VLOOKUP($D46,申請者リスト!$C$4:$Q$2003,7,FALSE)),"") ->  | J46: =COUNTIFS(申請者リスト!$C$4:$C$2003,様式３!$D46,申請者リスト!$P$4:$P$2003,J$8) -> 0 | K46: =COUNTIFS(申請者リスト!$C$4:$C$2003,様式３!$D46,申請者リスト!$P$4:$P$2003,K$8) -> 0 | L46: =COUNTIFS(申請者リスト!$C$4:$C$2003,様式３!$D46,申請者リスト!$P$4:$P$2003,L$8) -> 0 | M46: =COUNTIFS(申請者リスト!$C$4:$C$2003,様式３!$D46,申請者リスト!$P$4:$P$2003,M$8) -> 0 | N46: 0
A47: 23 | E47: =IFERROR(YEAR(VLOOKUP($D47,申請者リスト!$C$4:$Q$2003,7,FALSE)),"") ->  | F47: ・ | G47: =IFERROR(MONTH(VLOOKUP($D47,申請者リスト!$C$4:$Q$2003,7,FALSE)),"") ->  | H47: ・ | I47: =IFERROR(DAY(VLOOKUP($D47,申請者リスト!$C$4:$Q$2003,7,FALSE)),"") ->  | J47: =COUNTIFS(申請者リスト!$C$4:$C$2003,様式３!$D47,申請者リスト!$P$4:$P$2003,J$8) -> 0 | K47: =COUNTIFS(申請者リスト!$C$4:$C$2003,様式３!$D47,申請者リスト!$P$4:$P$2003,K$8) -> 0 | L47: =COUNTIFS(申請者リスト!$C$4:$C$2003,様式３!$D47,申請者リスト!$P$4:$P$2003,L$8) -> 0 | M47: =COUNTIFS(申請者リスト!$C$4:$C$2003,様式３!$D47,申請者リスト!$P$4:$P$2003,M$8) -> 0 | N47: 0
A48: 24 | E48: =IFERROR(YEAR(VLOOKUP($D48,申請者リスト!$C$4:$Q$2003,7,FALSE)),"") ->  | F48: ・ | G48: =IFERROR(MONTH(VLOOKUP($D48,申請者リスト!$C$4:$Q$2003,7,FALSE)),"") ->  | H48: ・ | I48: =IFERROR(DAY(VLOOKUP($D48,申請者リスト!$C$4:$Q$2003,7,FALSE)),"") ->  | J48: =COUNTIFS(申請者リスト!$C$4:$C$2003,様式３!$D48,申請者リスト!$P$4:$P$2003,J$8) -> 0 | K48: =COUNTIFS(申請者リスト!$C$4:$C$2003,様式３!$D48,申請者リスト!$P$4:$P$2003,K$8) -> 0 | L48: =COUNTIFS(申請者リスト!$C$4:$C$2003,様式３!$D48,申請者リスト!$P$4:$P$2003,L$8) -> 0 | M48: =COUNTIFS(申請者リスト!$C$4:$C$2003,様式３!$D48,申請者リスト!$P$4:$P$2003,M$8) -> 0 | N48: 0
A49: 25 | E49: =IFERROR(YEAR(VLOOKUP($D49,申請者リスト!$C$4:$Q$2003,7,FALSE)),"") ->  | F49: ・ | G49: =IFERROR(MONTH(VLOOKUP($D49,申請者リスト!$C$4:$Q$2003,7,FALSE)),"") ->  | H49: ・ | I49: =IFERROR(DAY(VLOOKUP($D49,申請者リスト!$C$4:$Q$2003,7,FALSE)),"") ->  | J49: =COUNTIFS(申請者リスト!$C$4:$C$2003,様式３!$D49,申請者リスト!$P$4:$P$2003,J$8) -> 0 | K49: =COUNTIFS(申請者リスト!$C$4:$C$2003,様式３!$D49,申請者リスト!$P$4:$P$2003,K$8) -> 0 | L49: =COUNTIFS(申請者リスト!$C$4:$C$2003,様式３!$D49,申請者リスト!$P$4:$P$2003,L$8) -> 0 | M49: =COUNTIFS(申請者リスト!$C$4:$C$2003,様式３!$D49,申請者リスト!$P$4:$P$2003,M$8) -> 0 | N49: 0
A50: 26 | E50: =IFERROR(YEAR(VLOOKUP($D50,申請者リスト!$C$4:$Q$2003,7,FALSE)),"") ->  | F50: ・ | G50: =IFERROR(MONTH(VLOOKUP($D50,申請者リスト!$C$4:$Q$2003,7,FALSE)),"") ->  | H50: ・ | I50: =IFERROR(DAY(VLOOKUP($D50,申請者リスト!$C$4:$Q$2003,7,FALSE)),"") ->  | J50: =COUNTIFS(申請者リスト!$C$4:$C$2003,様式３!$D50,申請者リスト!$P$4:$P$2003,J$8) -> 0 | K50: =COUNTIFS(申請者リスト!$C$4:$C$2003,様式３!$D50,申請者リスト!$P$4:$P$2003,K$8) -> 0 | L50: =COUNTIFS(申請者リスト!$C$4:$C$2003,様式３!$D50,申請者リスト!$P$4:$P$2003,L$8) -> 0 | M50: =COUNTIFS(申請者リスト!$C$4:$C$2003,様式３!$D50,申請者リスト!$P$4:$P$2003,M$8) -> 0 | N50: 0
A51: 27 | E51: =IFERROR(YEAR(VLOOKUP($D51,申請者リスト!$C$4:$Q$2003,7,FALSE)),"") ->  | F51: ・ | G51: =IFERROR(MONTH(VLOOKUP($D51,申請者リスト!$C$4:$Q$2003,7,FALSE)),"") ->  | H51: ・ | I51: =IFERROR(DAY(VLOOKUP($D51,申請者リスト!$C$4:$Q$2003,7,FALSE)),"") ->  | J51: =COUNTIFS(申請者リスト!$C$4:$C$2003,様式３!$D51,申請者リスト!$P$4:$P$2003,J$8) -> 0 | K51: =COUNTIFS(申請者リスト!$C$4:$C$2003,様式３!$D51,申請者リスト!$P$4:$P$2003,K$8) -> 0 | L51: =COUNTIFS(申請者リスト!$C$4:$C$2003,様式３!$D51,申請者リスト!$P$4:$P$2003,L$8) -> 0 | M51: =COUNTIFS(申請者リスト!$C$4:$C$2003,様式３!$D51,申請者リスト!$P$4:$P$2003,M$8) -> 0 | N51: 0
A52: 28 | E52: =IFERROR(YEAR(VLOOKUP($D52,申請者リスト!$C$4:$Q$2003,7,FALSE)),"") ->  | F52: ・ | G52: =IFERROR(MONTH(VLOOKUP($D52,申請者リスト!$C$4:$Q$2003,7,FALSE)),"") ->  | H52: ・ | I52: =IFERROR(DAY(VLOOKUP($D52,申請者リスト!$C$4:$Q$2003,7,FALSE)),"") ->  | J52: =COUNTIFS(申請者リスト!$C$4:$C$2003,様式３!$D52,申請者リスト!$P$4:$P$2003,J$8) -> 0 | K52: =COUNTIFS(申請者リスト!$C$4:$C$2003,様式３!$D52,申請者リスト!$P$4:$P$2003,K$8) -> 0 | L52: =COUNTIFS(申請者リスト!$C$4:$C$2003,様式３!$D52,申請者リスト!$P$4:$P$2003,L$8) -> 0 | M52: =COUNTIFS(申請者リスト!$C$4:$C$2003,様式３!$D52,申請者リスト!$P$4:$P$2003,M$8) -> 0 | N52: 0
A53: 29 | E53: =IFERROR(YEAR(VLOOKUP($D53,申請者リスト!$C$4:$Q$2003,7,FALSE)),"") ->  | F53: ・ | G53: =IFERROR(MONTH(VLOOKUP($D53,申請者リスト!$C$4:$Q$2003,7,FALSE)),"") ->  | H53: ・ | I53: =IFERROR(DAY(VLOOKUP($D53,申請者リスト!$C$4:$Q$2003,7,FALSE)),"") ->  | J53: =COUNTIFS(申請者リスト!$C$4:$C$2003,様式３!$D53,申請者リスト!$P$4:$P$2003,J$8) -> 0 | K53: =COUNTIFS(申請者リスト!$C$4:$C$2003,様式３!$D53,申請者リスト!$P$4:$P$2003,K$8) -> 0 | L53: =COUNTIFS(申請者リスト!$C$4:$C$2003,様式３!$D53,申請者リスト!$P$4:$P$2003,L$8) -> 0 | M53: =COUNTIFS(申請者リスト!$C$4:$C$2003,様式３!$D53,申請者リスト!$P$4:$P$2003,M$8) -> 0 | N53: 0
A54: 30 | E54: =IFERROR(YEAR(VLOOKUP($D54,申請者リスト!$C$4:$Q$2003,7,FALSE)),"") ->  | F54: ・ | G54: =IFERROR(MONTH(VLOOKUP($D54,申請者リスト!$C$4:$Q$2003,7,FALSE)),"") ->  | H54: ・ | I54: =IFERROR(DAY(VLOOKUP($D54,申請者リスト!$C$4:$Q$2003,7,FALSE)),"") ->  | J54: =COUNTIFS(申請者リスト!$C$4:$C$2003,様式３!$D54,申請者リスト!$P$4:$P$2003,J$8) -> 0 | K54: =COUNTIFS(申請者リスト!$C$4:$C$2003,様式３!$D54,申請者リスト!$P$4:$P$2003,K$8) -> 0 | L54: =COUNTIFS(申請者リスト!$C$4:$C$2003,様式３!$D54,申請者リスト!$P$4:$P$2003,L$8) -> 0 | M54: =COUNTIFS(申請者リスト!$C$4:$C$2003,様式３!$D54,申請者リスト!$P$4:$P$2003,M$8) -> 0 | N54: 0
A55: ※１ | B55: 学科の欄には、大学科名を記入する。
A56: ※２ | B56: 整理番号は、様式１の整理番号（担当者が付記）と一致させる。
B57: なお、整理番号については、各学校の大学科ごとに１～を割り振ること。
A58: ※３ | B58: 資格・試験等ランクの欄には、取得個数を記入する。
A59: ※４ | B59: 得点合計欄には、得点の合計を記入する。
A61: （様式３） | K61: ( | L61: =$L$1 -> 0 | M61: 枚中 | N61: =+N31+1 -> 3 | O61: 枚目）
A63: 埼玉県高校生専門資格等取得表彰推薦名簿
G65: 学 校 名 | J65: =$J$5 -> 0 | O65: 学校
A67: Ｎｏ | B67: 学 年 | C67: 学 科 | D67: 整理番号 | E67: 生 年 月 日 | J67: 資格・試験等ﾗﾝｸ | N67: 得点合計 | O67: 備 考
J68: A | K68: B | L68: C | M68: D
J69: 6 | K69: 3 | L69: 2 | M69: 1
A70: =+A54+1 -> 31 | E70: =IFERROR(YEAR(VLOOKUP($D70,申請者リスト!$C$4:$Q$2003,7,FALSE)),"") ->  | F70: ・ | G70: =IFERROR(MONTH(VLOOKUP($D70,申請者リスト!$C$4:$Q$2003,7,FALSE)),"") ->  | H70: ・ | I70: =IFERROR(DAY(VLOOKUP($D70,申請者リスト!$C$4:$Q$2003,7,FALSE)),"") ->  | J70: =COUNTIFS(申請者リスト!$C$4:$C$2003,様式３!$D70,申請者リスト!$P$4:$P$2003,J$8) -> 0 | K70: =COUNTIFS(申請者リスト!$C$4:$C$2003,様式３!$D70,申請者リスト!$P$4:$P$2003,K$8) -> 0 | L70: =COUNTIFS(申請者リスト!$C$4:$C$2003,様式３!$D70,申請者リスト!$P$4:$P$2003,L$8) -> 0 | M70: =COUNTIFS(申請者リスト!$C$4:$C$2003,様式３!$D70,申請者リスト!$P$4:$P$2003,M$8) -> 0 | N70: =J70*$J$9+K70*$K$9+L70*$L$9+M70*$M$9 -> 0
A71: =+A70+1 -> 32 | E71: =IFERROR(YEAR(VLOOKUP($D71,申請者リスト!$C$4:$Q$2003,7,FALSE)),"") ->  | F71: ・ | G71: =IFERROR(MONTH(VLOOKUP($D71,申請者リスト!$C$4:$Q$2003,7,FALSE)),"") ->  | H71: ・ | I71: =IFERROR(DAY(VLOOKUP($D71,申請者リスト!$C$4:$Q$2003,7,FALSE)),"") ->  | J71: =COUNTIFS(申請者リスト!$C$4:$C$2003,様式３!$D71,申請者リスト!$P$4:$P$2003,J$8) -> 0 | K71: =COUNTIFS(申請者リスト!$C$4:$C$2003,様式３!$D71,申請者リスト!$P$4:$P$2003,K$8) -> 0 | L71: =COUNTIFS(申請者リスト!$C$4:$C$2003,様式３!$D71,申請者リスト!$P$4:$P$2003,L$8) -> 0 | M71: =COUNTIFS(申請者リスト!$C$4:$C$2003,様式３!$D71,申請者リスト!$P$4:$P$2003,M$8) -> 0 | N71: =J71*$J$9+K71*$K$9+L71*$L$9+M71*$M$9 -> 0
A72: =+A71+1 -> 33 | E72: =IFERROR(YEAR(VLOOKUP($D72,申請者リスト!$C$4:$Q$2003,7,FALSE)),"") ->  | F72: ・ | G72: =IFERROR(MONTH(VLOOKUP($D72,申請者リスト!$C$4:$Q$2003,7,FALSE)),"") ->  | H72: ・ | I72: =IFERROR(DAY(VLOOKUP($D72,申請者リスト!$C$4:$Q$2003,7,FALSE)),"") ->  | J72: =COUNTIFS(申請者リスト!$C$4:$C$2003,様式３!$D72,申請者リスト!$P$4:$P$2003,J$8) -> 0 | K72: =COUNTIFS(申請者リスト!$C$4:$C$2003,様式３!$D72,申請者リスト!$P$4:$P$2003,K$8) -> 0 | L72: =COUNTIFS(申請者リスト!$C$4:$C$2003,様式３!$D72,申請者リスト!$P$4:$P$2003,L$8) -> 0 | M72: =COUNTIFS(申請者リスト!$C$4:$C$2003,様式３!$D72,申請者リスト!$P$4:$P$2003,M$8) -> 0 | N72: 0
A73: 34 | E73: =IFERROR(YEAR(VLOOKUP($D73,申請者リスト!$C$4:$Q$2003,7,FALSE)),"") ->  | F73: ・ | G73: =IFERROR(MONTH(VLOOKUP($D73,申請者リスト!$C$4:$Q$2003,7,FALSE)),"") ->  | H73: ・ | I73: =IFERROR(DAY(VLOOKUP($D73,申請者リスト!$C$4:$Q$2003,7,FALSE)),"") ->  | J73: =COUNTIFS(申請者リスト!$C$4:$C$2003,様式３!$D73,申請者リスト!$P$4:$P$2003,J$8) -> 0 | K73: =COUNTIFS(申請者リスト!$C$4:$C$2003,様式３!$D73,申請者リスト!$P$4:$P$2003,K$8) -> 0 | L73: =COUNTIFS(申請者リスト!$C$4:$C$2003,様式３!$D73,申請者リスト!$P$4:$P$2003,L$8) -> 0 | M73: =COUNTIFS(申請者リスト!$C$4:$C$2003,様式３!$D73,申請者リスト!$P$4:$P$2003,M$8) -> 0 | N73: 0
A74: 35 | E74: =IFERROR(YEAR(VLOOKUP($D74,申請者リスト!$C$4:$Q$2003,7,FALSE)),"") ->  | F74: ・ | G74: =IFERROR(MONTH(VLOOKUP($D74,申請者リスト!$C$4:$Q$2003,7,FALSE)),"") ->  | H74: ・ | I74: =IFERROR(DAY(VLOOKUP($D74,申請者リスト!$C$4:$Q$2003,7,FALSE)),"") ->  | J74: =COUNTIFS(申請者リスト!$C$4:$C$2003,様式３!$D74,申請者リスト!$P$4:$P$2003,J$8) -> 0 | K74: =COUNTIFS(申請者リスト!$C$4:$C$2003,様式３!$D74,申請者リスト!$P$4:$P$2003,K$8) -> 0 | L74: =COUNTIFS(申請者リスト!$C$4:$C$2003,様式３!$D74,申請者リスト!$P$4:$P$2003,L$8) -> 0 | M74: =COUNTIFS(申請者リスト!$C$4:$C$2003,様式３!$D74,申請者リスト!$P$4:$P$2003,M$8) -> 0 | N74: 0
A75: 36 | E75: =IFERROR(YEAR(VLOOKUP($D75,申請者リスト!$C$4:$Q$2003,7,FALSE)),"") ->  | F75: ・ | G75: =IFERROR(MONTH(VLOOKUP($D75,申請者リスト!$C$4:$Q$2003,7,FALSE)),"") ->  | H75: ・ | I75: =IFERROR(DAY(VLOOKUP($D75,申請者リスト!$C$4:$Q$2003,7,FALSE)),"") ->  | J75: =COUNTIFS(申請者リスト!$C$4:$C$2003,様式３!$D75,申請者リスト!$P$4:$P$2003,J$8) -> 0 | K75: =COUNTIFS(申請者リスト!$C$4:$C$2003,様式３!$D75,申請者リスト!$P$4:$P$2003,K$8) -> 0 | L75: =COUNTIFS(申請者リスト!$C$4:$C$2003,様式３!$D75,申請者リスト!$P$4:$P$2003,L$8) -> 0 | M75: =COUNTIFS(申請者リスト!$C$4:$C$2003,様式３!$D75,申請者リスト!$P$4:$P$2003,M$8) -> 0 | N75: 0
A76: 37 | E76: =IFERROR(YEAR(VLOOKUP($D76,申請者リスト!$C$4:$Q$2003,7,FALSE)),"") ->  | F76: ・ | G76: =IFERROR(MONTH(VLOOKUP($D76,申請者リスト!$C$4:$Q$2003,7,FALSE)),"") ->  | H76: ・ | I76: =IFERROR(DAY(VLOOKUP($D76,申請者リスト!$C$4:$Q$2003,7,FALSE)),"") ->  | J76: =COUNTIFS(申請者リスト!$C$4:$C$2003,様式３!$D76,申請者リスト!$P$4:$P$2003,J$8) -> 0 | K76: =COUNTIFS(申請者リスト!$C$4:$C$2003,様式３!$D76,申請者リスト!$P$4:$P$2003,K$8) -> 0 | L76: =COUNTIFS(申請者リスト!$C$4:$C$2003,様式３!$D76,申請者リスト!$P$4:$P$2003,L$8) -> 0 | M76: =COUNTIFS(申請者リスト!$C$4:$C$2003,様式３!$D76,申請者リスト!$P$4:$P$2003,M$8) -> 0 | N76: 0
A77: 38 | E77: =IFERROR(YEAR(VLOOKUP($D77,申請者リスト!$C$4:$Q$2003,7,FALSE)),"") ->  | F77: ・ | G77: =IFERROR(MONTH(VLOOKUP($D77,申請者リスト!$C$4:$Q$2003,7,FALSE)),"") ->  | H77: ・ | I77: =IFERROR(DAY(VLOOKUP($D77,申請者リスト!$C$4:$Q$2003,7,FALSE)),"") ->  | J77: =COUNTIFS(申請者リスト!$C$4:$C$2003,様式３!$D77,申請者リスト!$P$4:$P$2003,J$8) -> 0 | K77: =COUNTIFS(申請者リスト!$C$4:$C$2003,様式３!$D77,申請者リスト!$P$4:$P$2003,K$8) -> 0 | L77: =COUNTIFS(申請者リスト!$C$4:$C$2003,様式３!$D77,申請者リスト!$P$4:$P$2003,L$8) -> 0 | M77: =COUNTIFS(申請者リスト!$C$4:$C$2003,様式３!$D77,申請者リスト!$P$4:$P$2003,M$8) -> 0 | N77: 0
A78: 39 | E78: =IFERROR(YEAR(VLOOKUP($D78,申請者リスト!$C$4:$Q$2003,7,FALSE)),"") ->  | F78: ・ | G78: =IFERROR(MONTH(VLOOKUP($D78,申請者リスト!$C$4:$Q$2003,7,FALSE)),"") ->  | H78: ・ | I78: =IFERROR(DAY(VLOOKUP($D78,申請者リスト!$C$4:$Q$2003,7,FALSE)),"") ->  | J78: =COUNTIFS(申請者リスト!$C$4:$C$2003,様式３!$D78,申請者リスト!$P$4:$P$2003,J$8) -> 0 | K78: =COUNTIFS(申請者リスト!$C$4:$C$2003,様式３!$D78,申請者リスト!$P$4:$P$2003,K$8) -> 0 | L78: =COUNTIFS(申請者リスト!$C$4:$C$2003,様式３!$D78,申請者リスト!$P$4:$P$2003,L$8) -> 0 | M78: =COUNTIFS(申請者リスト!$C$4:$C$2003,様式３!$D78,申請者リスト!$P$4:$P$2003,M$8) -> 0 | N78: 0
A79: 40 | E79: =IFERROR(YEAR(VLOOKUP($D79,申請者リスト!$C$4:$Q$2003,7,FALSE)),"") ->  | F79: ・ | G79: =IFERROR(MONTH(VLOOKUP($D79,申請者リスト!$C$4:$Q$2003,7,FALSE)),"") ->  | H79: ・ | I79: =IFERROR(DAY(VLOOKUP($D79,申請者リスト!$C$4:$Q$2003,7,FALSE)),"") ->  | J79: =COUNTIFS(申請者リスト!$C$4:$C$2003,様式３!$D79,申請者リスト!$P$4:$P$2003,J$8) -> 0 | K79: =COUNTIFS(申請者リスト!$C$4:$C$2003,様式３!$D79,申請者リスト!$P$4:$P$2003,K$8) -> 0 | L79: =COUNTIFS(申請者リスト!$C$4:$C$2003,様式３!$D79,申請者リスト!$P$4:$P$2003,L$8) -> 0 | M79: =COUNTIFS(申請者リスト!$C$4:$C$2003,様式３!$D79,申請者リスト!$P$4:$P$2003,M$8) -> 0 | N79: 0
A80: 41 | E80: =IFERROR(YEAR(VLOOKUP($D80,申請者リスト!$C$4:$Q$2003,7,FALSE)),"") ->  | F80: ・ | G80: =IFERROR(MONTH(VLOOKUP($D80,申請者リスト!$C$4:$Q$2003,7,FALSE)),"") ->  | H80: ・ | I80: =IFERROR(DAY(VLOOKUP($D80,申請者リスト!$C$4:$Q$2003,7,FALSE)),"") ->  | J80: =COUNTIFS(申請者リスト!$C$4:$C$2003,様式３!$D80,申請者リスト!$P$4:$P$2003,J$8) -> 0 | K80: =COUNTIFS(申請者リスト!$C$4:$C$2003,様式３!$D80,申請者リスト!$P$4:$P$2003,K$8) -> 0 | L80: =COUNTIFS(申請者リスト!$C$4:$C$2003,様式３!$D80,申請者リスト!$P$4:$P$2003,L$8) -> 0 | M80: =COUNTIFS(申請者リスト!$C$4:$C$2003,様式３!$D80,申請者リスト!$P$4:$P$2003,M$8) -> 0 | N80: 0
A81: 42 | E81: =IFERROR(YEAR(VLOOKUP($D81,申請者リスト!$C$4:$Q$2003,7,FALSE)),"") ->  | F81: ・ | G81: =IFERROR(MONTH(VLOOKUP($D81,申請者リスト!$C$4:$Q$2003,7,FALSE)),"") ->  | H81: ・ | I81: =IFERROR(DAY(VLOOKUP($D81,申請者リスト!$C$4:$Q$2003,7,FALSE)),"") ->  | J81: =COUNTIFS(申請者リスト!$C$4:$C$2003,様式３!$D81,申請者リスト!$P$4:$P$2003,J$8) -> 0 | K81: =COUNTIFS(申請者リスト!$C$4:$C$2003,様式３!$D81,申請者リスト!$P$4:$P$2003,K$8) -> 0 | L81: =COUNTIFS(申請者リスト!$C$4:$C$2003,様式３!$D81,申請者リスト!$P$4:$P$2003,L$8) -> 0 | M81: =COUNTIFS(申請者リスト!$C$4:$C$2003,様式３!$D81,申請者リスト!$P$4:$P$2003,M$8) -> 0 | N81: 0
A82: 43 | E82: =IFERROR(YEAR(VLOOKUP($D82,申請者リスト!$C$4:$Q$2003,7,FALSE)),"") ->  | F82: ・ | G82: =IFERROR(MONTH(VLOOKUP($D82,申請者リスト!$C$4:$Q$2003,7,FALSE)),"") ->  | H82: ・ | I82: =IFERROR(DAY(VLOOKUP($D82,申請者リスト!$C$4:$Q$2003,7,FALSE)),"") ->  | J82: =COUNTIFS(申請者リスト!$C$4:$C$2003,様式３!$D82,申請者リスト!$P$4:$P$2003,J$8) -> 0 | K82: =COUNTIFS(申請者リスト!$C$4:$C$2003,様式３!$D82,申請者リスト!$P$4:$P$2003,K$8) -> 0 | L82: =COUNTIFS(申請者リスト!$C$4:$C$2003,様式３!$D82,申請者リスト!$P$4:$P$2003,L$8) -> 0 | M82: =COUNTIFS(申請者リスト!$C$4:$C$2003,様式３!$D82,申請者リスト!$P$4:$P$2003,M$8) -> 0 | N82: 0
A83: 44 | E83: =IFERROR(YEAR(VLOOKUP($D83,申請者リスト!$C$4:$Q$2003,7,FALSE)),"") ->  | F83: ・ | G83: =IFERROR(MONTH(VLOOKUP($D83,申請者リスト!$C$4:$Q$2003,7,FALSE)),"") ->  | H83: ・ | I83: =IFERROR(DAY(VLOOKUP($D83,申請者リスト!$C$4:$Q$2003,7,FALSE)),"") ->  | J83: =COUNTIFS(申請者リスト!$C$4:$C$2003,様式３!$D83,申請者リスト!$P$4:$P$2003,J$8) -> 0 | K83: =COUNTIFS(申請者リスト!$C$4:$C$2003,様式３!$D83,申請者リスト!$P$4:$P$2003,K$8) -> 0 | L83: =COUNTIFS(申請者リスト!$C$4:$C$2003,様式３!$D83,申請者リスト!$P$4:$P$2003,L$8) -> 0 | M83: =COUNTIFS(申請者リスト!$C$4:$C$2003,様式３!$D83,申請者リスト!$P$4:$P$2003,M$8) -> 0 | N83: 0
A84: 45 | E84: =IFERROR(YEAR(VLOOKUP($D84,申請者リスト!$C$4:$Q$2003,7,FALSE)),"") ->  | F84: ・ | G84: =IFERROR(MONTH(VLOOKUP($D84,申請者リスト!$C$4:$Q$2003,7,FALSE)),"") ->  | H84: ・ | I84: =IFERROR(DAY(VLOOKUP($D84,申請者リスト!$C$4:$Q$2003,7,FALSE)),"") ->  | J84: =COUNTIFS(申請者リスト!$C$4:$C$2003,様式３!$D84,申請者リスト!$P$4:$P$2003,J$8) -> 0 | K84: =COUNTIFS(申請者リスト!$C$4:$C$2003,様式３!$D84,申請者リスト!$P$4:$P$2003,K$8) -> 0 | L84: =COUNTIFS(申請者リスト!$C$4:$C$2003,様式３!$D84,申請者リスト!$P$4:$P$2003,L$8) -> 0 | M84: =COUNTIFS(申請者リスト!$C$4:$C$2003,様式３!$D84,申請者リスト!$P$4:$P$2003,M$8) -> 0 | N84: 0
A85: ※１ | B85: 学科の欄には、大学科名を記入する。
A86: ※２ | B86: 整理番号は、様式１の整理番号（担当者が付記）と一致させる。
B87: なお、整理番号については、各学校の大学科ごとに１～を割り振ること。
A88: ※３ | B88: 資格・試験等ランクの欄には、取得個数を記入する。
A89: ※４ | B89: 得点合計欄には、得点の合計を記入する。
A91: （様式３） | K91: ( | L91: =$L$1 -> 0 | M91: 枚中 | N91: =+N61+1 -> 4 | O91: 枚目）
A93: 埼玉県高校生専門資格等取得表彰推薦名簿
G95: 学 校 名 | J95: =$J$5 -> 0 | O95: 学校
A97: Ｎｏ | B97: 学 年 | C97: 学 科 | D97: 整理番号 | E97: 生 年 月 日 | J97: 資格・試験等ﾗﾝｸ | N97: 得点合計 | O97: 備 考
J98: A | K98: B | L98: C | M98: D
J99: 6 | K99: 3 | L99: 2 | M99: 1
A100: =+A84+1 -> 46 | E100: =IFERROR(YEAR(VLOOKUP($D100,申請者リスト!$C$4:$Q$2003,7,FALSE)),"") ->  | F100: ・ | G100: =IFERROR(MONTH(VLOOKUP($D100,申請者リスト!$C$4:$Q$2003,7,FALSE)),"") ->  | H100: ・ | I100: =IFERROR(DAY(VLOOKUP($D100,申請者リスト!$C$4:$Q$2003,7,FALSE)),"") ->  | J100: =COUNTIFS(申請者リスト!$C$4:$C$2003,様式３!$D100,申請者リスト!$P$4:$P$2003,J$8) -> 0 | K100: =COUNTIFS(申請者リスト!$C$4:$C$2003,様式３!$D100,申請者リスト!$P$4:$P$2003,K$8) -> 0 | L100: =COUNTIFS(申請者リスト!$C$4:$C$2003,様式３!$D100,申請者リスト!$P$4:$P$2003,L$8) -> 0 | M100: =COUNTIFS(申請者リスト!$C$4:$C$2003,様式３!$D100,申請者リスト!$P$4:$P$2003,M$8) -> 0 | N100: =J100*$J$9+K100*$K$9+L100*$L$9+M100*$M$9 -> 0
A101: =+A100+1 -> 47 | E101: =IFERROR(YEAR(VLOOKUP($D101,申請者リスト!$C$4:$Q$2003,7,FALSE)),"") ->  | F101: ・ | G101: =IFERROR(MONTH(VLOOKUP($D101,申請者リスト!$C$4:$Q$2003,7,FALSE)),"") ->  | H101: ・ | I101: =IFERROR(DAY(VLOOKUP($D101,申請者リスト!$C$4:$Q$2003,7,FALSE)),"") ->  | J101: =COUNTIFS(申請者リスト!$C$4:$C$2003,様式３!$D101,申請者リスト!$P$4:$P$2003,J$8) -> 0 | K101: =COUNTIFS(申請者リスト!$C$4:$C$2003,様式３!$D101,申請者リスト!$P$4:$P$2003,K$8) -> 0 | L101: =COUNTIFS(申請者リスト!$C$4:$C$2003,様式３!$D101,申請者リスト!$P$4:$P$2003,L$8) -> 0 | M101: =COUNTIFS(申請者リスト!$C$4:$C$2003,様式３!$D101,申請者リスト!$P$4:$P$2003,M$8) -> 0 | N101: =J101*$J$9+K101*$K$9+L101*$L$9+M101*$M$9 -> 0
A102: =+A101+1 -> 48 | E102: =IFERROR(YEAR(VLOOKUP($D102,申請者リスト!$C$4:$Q$2003,7,FALSE)),"") ->  | F102: ・ | G102: =IFERROR(MONTH(VLOOKUP($D102,申請者リスト!$C$4:$Q$2003,7,FALSE)),"") ->  | H102: ・ | I102: =IFERROR(DAY(VLOOKUP($D102,申請者リスト!$C$4:$Q$2003,7,FALSE)),"") ->  | J102: =COUNTIFS(申請者リスト!$C$4:$C$2003,様式３!$D102,申請者リスト!$P$4:$P$2003,J$8) -> 0 | K102: =COUNTIFS(申請者リスト!$C$4:$C$2003,様式３!$D102,申請者リスト!$P$4:$P$2003,K$8) -> 0 | L102: =COUNTIFS(申請者リスト!$C$4:$C$2003,様式３!$D102,申請者リスト!$P$4:$P$2003,L$8) -> 0 | M102: =COUNTIFS(申請者リスト!$C$4:$C$2003,様式３!$D102,申請者リスト!$P$4:$P$2003,M$8) -> 0 | N102: 0
A103: 49 | E103: =IFERROR(YEAR(VLOOKUP($D103,申請者リスト!$C$4:$Q$2003,7,FALSE)),"") ->  | F103: ・ | G103: =IFERROR(MONTH(VLOOKUP($D103,申請者リスト!$C$4:$Q$2003,7,FALSE)),"") ->  | H103: ・ | I103: =IFERROR(DAY(VLOOKUP($D103,申請者リスト!$C$4:$Q$2003,7,FALSE)),"") ->  | J103: =COUNTIFS(申請者リスト!$C$4:$C$2003,様式３!$D103,申請者リスト!$P$4:$P$2003,J$8) -> 0 | K103: =COUNTIFS(申請者リスト!$C$4:$C$2003,様式３!$D103,申請者リスト!$P$4:$P$2003,K$8) -> 0 | L103: =COUNTIFS(申請者リスト!$C$4:$C$2003,様式３!$D103,申請者リスト!$P$4:$P$2003,L$8) -> 0 | M103: =COUNTIFS(申請者リスト!$C$4:$C$2003,様式３!$D103,申請者リスト!$P$4:$P$2003,M$8) -> 0 | N103: 0
A104: 50 | E104: =IFERROR(YEAR(VLOOKUP($D104,申請者リスト!$C$4:$Q$2003,7,FALSE)),"") ->  | F104: ・ | G104: =IFERROR(MONTH(VLOOKUP($D104,申請者リスト!$C$4:$Q$2003,7,FALSE)),"") ->  | H104: ・ | I104: =IFERROR(DAY(VLOOKUP($D104,申請者リスト!$C$4:$Q$2003,7,FALSE)),"") ->  | J104: =COUNTIFS(申請者リスト!$C$4:$C$2003,様式３!$D104,申請者リスト!$P$4:$P$2003,J$8) -> 0 | K104: =COUNTIFS(申請者リスト!$C$4:$C$2003,様式３!$D104,申請者リスト!$P$4:$P$2003,K$8) -> 0 | L104: =COUNTIFS(申請者リスト!$C$4:$C$2003,様式３!$D104,申請者リスト!$P$4:$P$2003,L$8) -> 0 | M104: =COUNTIFS(申請者リスト!$C$4:$C$2003,様式３!$D104,申請者リスト!$P$4:$P$2003,M$8) -> 0 | N104: 0
A105: 51 | E105: =IFERROR(YEAR(VLOOKUP($D105,申請者リスト!$C$4:$Q$2003,7,FALSE)),"") ->  | F105: ・ | G105: =IFERROR(MONTH(VLOOKUP($D105,申請者リスト!$C$4:$Q$2003,7,FALSE)),"") ->  | H105: ・ | I105: =IFERROR(DAY(VLOOKUP($D105,申請者リスト!$C$4:$Q$2003,7,FALSE)),"") ->  | J105: =COUNTIFS(申請者リスト!$C$4:$C$2003,様式３!$D105,申請者リスト!$P$4:$P$2003,J$8) -> 0 | K105: =COUNTIFS(申請者リスト!$C$4:$C$2003,様式３!$D105,申請者リスト!$P$4:$P$2003,K$8) -> 0 | L105: =COUNTIFS(申請者リスト!$C$4:$C$2003,様式３!$D105,申請者リスト!$P$4:$P$2003,L$8) -> 0 | M105: =COUNTIFS(申請者リスト!$C$4:$C$2003,様式３!$D105,申請者リスト!$P$4:$P$2003,M$8) -> 0 | N105: 0
A106: 52 | E106: =IFERROR(YEAR(VLOOKUP($D106,申請者リスト!$C$4:$Q$2003,7,FALSE)),"") ->  | F106: ・ | G106: =IFERROR(MONTH(VLOOKUP($D106,申請者リスト!$C$4:$Q$2003,7,FALSE)),"") ->  | H106: ・ | I106: =IFERROR(DAY(VLOOKUP($D106,申請者リスト!$C$4:$Q$2003,7,FALSE)),"") ->  | J106: =COUNTIFS(申請者リスト!$C$4:$C$2003,様式３!$D106,申請者リスト!$P$4:$P$2003,J$8) -> 0 | K106: =COUNTIFS(申請者リスト!$C$4:$C$2003,様式３!$D106,申請者リスト!$P$4:$P$2003,K$8) -> 0 | L106: =COUNTIFS(申請者リスト!$C$4:$C$2003,様式３!$D106,申請者リスト!$P$4:$P$2003,L$8) -> 0 | M106: =COUNTIFS(申請者リスト!$C$4:$C$2003,様式３!$D106,申請者リスト!$P$4:$P$2003,M$8) -> 0 | N106: 0
A107: 53 | E107: =IFERROR(YEAR(VLOOKUP($D107,申請者リスト!$C$4:$Q$2003,7,FALSE)),"") ->  | F107: ・ | G107: =IFERROR(MONTH(VLOOKUP($D107,申請者リスト!$C$4:$Q$2003,7,FALSE)),"") ->  | H107: ・ | I107: =IFERROR(DAY(VLOOKUP($D107,申請者リスト!$C$4:$Q$2003,7,FALSE)),"") ->  | J107: =COUNTIFS(申請者リスト!$C$4:$C$2003,様式３!$D107,申請者リスト!$P$4:$P$2003,J$8) -> 0 | K107: =COUNTIFS(申請者リスト!$C$4:$C$2003,様式３!$D107,申請者リスト!$P$4:$P$2003,K$8) -> 0 | L107: =COUNTIFS(申請者リスト!$C$4:$C$2003,様式３!$D107,申請者リスト!$P$4:$P$2003,L$8) -> 0 | M107: =COUNTIFS(申請者リスト!$C$4:$C$2003,様式３!$D107,申請者リスト!$P$4:$P$2003,M$8) -> 0 | N107: 0
A108: 54 | E108: =IFERROR(YEAR(VLOOKUP($D108,申請者リスト!$C$4:$Q$2003,7,FALSE)),"") ->  | F108: ・ | G108: =IFERROR(MONTH(VLOOKUP($D108,申請者リスト!$C$4:$Q$2003,7,FALSE)),"") ->  | H108: ・ | I108: =IFERROR(DAY(VLOOKUP($D108,申請者リスト!$C$4:$Q$2003,7,FALSE)),"") ->  | J108: =COUNTIFS(申請者リスト!$C$4:$C$2003,様式３!$D108,申請者リスト!$P$4:$P$2003,J$8) -> 0 | K108: =COUNTIFS(申請者リスト!$C$4:$C$2003,様式３!$D108,申請者リスト!$P$4:$P$2003,K$8) -> 0 | L108: =COUNTIFS(申請者リスト!$C$4:$C$2003,様式３!$D108,申請者リスト!$P$4:$P$2003,L$8) -> 0 | M108: =COUNTIFS(申請者リスト!$C$4:$C$2003,様式３!$D108,申請者リスト!$P$4:$P$2003,M$8) -> 0 | N108: 0
A109: 55 | E109: =IFERROR(YEAR(VLOOKUP($D109,申請者リスト!$C$4:$Q$2003,7,FALSE)),"") ->  | F109: ・ | G109: =IFERROR(MONTH(VLOOKUP($D109,申請者リスト!$C$4:$Q$2003,7,FALSE)),"") ->  | H109: ・ | I109: =IFERROR(DAY(VLOOKUP($D109,申請者リスト!$C$4:$Q$2003,7,FALSE)),"") ->  | J109: =COUNTIFS(申請者リスト!$C$4:$C$2003,様式３!$D109,申請者リスト!$P$4:$P$2003,J$8) -> 0 | K109: =COUNTIFS(申請者リスト!$C$4:$C$2003,様式３!$D109,申請者リスト!$P$4:$P$2003,K$8) -> 0 | L109: =COUNTIFS(申請者リスト!$C$4:$C$2003,様式３!$D109,申請者リスト!$P$4:$P$2003,L$8) -> 0 | M109: =COUNTIFS(申請者リスト!$C$4:$C$2003,様式３!$D109,申請者リスト!$P$4:$P$2003,M$8) -> 0 | N109: 0
A110: 56 | E110: =IFERROR(YEAR(VLOOKUP($D110,申請者リスト!$C$4:$Q$2003,7,FALSE)),"") ->  | F110: ・ | G110: =IFERROR(MONTH(VLOOKUP($D110,申請者リスト!$C$4:$Q$2003,7,FALSE)),"") ->  | H110: ・ | I110: =IFERROR(DAY(VLOOKUP($D110,申請者リスト!$C$4:$Q$2003,7,FALSE)),"") ->  | J110: =COUNTIFS(申請者リスト!$C$4:$C$2003,様式３!$D110,申請者リスト!$P$4:$P$2003,J$8) -> 0 | K110: =COUNTIFS(申請者リスト!$C$4:$C$2003,様式３!$D110,申請者リスト!$P$4:$P$2003,K$8) -> 0 | L110: =COUNTIFS(申請者リスト!$C$4:$C$2003,様式３!$D110,申請者リスト!$P$4:$P$2003,L$8) -> 0 | M110: =COUNTIFS(申請者リスト!$C$4:$C$2003,様式３!$D110,申請者リスト!$P$4:$P$2003,M$8) -> 0 | N110: 0
A111: 57 | E111: =IFERROR(YEAR(VLOOKUP($D111,申請者リスト!$C$4:$Q$2003,7,FALSE)),"") ->  | F111: ・ | G111: =IFERROR(MONTH(VLOOKUP($D111,申請者リスト!$C$4:$Q$2003,7,FALSE)),"") ->  | H111: ・ | I111: =IFERROR(DAY(VLOOKUP($D111,申請者リスト!$C$4:$Q$2003,7,FALSE)),"") ->  | J111: =COUNTIFS(申請者リスト!$C$4:$C$2003,様式３!$D111,申請者リスト!$P$4:$P$2003,J$8) -> 0 | K111: =COUNTIFS(申請者リスト!$C$4:$C$2003,様式３!$D111,申請者リスト!$P$4:$P$2003,K$8) -> 0 | L111: =COUNTIFS(申請者リスト!$C$4:$C$2003,様式３!$D111,申請者リスト!$P$4:$P$2003,L$8) -> 0 | M111: =COUNTIFS(申請者リスト!$C$4:$C$2003,様式３!$D111,申請者リスト!$P$4:$P$2003,M$8) -> 0 | N111: 0
A112: 58 | E112: =IFERROR(YEAR(VLOOKUP($D112,申請者リスト!$C$4:$Q$2003,7,FALSE)),"") ->  | F112: ・ | G112: =IFERROR(MONTH(VLOOKUP($D112,申請者リスト!$C$4:$Q$2003,7,FALSE)),"") ->  | H112: ・ | I112: =IFERROR(DAY(VLOOKUP($D112,申請者リスト!$C$4:$Q$2003,7,FALSE)),"") ->  | J112: =COUNTIFS(申請者リスト!$C$4:$C$2003,様式３!$D112,申請者リスト!$P$4:$P$2003,J$8) -> 0 | K112: =COUNTIFS(申請者リスト!$C$4:$C$2003,様式３!$D112,申請者リスト!$P$4:$P$2003,K$8) -> 0 | L112: =COUNTIFS(申請者リスト!$C$4:$C$2003,様式３!$D112,申請者リスト!$P$4:$P$2003,L$8) -> 0 | M112: =COUNTIFS(申請者リスト!$C$4:$C$2003,様式３!$D112,申請者リスト!$P$4:$P$2003,M$8) -> 0 | N112: 0
A113: 59 | E113: =IFERROR(YEAR(VLOOKUP($D113,申請者リスト!$C$4:$Q$2003,7,FALSE)),"") ->  | F113: ・ | G113: =IFERROR(MONTH(VLOOKUP($D113,申請者リスト!$C$4:$Q$2003,7,FALSE)),"") ->  | H113: ・ | I113: =IFERROR(DAY(VLOOKUP($D113,申請者リスト!$C$4:$Q$2003,7,FALSE)),"") ->  | J113: =COUNTIFS(申請者リスト!$C$4:$C$2003,様式３!$D113,申請者リスト!$P$4:$P$2003,J$8) -> 0 | K113: =COUNTIFS(申請者リスト!$C$4:$C$2003,様式３!$D113,申請者リスト!$P$4:$P$2003,K$8) -> 0 | L113: =COUNTIFS(申請者リスト!$C$4:$C$2003,様式３!$D113,申請者リスト!$P$4:$P$2003,L$8) -> 0 | M113: =COUNTIFS(申請者リスト!$C$4:$C$2003,様式３!$D113,申請者リスト!$P$4:$P$2003,M$8) -> 0 | N113: 0
A114: 60 | E114: =IFERROR(YEAR(VLOOKUP($D114,申請者リスト!$C$4:$Q$2003,7,FALSE)),"") ->  | F114: ・ | G114: =IFERROR(MONTH(VLOOKUP($D114,申請者リスト!$C$4:$Q$2003,7,FALSE)),"") ->  | H114: ・ | I114: =IFERROR(DAY(VLOOKUP($D114,申請者リスト!$C$4:$Q$2003,7,FALSE)),"") ->  | J114: =COUNTIFS(申請者リスト!$C$4:$C$2003,様式３!$D114,申請者リスト!$P$4:$P$2003,J$8) -> 0 | K114: =COUNTIFS(申請者リスト!$C$4:$C$2003,様式３!$D114,申請者リスト!$P$4:$P$2003,K$8) -> 0 | L114: =COUNTIFS(申請者リスト!$C$4:$C$2003,様式３!$D114,申請者リスト!$P$4:$P$2003,L$8) -> 0 | M114: =COUNTIFS(申請者リスト!$C$4:$C$2003,様式３!$D114,申請者リスト!$P$4:$P$2003,M$8) -> 0 | N114: 0
A115: ※１ | B115: 学科の欄には、大学科名を記入する。
A116: ※２ | B116: 整理番号は、様式１の整理番号（担当者が付記）と一致させる。
B117: なお、整理番号については、各学校の大学科ごとに１～を割り振ること。
A118: ※３ | B118: 資格・試験等ランクの欄には、取得個数を記入する。
A119: ※４ | B119: 得点合計欄には、得点の合計を記入する。
A121: （様式３） | K121: ( | L121: =$L$1 -> 0 | M121: 枚中 | N121: =+N91+1 -> 5 | O121: 枚目）
A123: 埼玉県高校生専門資格等取得表彰推薦名簿
G125: 学 校 名 | J125: =$J$5 -> 0 | O125: 学校
A127: Ｎｏ | B127: 学 年 | C127: 学 科 | D127: 整理番号 | E127: 生 年 月 日 | J127: 資格・試験等ﾗﾝｸ | N127: 得点合計 | O127: 備 考
J128: A | K128: B | L128: C | M128: D
J129: 6 | K129: 3 | L129: 2 | M129: 1
A130: =+A114+1 -> 61 | E130: =IFERROR(YEAR(VLOOKUP($D130,申請者リスト!$C$4:$Q$2003,7,FALSE)),"") ->  | F130: ・ | G130: =IFERROR(MONTH(VLOOKUP($D130,申請者リスト!$C$4:$Q$2003,7,FALSE)),"") ->  | H130: ・ | I130: =IFERROR(DAY(VLOOKUP($D130,申請者リスト!$C$4:$Q$2003,7,FALSE)),"") ->  | J130: =COUNTIFS(申請者リスト!$C$4:$C$2003,様式３!$D130,申請者リスト!$P$4:$P$2003,J$8) -> 0 | K130: =COUNTIFS(申請者リスト!$C$4:$C$2003,様式３!$D130,申請者リスト!$P$4:$P$2003,K$8) -> 0 | L130: =COUNTIFS(申請者リスト!$C$4:$C$2003,様式３!$D130,申請者リスト!$P$4:$P$2003,L$8) -> 0 | M130: =COUNTIFS(申請者リスト!$C$4:$C$2003,様式３!$D130,申請者リスト!$P$4:$P$2003,M$8) -> 0 | N130: =J130*$J$9+K130*$K$9+L130*$L$9+M130*$M$9 -> 0
A131: =+A130+1 -> 62 | E131: =IFERROR(YEAR(VLOOKUP($D131,申請者リスト!$C$4:$Q$2003,7,FALSE)),"") ->  | F131: ・ | G131: =IFERROR(MONTH(VLOOKUP($D131,申請者リスト!$C$4:$Q$2003,7,FALSE)),"") ->  | H131: ・ | I131: =IFERROR(DAY(VLOOKUP($D131,申請者リスト!$C$4:$Q$2003,7,FALSE)),"") ->  | J131: =COUNTIFS(申請者リスト!$C$4:$C$2003,様式３!$D131,申請者リスト!$P$4:$P$2003,J$8) -> 0 | K131: =COUNTIFS(申請者リスト!$C$4:$C$2003,様式３!$D131,申請者リスト!$P$4:$P$2003,K$8) -> 0 | L131: =COUNTIFS(申請者リスト!$C$4:$C$2003,様式３!$D131,申請者リスト!$P$4:$P$2003,L$8) -> 0 | M131: =COUNTIFS(申請者リスト!$C$4:$C$2003,様式３!$D131,申請者リスト!$P$4:$P$2003,M$8) -> 0 | N131: =J131*$J$9+K131*$K$9+L131*$L$9+M131*$M$9 -> 0
A132: =+A131+1 -> 63 | E132: =IFERROR(YEAR(VLOOKUP($D132,申請者リスト!$C$4:$Q$2003,7,FALSE)),"") ->  | F132: ・ | G132: =IFERROR(MONTH(VLOOKUP($D132,申請者リスト!$C$4:$Q$2003,7,FALSE)),"") ->  | H132: ・ | I132: =IFERROR(DAY(VLOOKUP($D132,申請者リスト!$C$4:$Q$2003,7,FALSE)),"") ->  | J132: =COUNTIFS(申請者リスト!$C$4:$C$2003,様式３!$D132,申請者リスト!$P$4:$P$2003,J$8) -> 0 | K132: =COUNTIFS(申請者リスト!$C$4:$C$2003,様式３!$D132,申請者リスト!$P$4:$P$2003,K$8) -> 0 | L132: =COUNTIFS(申請者リスト!$C$4:$C$2003,様式３!$D132,申請者リスト!$P$4:$P$2003,L$8) -> 0 | M132: =COUNTIFS(申請者リスト!$C$4:$C$2003,様式３!$D132,申請者リスト!$P$4:$P$2003,M$8) -> 0 | N132: 0
A133: 64 | E133: =IFERROR(YEAR(VLOOKUP($D133,申請者リスト!$C$4:$Q$2003,7,FALSE)),"") ->  | F133: ・ | G133: =IFERROR(MONTH(VLOOKUP($D133,申請者リスト!$C$4:$Q$2003,7,FALSE)),"") ->  | H133: ・ | I133: =IFERROR(DAY(VLOOKUP($D133,申請者リスト!$C$4:$Q$2003,7,FALSE)),"") ->  | J133: =COUNTIFS(申請者リスト!$C$4:$C$2003,様式３!$D133,申請者リスト!$P$4:$P$2003,J$8) -> 0 | K133: =COUNTIFS(申請者リスト!$C$4:$C$2003,様式３!$D133,申請者リスト!$P$4:$P$2003,K$8) -> 0 | L133: =COUNTIFS(申請者リスト!$C$4:$C$2003,様式３!$D133,申請者リスト!$P$4:$P$2003,L$8) -> 0 | M133: =COUNTIFS(申請者リスト!$C$4:$C$2003,様式３!$D133,申請者リスト!$P$4:$P$2003,M$8) -> 0 | N133: 0
A134: 65 | E134: =IFERROR(YEAR(VLOOKUP($D134,申請者リスト!$C$4:$Q$2003,7,FALSE)),"") ->  | F134: ・ | G134: =IFERROR(MONTH(VLOOKUP($D134,申請者リスト!$C$4:$Q$2003,7,FALSE)),"") ->  | H134: ・ | I134: =IFERROR(DAY(VLOOKUP($D134,申請者リスト!$C$4:$Q$2003,7,FALSE)),"") ->  | J134: =COUNTIFS(申請者リスト!$C$4:$C$2003,様式３!$D134,申請者リスト!$P$4:$P$2003,J$8) -> 0 | K134: =COUNTIFS(申請者リスト!$C$4:$C$2003,様式３!$D134,申請者リスト!$P$4:$P$2003,K$8) -> 0 | L134: =COUNTIFS(申請者リスト!$C$4:$C$2003,様式３!$D134,申請者リスト!$P$4:$P$2003,L$8) -> 0 | M134: =COUNTIFS(申請者リスト!$C$4:$C$2003,様式３!$D134,申請者リスト!$P$4:$P$2003,M$8) -> 0 | N134: 0
A135: 66 | E135: =IFERROR(YEAR(VLOOKUP($D135,申請者リスト!$C$4:$Q$2003,7,FALSE)),"") ->  | F135: ・ | G135: =IFERROR(MONTH(VLOOKUP($D135,申請者リスト!$C$4:$Q$2003,7,FALSE)),"") ->  | H135: ・ | I135: =IFERROR(DAY(VLOOKUP($D135,申請者リスト!$C$4:$Q$2003,7,FALSE)),"") ->  | J135: =COUNTIFS(申請者リスト!$C$4:$C$2003,様式３!$D135,申請者リスト!$P$4:$P$2003,J$8) -> 0 | K135: =COUNTIFS(申請者リスト!$C$4:$C$2003,様式３!$D135,申請者リスト!$P$4:$P$2003,K$8) -> 0 | L135: =COUNTIFS(申請者リスト!$C$4:$C$2003,様式３!$D135,申請者リスト!$P$4:$P$2003,L$8) -> 0 | M135: =COUNTIFS(申請者リスト!$C$4:$C$2003,様式３!$D135,申請者リスト!$P$4:$P$2003,M$8) -> 0 | N135: 0
A136: 67 | E136: =IFERROR(YEAR(VLOOKUP($D136,申請者リスト!$C$4:$Q$2003,7,FALSE)),"") ->  | F136: ・ | G136: =IFERROR(MONTH(VLOOKUP($D136,申請者リスト!$C$4:$Q$2003,7,FALSE)),"") ->  | H136: ・ | I136: =IFERROR(DAY(VLOOKUP($D136,申請者リスト!$C$4:$Q$2003,7,FALSE)),"") ->  | J136: =COUNTIFS(申請者リスト!$C$4:$C$2003,様式３!$D136,申請者リスト!$P$4:$P$2003,J$8) -> 0 | K136: =COUNTIFS(申請者リスト!$C$4:$C$2003,様式３!$D136,申請者リスト!$P$4:$P$2003,K$8) -> 0 | L136: =COUNTIFS(申請者リスト!$C$4:$C$2003,様式３!$D136,申請者リスト!$P$4:$P$2003,L$8) -> 0 | M136: =COUNTIFS(申請者リスト!$C$4:$C$2003,様式３!$D136,申請者リスト!$P$4:$P$2003,M$8) -> 0 | N136: 0
A137: 68 | E137: =IFERROR(YEAR(VLOOKUP($D137,申請者リスト!$C$4:$Q$2003,7,FALSE)),"") ->  | F137: ・ | G137: =IFERROR(MONTH(VLOOKUP($D137,申請者リスト!$C$4:$Q$2003,7,FALSE)),"") ->  | H137: ・ | I137: =IFERROR(DAY(VLOOKUP($D137,申請者リスト!$C$4:$Q$2003,7,FALSE)),"") ->  | J137: =COUNTIFS(申請者リスト!$C$4:$C$2003,様式３!$D137,申請者リスト!$P$4:$P$2003,J$8) -> 0 | K137: =COUNTIFS(申請者リスト!$C$4:$C$2003,様式３!$D137,申請者リスト!$P$4:$P$2003,K$8) -> 0 | L137: =COUNTIFS(申請者リスト!$C$4:$C$2003,様式３!$D137,申請者リスト!$P$4:$P$2003,L$8) -> 0 | M137: =COUNTIFS(申請者リスト!$C$4:$C$2003,様式３!$D137,申請者リスト!$P$4:$P$2003,M$8) -> 0 | N137: 0
A138: 69 | E138: =IFERROR(YEAR(VLOOKUP($D138,申請者リスト!$C$4:$Q$2003,7,FALSE)),"") ->  | F138: ・ | G138: =IFERROR(MONTH(VLOOKUP($D138,申請者リスト!$C$4:$Q$2003,7,FALSE)),"") ->  | H138: ・ | I138: =IFERROR(DAY(VLOOKUP($D138,申請者リスト!$C$4:$Q$2003,7,FALSE)),"") ->  | J138: =COUNTIFS(申請者リスト!$C$4:$C$2003,様式３!$D138,申請者リスト!$P$4:$P$2003,J$8) -> 0 | K138: =COUNTIFS(申請者リスト!$C$4:$C$2003,様式３!$D138,申請者リスト!$P$4:$P$2003,K$8) -> 0 | L138: =COUNTIFS(申請者リスト!$C$4:$C$2003,様式３!$D138,申請者リスト!$P$4:$P$2003,L$8) -> 0 | M138: =COUNTIFS(申請者リスト!$C$4:$C$2003,様式３!$D138,申請者リスト!$P$4:$P$2003,M$8) -> 0 | N138: 0
A139: 70 | E139: =IFERROR(YEAR(VLOOKUP($D139,申請者リスト!$C$4:$Q$2003,7,FALSE)),"") ->  | F139: ・ | G139: =IFERROR(MONTH(VLOOKUP($D139,申請者リスト!$C$4:$Q$2003,7,FALSE)),"") ->  | H139: ・ | I139: =IFERROR(DAY(VLOOKUP($D139,申請者リスト!$C$4:$Q$2003,7,FALSE)),"") ->  | J139: =COUNTIFS(申請者リスト!$C$4:$C$2003,様式３!$D139,申請者リスト!$P$4:$P$2003,J$8) -> 0 | K139: =COUNTIFS(申請者リスト!$C$4:$C$2003,様式３!$D139,申請者リスト!$P$4:$P$2003,K$8) -> 0 | L139: =COUNTIFS(申請者リスト!$C$4:$C$2003,様式３!$D139,申請者リスト!$P$4:$P$2003,L$8) -> 0 | M139: =COUNTIFS(申請者リスト!$C$4:$C$2003,様式３!$D139,申請者リスト!$P$4:$P$2003,M$8) -> 0 | N139: 0
A140: 71 | E140: =IFERROR(YEAR(VLOOKUP($D140,申請者リスト!$C$4:$Q$2003,7,FALSE)),"") ->  | F140: ・ | G140: =IFERROR(MONTH(VLOOKUP($D140,申請者リスト!$C$4:$Q$2003,7,FALSE)),"") ->  | H140: ・ | I140: =IFERROR(DAY(VLOOKUP($D140,申請者リスト!$C$4:$Q$2003,7,FALSE)),"") ->  | J140: =COUNTIFS(申請者リスト!$C$4:$C$2003,様式３!$D140,申請者リスト!$P$4:$P$2003,J$8) -> 0 | K140: =COUNTIFS(申請者リスト!$C$4:$C$2003,様式３!$D140,申請者リスト!$P$4:$P$2003,K$8) -> 0 | L140: =COUNTIFS(申請者リスト!$C$4:$C$2003,様式３!$D140,申請者リスト!$P$4:$P$2003,L$8) -> 0 | M140: =COUNTIFS(申請者リスト!$C$4:$C$2003,様式３!$D140,申請者リスト!$P$4:$P$2003,M$8) -> 0 | N140: 0
A141: 72 | E141: =IFERROR(YEAR(VLOOKUP($D141,申請者リスト!$C$4:$Q$2003,7,FALSE)),"") ->  | F141: ・ | G141: =IFERROR(MONTH(VLOOKUP($D141,申請者リスト!$C$4:$Q$2003,7,FALSE)),"") ->  | H141: ・ | I141: =IFERROR(DAY(VLOOKUP($D141,申請者リスト!$C$4:$Q$2003,7,FALSE)),"") ->  | J141: =COUNTIFS(申請者リスト!$C$4:$C$2003,様式３!$D141,申請者リスト!$P$4:$P$2003,J$8) -> 0 | K141: =COUNTIFS(申請者リスト!$C$4:$C$2003,様式３!$D141,申請者リスト!$P$4:$P$2003,K$8) -> 0 | L141: =COUNTIFS(申請者リスト!$C$4:$C$2003,様式３!$D141,申請者リスト!$P$4:$P$2003,L$8) -> 0 | M141: =COUNTIFS(申請者リスト!$C$4:$C$2003,様式３!$D141,申請者リスト!$P$4:$P$2003,M$8) -> 0 | N141: 0
A142: 73 | E142: =IFERROR(YEAR(VLOOKUP($D142,申請者リスト!$C$4:$Q$2003,7,FALSE)),"") ->  | F142: ・ | G142: =IFERROR(MONTH(VLOOKUP($D142,申請者リスト!$C$4:$Q$2003,7,FALSE)),"") ->  | H142: ・ | I142: =IFERROR(DAY(VLOOKUP($D142,申請者リスト!$C$4:$Q$2003,7,FALSE)),"") ->  | J142: =COUNTIFS(申請者リスト!$C$4:$C$2003,様式３!$D142,申請者リスト!$P$4:$P$2003,J$8) -> 0 | K142: =COUNTIFS(申請者リスト!$C$4:$C$2003,様式３!$D142,申請者リスト!$P$4:$P$2003,K$8) -> 0 | L142: =COUNTIFS(申請者リスト!$C$4:$C$2003,様式３!$D142,申請者リスト!$P$4:$P$2003,L$8) -> 0 | M142: =COUNTIFS(申請者リスト!$C$4:$C$2003,様式３!$D142,申請者リスト!$P$4:$P$2003,M$8) -> 0 | N142: 0
A143: 74 | E143: =IFERROR(YEAR(VLOOKUP($D143,申請者リスト!$C$4:$Q$2003,7,FALSE)),"") ->  | F143: ・ | G143: =IFERROR(MONTH(VLOOKUP($D143,申請者リスト!$C$4:$Q$2003,7,FALSE)),"") ->  | H143: ・ | I143: =IFERROR(DAY(VLOOKUP($D143,申請者リスト!$C$4:$Q$2003,7,FALSE)),"") ->  | J143: =COUNTIFS(申請者リスト!$C$4:$C$2003,様式３!$D143,申請者リスト!$P$4:$P$2003,J$8) -> 0 | K143: =COUNTIFS(申請者リスト!$C$4:$C$2003,様式３!$D143,申請者リスト!$P$4:$P$2003,K$8) -> 0 | L143: =COUNTIFS(申請者リスト!$C$4:$C$2003,様式３!$D143,申請者リスト!$P$4:$P$2003,L$8) -> 0 | M143: =COUNTIFS(申請者リスト!$C$4:$C$2003,様式３!$D143,申請者リスト!$P$4:$P$2003,M$8) -> 0 | N143: 0
A144: 75 | E144: =IFERROR(YEAR(VLOOKUP($D144,申請者リスト!$C$4:$Q$2003,7,FALSE)),"") ->  | F144: ・ | G144: =IFERROR(MONTH(VLOOKUP($D144,申請者リスト!$C$4:$Q$2003,7,FALSE)),"") ->  | H144: ・ | I144: =IFERROR(DAY(VLOOKUP($D144,申請者リスト!$C$4:$Q$2003,7,FALSE)),"") ->  | J144: =COUNTIFS(申請者リスト!$C$4:$C$2003,様式３!$D144,申請者リスト!$P$4:$P$2003,J$8) -> 0 | K144: =COUNTIFS(申請者リスト!$C$4:$C$2003,様式３!$D144,申請者リスト!$P$4:$P$2003,K$8) -> 0 | L144: =COUNTIFS(申請者リスト!$C$4:$C$2003,様式３!$D144,申請者リスト!$P$4:$P$2003,L$8) -> 0 | M144: =COUNTIFS(申請者リスト!$C$4:$C$2003,様式３!$D144,申請者リスト!$P$4:$P$2003,M$8) -> 0 | N144: 0
A145: ※１ | B145: 学科の欄には、大学科名を記入する。
A146: ※２ | B146: 整理番号は、様式１の整理番号（担当者が付記）と一致させる。
B147: なお、整理番号については、各学校の大学科ごとに１～を割り振ること。
A148: ※３ | B148: 資格・試験等ランクの欄には、取得個数を記入する。
A149: ※４ | B149: 得点合計欄には、得点の合計を記入する。
A151: （様式３） | K151: ( | L151: =$L$1 -> 0 | M151: 枚中 | N151: =+N121+1 -> 6 | O151: 枚目）
A153: 埼玉県高校生専門資格等取得表彰推薦名簿
G155: 学 校 名 | J155: =$J$5 -> 0 | O155: 学校
A157: Ｎｏ | B157: 学 年 | C157: 学 科 | D157: 整理番号 | E157: 生 年 月 日 | J157: 資格・試験等ﾗﾝｸ | N157: 得点合計 | O157: 備 考
J158: A | K158: B | L158: C | M158: D
J159: 6 | K159: 3 | L159: 2 | M159: 1
A160: =+A144+1 -> 76 | E160: =IFERROR(YEAR(VLOOKUP($D160,申請者リスト!$C$4:$Q$2003,7,FALSE)),"") ->  | F160: ・ | G160: =IFERROR(MONTH(VLOOKUP($D160,申請者リスト!$C$4:$Q$2003,7,FALSE)),"") ->  | H160: ・ | I160: =IFERROR(DAY(VLOOKUP($D160,申請者リスト!$C$4:$Q$2003,7,FALSE)),"") ->  | J160: =COUNTIFS(申請者リスト!$C$4:$C$2003,様式３!$D160,申請者リスト!$P$4:$P$2003,J$8) -> 0 | K160: =COUNTIFS(申請者リスト!$C$4:$C$2003,様式３!$D160,申請者リスト!$P$4:$P$2003,K$8) -> 0 | L160: =COUNTIFS(申請者リスト!$C$4:$C$2003,様式３!$D160,申請者リスト!$P$4:$P$2003,L$8) -> 0 | M160: =COUNTIFS(申請者リスト!$C$4:$C$2003,様式３!$D160,申請者リスト!$P$4:$P$2003,M$8) -> 0 | N160: =J160*$J$9+K160*$K$9+L160*$L$9+M160*$M$9 -> 0
A161: =+A160+1 -> 77 | E161: =IFERROR(YEAR(VLOOKUP($D161,申請者リスト!$C$4:$Q$2003,7,FALSE)),"") ->  | F161: ・ | G161: =IFERROR(MONTH(VLOOKUP($D161,申請者リスト!$C$4:$Q$2003,7,FALSE)),"") ->  | H161: ・ | I161: =IFERROR(DAY(VLOOKUP($D161,申請者リスト!$C$4:$Q$2003,7,FALSE)),"") ->  | J161: =COUNTIFS(申請者リスト!$C$4:$C$2003,様式３!$D161,申請者リスト!$P$4:$P$2003,J$8) -> 0 | K161: =COUNTIFS(申請者リスト!$C$4:$C$2003,様式３!$D161,申請者リスト!$P$4:$P$2003,K$8) -> 0 | L161: =COUNTIFS(申請者リスト!$C$4:$C$2003,様式３!$D161,申請者リスト!$P$4:$P$2003,L$8) -> 0 | M161: =COUNTIFS(申請者リスト!$C$4:$C$2003,様式３!$D161,申請者リスト!$P$4:$P$2003,M$8) -> 0 | N161: =J161*$J$9+K161*$K$9+L161*$L$9+M161*$M$9 -> 0
A162: =+A161+1 -> 78 | E162: =IFERROR(YEAR(VLOOKUP($D162,申請者リスト!$C$4:$Q$2003,7,FALSE)),"") ->  | F162: ・ | G162: =IFERROR(MONTH(VLOOKUP($D162,申請者リスト!$C$4:$Q$2003,7,FALSE)),"") ->  | H162: ・ | I162: =IFERROR(DAY(VLOOKUP($D162,申請者リスト!$C$4:$Q$2003,7,FALSE)),"") ->  | J162: =COUNTIFS(申請者リスト!$C$4:$C$2003,様式３!$D162,申請者リスト!$P$4:$P$2003,J$8) -> 0 | K162: =COUNTIFS(申請者リスト!$C$4:$C$2003,様式３!$D162,申請者リスト!$P$4:$P$2003,K$8) -> 0 | L162: =COUNTIFS(申請者リスト!$C$4:$C$2003,様式３!$D162,申請者リスト!$P$4:$P$2003,L$8) -> 0 | M162: =COUNTIFS(申請者リスト!$C$4:$C$2003,様式３!$D162,申請者リスト!$P$4:$P$2003,M$8) -> 0 | N162: 0
A163: 79 | E163: =IFERROR(YEAR(VLOOKUP($D163,申請者リスト!$C$4:$Q$2003,7,FALSE)),"") ->  | F163: ・ | G163: =IFERROR(MONTH(VLOOKUP($D163,申請者リスト!$C$4:$Q$2003,7,FALSE)),"") ->  | H163: ・ | I163: =IFERROR(DAY(VLOOKUP($D163,申請者リスト!$C$4:$Q$2003,7,FALSE)),"") ->  | J163: =COUNTIFS(申請者リスト!$C$4:$C$2003,様式３!$D163,申請者リスト!$P$4:$P$2003,J$8) -> 0 | K163: =COUNTIFS(申請者リスト!$C$4:$C$2003,様式３!$D163,申請者リスト!$P$4:$P$2003,K$8) -> 0 | L163: =COUNTIFS(申請者リスト!$C$4:$C$2003,様式３!$D163,申請者リスト!$P$4:$P$2003,L$8) -> 0 | M163: =COUNTIFS(申請者リスト!$C$4:$C$2003,様式３!$D163,申請者リスト!$P$4:$P$2003,M$8) -> 0 | N163: 0
A164: 80 | E164: =IFERROR(YEAR(VLOOKUP($D164,申請者リスト!$C$4:$Q$2003,7,FALSE)),"") ->  | F164: ・ | G164: =IFERROR(MONTH(VLOOKUP($D164,申請者リスト!$C$4:$Q$2003,7,FALSE)),"") ->  | H164: ・ | I164: =IFERROR(DAY(VLOOKUP($D164,申請者リスト!$C$4:$Q$2003,7,FALSE)),"") ->  | J164: =COUNTIFS(申請者リスト!$C$4:$C$2003,様式３!$D164,申請者リスト!$P$4:$P$2003,J$8) -> 0 | K164: =COUNTIFS(申請者リスト!$C$4:$C$2003,様式３!$D164,申請者リスト!$P$4:$P$2003,K$8) -> 0 | L164: =COUNTIFS(申請者リスト!$C$4:$C$2003,様式３!$D164,申請者リスト!$P$4:$P$2003,L$8) -> 0 | M164: =COUNTIFS(申請者リスト!$C$4:$C$2003,様式３!$D164,申請者リスト!$P$4:$P$2003,M$8) -> 0 | N164: 0
A165: 81 | E165: =IFERROR(YEAR(VLOOKUP($D165,申請者リスト!$C$4:$Q$2003,7,FALSE)),"") ->  | F165: ・ | G165: =IFERROR(MONTH(VLOOKUP($D165,申請者リスト!$C$4:$Q$2003,7,FALSE)),"") ->  | H165: ・ | I165: =IFERROR(DAY(VLOOKUP($D165,申請者リスト!$C$4:$Q$2003,7,FALSE)),"") ->  | J165: =COUNTIFS(申請者リスト!$C$4:$C$2003,様式３!$D165,申請者リスト!$P$4:$P$2003,J$8) -> 0 | K165: =COUNTIFS(申請者リスト!$C$4:$C$2003,様式３!$D165,申請者リスト!$P$4:$P$2003,K$8) -> 0 | L165: =COUNTIFS(申請者リスト!$C$4:$C$2003,様式３!$D165,申請者リスト!$P$4:$P$2003,L$8) -> 0 | M165: =COUNTIFS(申請者リスト!$C$4:$C$2003,様式３!$D165,申請者リスト!$P$4:$P$2003,M$8) -> 0 | N165: 0
A166: 82 | E166: =IFERROR(YEAR(VLOOKUP($D166,申請者リスト!$C$4:$Q$2003,7,FALSE)),"") ->  | F166: ・ | G166: =IFERROR(MONTH(VLOOKUP($D166,申請者リスト!$C$4:$Q$2003,7,FALSE)),"") ->  | H166: ・ | I166: =IFERROR(DAY(VLOOKUP($D166,申請者リスト!$C$4:$Q$2003,7,FALSE)),"") ->  | J166: =COUNTIFS(申請者リスト!$C$4:$C$2003,様式３!$D166,申請者リスト!$P$4:$P$2003,J$8) -> 0 | K166: =COUNTIFS(申請者リスト!$C$4:$C$2003,様式３!$D166,申請者リスト!$P$4:$P$2003,K$8) -> 0 | L166: =COUNTIFS(申請者リスト!$C$4:$C$2003,様式３!$D166,申請者リスト!$P$4:$P$2003,L$8) -> 0 | M166: =COUNTIFS(申請者リスト!$C$4:$C$2003,様式３!$D166,申請者リスト!$P$4:$P$2003,M$8) -> 0 | N166: 0
A167: 83 | E167: =IFERROR(YEAR(VLOOKUP($D167,申請者リスト!$C$4:$Q$2003,7,FALSE)),"") ->  | F167: ・ | G167: =IFERROR(MONTH(VLOOKUP($D167,申請者リスト!$C$4:$Q$2003,7,FALSE)),"") ->  | H167: ・ | I167: =IFERROR(DAY(VLOOKUP($D167,申請者リスト!$C$4:$Q$2003,7,FALSE)),"") ->  | J167: =COUNTIFS(申請者リスト!$C$4:$C$2003,様式３!$D167,申請者リスト!$P$4:$P$2003,J$8) -> 0 | K167: =COUNTIFS(申請者リスト!$C$4:$C$2003,様式３!$D167,申請者リスト!$P$4:$P$2003,K$8) -> 0 | L167: =COUNTIFS(申請者リスト!$C$4:$C$2003,様式３!$D167,申請者リスト!$P$4:$P$2003,L$8) -> 0 | M167: =COUNTIFS(申請者リスト!$C$4:$C$2003,様式３!$D167,申請者リスト!$P$4:$P$2003,M$8) -> 0 | N167: 0
A168: 84 | E168: =IFERROR(YEAR(VLOOKUP($D168,申請者リスト!$C$4:$Q$2003,7,FALSE)),"") ->  | F168: ・ | G168: =IFERROR(MONTH(VLOOKUP($D168,申請者リスト!$C$4:$Q$2003,7,FALSE)),"") ->  | H168: ・ | I168: =IFERROR(DAY(VLOOKUP($D168,申請者リスト!$C$4:$Q$2003,7,FALSE)),"") ->  | J168: =COUNTIFS(申請者リスト!$C$4:$C$2003,様式３!$D168,申請者リスト!$P$4:$P$2003,J$8) -> 0 | K168: =COUNTIFS(申請者リスト!$C$4:$C$2003,様式３!$D168,申請者リスト!$P$4:$P$2003,K$8) -> 0 | L168: =COUNTIFS(申請者リスト!$C$4:$C$2003,様式３!$D168,申請者リスト!$P$4:$P$2003,L$8) -> 0 | M168: =COUNTIFS(申請者リスト!$C$4:$C$2003,様式３!$D168,申請者リスト!$P$4:$P$2003,M$8) -> 0 | N168: 0
A169: 85 | E169: =IFERROR(YEAR(VLOOKUP($D169,申請者リスト!$C$4:$Q$2003,7,FALSE)),"") ->  | F169: ・ | G169: =IFERROR(MONTH(VLOOKUP($D169,申請者リスト!$C$4:$Q$2003,7,FALSE)),"") ->  | H169: ・ | I169: =IFERROR(DAY(VLOOKUP($D169,申請者リスト!$C$4:$Q$2003,7,FALSE)),"") ->  | J169: =COUNTIFS(申請者リスト!$C$4:$C$2003,様式３!$D169,申請者リスト!$P$4:$P$2003,J$8) -> 0 | K169: =COUNTIFS(申請者リスト!$C$4:$C$2003,様式３!$D169,申請者リスト!$P$4:$P$2003,K$8) -> 0 | L169: =COUNTIFS(申請者リスト!$C$4:$C$2003,様式３!$D169,申請者リスト!$P$4:$P$2003,L$8) -> 0 | M169: =COUNTIFS(申請者リスト!$C$4:$C$2003,様式３!$D169,申請者リスト!$P$4:$P$2003,M$8) -> 0 | N169: 0
A170: 86 | E170: =IFERROR(YEAR(VLOOKUP($D170,申請者リスト!$C$4:$Q$2003,7,FALSE)),"") ->  | F170: ・ | G170: =IFERROR(MONTH(VLOOKUP($D170,申請者リスト!$C$4:$Q$2003,7,FALSE)),"") ->  | H170: ・ | I170: =IFERROR(DAY(VLOOKUP($D170,申請者リスト!$C$4:$Q$2003,7,FALSE)),"") ->  | J170: =COUNTIFS(申請者リスト!$C$4:$C$2003,様式３!$D170,申請者リスト!$P$4:$P$2003,J$8) -> 0 | K170: =COUNTIFS(申請者リスト!$C$4:$C$2003,様式３!$D170,申請者リスト!$P$4:$P$2003,K$8) -> 0 | L170: =COUNTIFS(申請者リスト!$C$4:$C$2003,様式３!$D170,申請者リスト!$P$4:$P$2003,L$8) -> 0 | M170: =COUNTIFS(申請者リスト!$C$4:$C$2003,様式３!$D170,申請者リスト!$P$4:$P$2003,M$8) -> 0 | N170: 0
A171: 87 | E171: =IFERROR(YEAR(VLOOKUP($D171,申請者リスト!$C$4:$Q$2003,7,FALSE)),"") ->  | F171: ・ | G171: =IFERROR(MONTH(VLOOKUP($D171,申請者リスト!$C$4:$Q$2003,7,FALSE)),"") ->  | H171: ・ | I171: =IFERROR(DAY(VLOOKUP($D171,申請者リスト!$C$4:$Q$2003,7,FALSE)),"") ->  | J171: =COUNTIFS(申請者リスト!$C$4:$C$2003,様式３!$D171,申請者リスト!$P$4:$P$2003,J$8) -> 0 | K171: =COUNTIFS(申請者リスト!$C$4:$C$2003,様式３!$D171,申請者リスト!$P$4:$P$2003,K$8) -> 0 | L171: =COUNTIFS(申請者リスト!$C$4:$C$2003,様式３!$D171,申請者リスト!$P$4:$P$2003,L$8) -> 0 | M171: =COUNTIFS(申請者リスト!$C$4:$C$2003,様式３!$D171,申請者リスト!$P$4:$P$2003,M$8) -> 0 | N171: 0
A172: 88 | E172: =IFERROR(YEAR(VLOOKUP($D172,申請者リスト!$C$4:$Q$2003,7,FALSE)),"") ->  | F172: ・ | G172: =IFERROR(MONTH(VLOOKUP($D172,申請者リスト!$C$4:$Q$2003,7,FALSE)),"") ->  | H172: ・ | I172: =IFERROR(DAY(VLOOKUP($D172,申請者リスト!$C$4:$Q$2003,7,FALSE)),"") ->  | J172: =COUNTIFS(申請者リスト!$C$4:$C$2003,様式３!$D172,申請者リスト!$P$4:$P$2003,J$8) -> 0 | K172: =COUNTIFS(申請者リスト!$C$4:$C$2003,様式３!$D172,申請者リスト!$P$4:$P$2003,K$8) -> 0 | L172: =COUNTIFS(申請者リスト!$C$4:$C$2003,様式３!$D172,申請者リスト!$P$4:$P$2003,L$8) -> 0 | M172: =COUNTIFS(申請者リスト!$C$4:$C$2003,様式３!$D172,申請者リスト!$P$4:$P$2003,M$8) -> 0 | N172: 0
A173: 89 | E173: =IFERROR(YEAR(VLOOKUP($D173,申請者リスト!$C$4:$Q$2003,7,FALSE)),"") ->  | F173: ・ | G173: =IFERROR(MONTH(VLOOKUP($D173,申請者リスト!$C$4:$Q$2003,7,FALSE)),"") ->  | H173: ・ | I173: =IFERROR(DAY(VLOOKUP($D173,申請者リスト!$C$4:$Q$2003,7,FALSE)),"") ->  | J173: =COUNTIFS(申請者リスト!$C$4:$C$2003,様式３!$D173,申請者リスト!$P$4:$P$2003,J$8) -> 0 | K173: =COUNTIFS(申請者リスト!$C$4:$C$2003,様式３!$D173,申請者リスト!$P$4:$P$2003,K$8) -> 0 | L173: =COUNTIFS(申請者リスト!$C$4:$C$2003,様式３!$D173,申請者リスト!$P$4:$P$2003,L$8) -> 0 | M173: =COUNTIFS(申請者リスト!$C$4:$C$2003,様式３!$D173,申請者リスト!$P$4:$P$2003,M$8) -> 0 | N173: 0
A174: 90 | E174: =IFERROR(YEAR(VLOOKUP($D174,申請者リスト!$C$4:$Q$2003,7,FALSE)),"") ->  | F174: ・ | G174: =IFERROR(MONTH(VLOOKUP($D174,申請者リスト!$C$4:$Q$2003,7,FALSE)),"") ->  | H174: ・ | I174: =IFERROR(DAY(VLOOKUP($D174,申請者リスト!$C$4:$Q$2003,7,FALSE)),"") ->  | J174: =COUNTIFS(申請者リスト!$C$4:$C$2003,様式３!$D174,申請者リスト!$P$4:$P$2003,J$8) -> 0 | K174: =COUNTIFS(申請者リスト!$C$4:$C$2003,様式３!$D174,申請者リスト!$P$4:$P$2003,K$8) -> 0 | L174: =COUNTIFS(申請者リスト!$C$4:$C$2003,様式３!$D174,申請者リスト!$P$4:$P$2003,L$8) -> 0 | M174: =COUNTIFS(申請者リスト!$C$4:$C$2003,様式３!$D174,申請者リスト!$P$4:$P$2003,M$8) -> 0 | N174: 0
A175: ※１ | B175: 学科の欄には、大学科名を記入する。
A176: ※２ | B176: 整理番号は、様式１の整理番号（担当者が付記）と一致させる。
B177: なお、整理番号については、各学校の大学科ごとに１～を割り振ること。
A178: ※３ | B178: 資格・試験等ランクの欄には、取得個数を記入する。
A179: ※４ | B179: 得点合計欄には、得点の合計を記入する。
A181: （様式３） | K181: ( | L181: =$L$1 -> 0 | M181: 枚中 | N181: =+N151+1 -> 7 | O181: 枚目）
A183: 埼玉県高校生専門資格等取得表彰推薦名簿
G185: 学 校 名 | J185: =$J$5 -> 0 | O185: 学校
A187: Ｎｏ | B187: 学 年 | C187: 学 科 | D187: 整理番号 | E187: 生 年 月 日 | J187: 資格・試験等ﾗﾝｸ | N187: 得点合計 | O187: 備 考
J188: A | K188: B | L188: C | M188: D
J189: 6 | K189: 3 | L189: 2 | M189: 1
A190: =+A174+1 -> 91 | E190: =IFERROR(YEAR(VLOOKUP($D190,申請者リスト!$C$4:$Q$2003,7,FALSE)),"") ->  | F190: ・ | G190: =IFERROR(MONTH(VLOOKUP($D190,申請者リスト!$C$4:$Q$2003,7,FALSE)),"") ->  | H190: ・ | I190: =IFERROR(DAY(VLOOKUP($D190,申請者リスト!$C$4:$Q$2003,7,FALSE)),"") ->  | J190: =COUNTIFS(申請者リスト!$C$4:$C$2003,様式３!$D190,申請者リスト!$P$4:$P$2003,J$8) -> 0 | K190: =COUNTIFS(申請者リスト!$C$4:$C$2003,様式３!$D190,申請者リスト!$P$4:$P$2003,K$8) -> 0 | L190: =COUNTIFS(申請者リスト!$C$4:$C$2003,様式３!$D190,申請者リスト!$P$4:$P$2003,L$8) -> 0 | M190: =COUNTIFS(申請者リスト!$C$4:$C$2003,様式３!$D190,申請者リスト!$P$4:$P$2003,M$8) -> 0 | N190: =J190*$J$9+K190*$K$9+L190*$L$9+M190*$M$9 -> 0
A191: =+A190+1 -> 92 | E191: =IFERROR(YEAR(VLOOKUP($D191,申請者リスト!$C$4:$Q$2003,7,FALSE)),"") ->  | F191: ・ | G191: =IFERROR(MONTH(VLOOKUP($D191,申請者リスト!$C$4:$Q$2003,7,FALSE)),"") ->  | H191: ・ | I191: =IFERROR(DAY(VLOOKUP($D191,申請者リスト!$C$4:$Q$2003,7,FALSE)),"") ->  | J191: =COUNTIFS(申請者リスト!$C$4:$C$2003,様式３!$D191,申請者リスト!$P$4:$P$2003,J$8) -> 0 | K191: =COUNTIFS(申請者リスト!$C$4:$C$2003,様式３!$D191,申請者リスト!$P$4:$P$2003,K$8) -> 0 | L191: =COUNTIFS(申請者リスト!$C$4:$C$2003,様式３!$D191,申請者リスト!$P$4:$P$2003,L$8) -> 0 | M191: =COUNTIFS(申請者リスト!$C$4:$C$2003,様式３!$D191,申請者リスト!$P$4:$P$2003,M$8) -> 0 | N191: =J191*$J$9+K191*$K$9+L191*$L$9+M191*$M$9 -> 0
A192: =+A191+1 -> 93 | E192: =IFERROR(YEAR(VLOOKUP($D192,申請者リスト!$C$4:$Q$2003,7,FALSE)),"") ->  | F192: ・ | G192: =IFERROR(MONTH(VLOOKUP($D192,申請者リスト!$C$4:$Q$2003,7,FALSE)),"") ->  | H192: ・ | I192: =IFERROR(DAY(VLOOKUP($D192,申請者リスト!$C$4:$Q$2003,7,FALSE)),"") ->  | J192: =COUNTIFS(申請者リスト!$C$4:$C$2003,様式３!$D192,申請者リスト!$P$4:$P$2003,J$8) -> 0 | K192: =COUNTIFS(申請者リスト!$C$4:$C$2003,様式３!$D192,申請者リスト!$P$4:$P$2003,K$8) -> 0 | L192: =COUNTIFS(申請者リスト!$C$4:$C$2003,様式３!$D192,申請者リスト!$P$4:$P$2003,L$8) -> 0 | M192: =COUNTIFS(申請者リスト!$C$4:$C$2003,様式３!$D192,申請者リスト!$P$4:$P$2003,M$8) -> 0 | N192: 0
A193: 94 | E193: =IFERROR(YEAR(VLOOKUP($D193,申請者リスト!$C$4:$Q$2003,7,FALSE)),"") ->  | F193: ・ | G193: =IFERROR(MONTH(VLOOKUP($D193,申請者リスト!$C$4:$Q$2003,7,FALSE)),"") ->  | H193: ・ | I193: =IFERROR(DAY(VLOOKUP($D193,申請者リスト!$C$4:$Q$2003,7,FALSE)),"") ->  | J193: =COUNTIFS(申請者リスト!$C$4:$C$2003,様式３!$D193,申請者リスト!$P$4:$P$2003,J$8) -> 0 | K193: =COUNTIFS(申請者リスト!$C$4:$C$2003,様式３!$D193,申請者リスト!$P$4:$P$2003,K$8) -> 0 | L193: =COUNTIFS(申請者リスト!$C$4:$C$2003,様式３!$D193,申請者リスト!$P$4:$P$2003,L$8) -> 0 | M193: =COUNTIFS(申請者リスト!$C$4:$C$2003,様式３!$D193,申請者リスト!$P$4:$P$2003,M$8) -> 0 | N193: 0
A194: 95 | E194: =IFERROR(YEAR(VLOOKUP($D194,申請者リスト!$C$4:$Q$2003,7,FALSE)),"") ->  | F194: ・ | G194: =IFERROR(MONTH(VLOOKUP($D194,申請者リスト!$C$4:$Q$2003,7,FALSE)),"") ->  | H194: ・ | I194: =IFERROR(DAY(VLOOKUP($D194,申請者リスト!$C$4:$Q$2003,7,FALSE)),"") ->  | J194: =COUNTIFS(申請者リスト!$C$4:$C$2003,様式３!$D194,申請者リスト!$P$4:$P$2003,J$8) -> 0 | K194: =COUNTIFS(申請者リスト!$C$4:$C$2003,様式３!$D194,申請者リスト!$P$4:$P$2003,K$8) -> 0 | L194: =COUNTIFS(申請者リスト!$C$4:$C$2003,様式３!$D194,申請者リスト!$P$4:$P$2003,L$8) -> 0 | M194: =COUNTIFS(申請者リスト!$C$4:$C$2003,様式３!$D194,申請者リスト!$P$4:$P$2003,M$8) -> 0 | N194: 0
A195: 96 | E195: =IFERROR(YEAR(VLOOKUP($D195,申請者リスト!$C$4:$Q$2003,7,FALSE)),"") ->  | F195: ・ | G195: =IFERROR(MONTH(VLOOKUP($D195,申請者リスト!$C$4:$Q$2003,7,FALSE)),"") ->  | H195: ・ | I195: =IFERROR(DAY(VLOOKUP($D195,申請者リスト!$C$4:$Q$2003,7,FALSE)),"") ->  | J195: =COUNTIFS(申請者リスト!$C$4:$C$2003,様式３!$D195,申請者リスト!$P$4:$P$2003,J$8) -> 0 | K195: =COUNTIFS(申請者リスト!$C$4:$C$2003,様式３!$D195,申請者リスト!$P$4:$P$2003,K$8) -> 0 | L195: =COUNTIFS(申請者リスト!$C$4:$C$2003,様式３!$D195,申請者リスト!$P$4:$P$2003,L$8) -> 0 | M195: =COUNTIFS(申請者リスト!$C$4:$C$2003,様式３!$D195,申請者リスト!$P$4:$P$2003,M$8) -> 0 | N195: 0
A196: 97 | E196: =IFERROR(YEAR(VLOOKUP($D196,申請者リスト!$C$4:$Q$2003,7,FALSE)),"") ->  | F196: ・ | G196: =IFERROR(MONTH(VLOOKUP($D196,申請者リスト!$C$4:$Q$2003,7,FALSE)),"") ->  | H196: ・ | I196: =IFERROR(DAY(VLOOKUP($D196,申請者リスト!$C$4:$Q$2003,7,FALSE)),"") ->  | J196: =COUNTIFS(申請者リスト!$C$4:$C$2003,様式３!$D196,申請者リスト!$P$4:$P$2003,J$8) -> 0 | K196: =COUNTIFS(申請者リスト!$C$4:$C$2003,様式３!$D196,申請者リスト!$P$4:$P$2003,K$8) -> 0 | L196: =COUNTIFS(申請者リスト!$C$4:$C$2003,様式３!$D196,申請者リスト!$P$4:$P$2003,L$8) -> 0 | M196: =COUNTIFS(申請者リスト!$C$4:$C$2003,様式３!$D196,申請者リスト!$P$4:$P$2003,M$8) -> 0 | N196: 0
A197: 98 | E197: =IFERROR(YEAR(VLOOKUP($D197,申請者リスト!$C$4:$Q$2003,7,FALSE)),"") ->  | F197: ・ | G197: =IFERROR(MONTH(VLOOKUP($D197,申請者リスト!$C$4:$Q$2003,7,FALSE)),"") ->  | H197: ・ | I197: =IFERROR(DAY(VLOOKUP($D197,申請者リスト!$C$4:$Q$2003,7,FALSE)),"") ->  | J197: =COUNTIFS(申請者リスト!$C$4:$C$2003,様式３!$D197,申請者リスト!$P$4:$P$2003,J$8) -> 0 | K197: =COUNTIFS(申請者リスト!$C$4:$C$2003,様式３!$D197,申請者リスト!$P$4:$P$2003,K$8) -> 0 | L197: =COUNTIFS(申請者リスト!$C$4:$C$2003,様式３!$D197,申請者リスト!$P$4:$P$2003,L$8) -> 0 | M197: =COUNTIFS(申請者リスト!$C$4:$C$2003,様式３!$D197,申請者リスト!$P$4:$P$2003,M$8) -> 0 | N197: 0
A198: 99 | E198: =IFERROR(YEAR(VLOOKUP($D198,申請者リスト!$C$4:$Q$2003,7,FALSE)),"") ->  | F198: ・ | G198: =IFERROR(MONTH(VLOOKUP($D198,申請者リスト!$C$4:$Q$2003,7,FALSE)),"") ->  | H198: ・ | I198: =IFERROR(DAY(VLOOKUP($D198,申請者リスト!$C$4:$Q$2003,7,FALSE)),"") ->  | J198: =COUNTIFS(申請者リスト!$C$4:$C$2003,様式３!$D198,申請者リスト!$P$4:$P$2003,J$8) -> 0 | K198: =COUNTIFS(申請者リスト!$C$4:$C$2003,様式３!$D198,申請者リスト!$P$4:$P$2003,K$8) -> 0 | L198: =COUNTIFS(申請者リスト!$C$4:$C$2003,様式３!$D198,申請者リスト!$P$4:$P$2003,L$8) -> 0 | M198: =COUNTIFS(申請者リスト!$C$4:$C$2003,様式３!$D198,申請者リスト!$P$4:$P$2003,M$8) -> 0 | N198: 0
A199: 100 | E199: =IFERROR(YEAR(VLOOKUP($D199,申請者リスト!$C$4:$Q$2003,7,FALSE)),"") ->  | F199: ・ | G199: =IFERROR(MONTH(VLOOKUP($D199,申請者リスト!$C$4:$Q$2003,7,FALSE)),"") ->  | H199: ・ | I199: =IFERROR(DAY(VLOOKUP($D199,申請者リスト!$C$4:$Q$2003,7,FALSE)),"") ->  | J199: =COUNTIFS(申請者リスト!$C$4:$C$2003,様式３!$D199,申請者リスト!$P$4:$P$2003,J$8) -> 0 | K199: =COUNTIFS(申請者リスト!$C$4:$C$2003,様式３!$D199,申請者リスト!$P$4:$P$2003,K$8) -> 0 | L199: =COUNTIFS(申請者リスト!$C$4:$C$2003,様式３!$D199,申請者リスト!$P$4:$P$2003,L$8) -> 0 | M199: =COUNTIFS(申請者リスト!$C$4:$C$2003,様式３!$D199,申請者リスト!$P$4:$P$2003,M$8) -> 0 | N199: 0
A200: 101 | E200: =IFERROR(YEAR(VLOOKUP($D200,申請者リスト!$C$4:$Q$2003,7,FALSE)),"") ->  | F200: ・ | G200: =IFERROR(MONTH(VLOOKUP($D200,申請者リスト!$C$4:$Q$2003,7,FALSE)),"") ->  | H200: ・ | I200: =IFERROR(DAY(VLOOKUP($D200,申請者リスト!$C$4:$Q$2003,7,FALSE)),"") ->  | J200: =COUNTIFS(申請者リスト!$C$4:$C$2003,様式３!$D200,申請者リスト!$P$4:$P$2003,J$8) -> 0 | K200: =COUNTIFS(申請者リスト!$C$4:$C$2003,様式３!$D200,申請者リスト!$P$4:$P$2003,K$8) -> 0 | L200: =COUNTIFS(申請者リスト!$C$4:$C$2003,様式３!$D200,申請者リスト!$P$4:$P$2003,L$8) -> 0 | M200: =COUNTIFS(申請者リスト!$C$4:$C$2003,様式３!$D200,申請者リスト!$P$4:$P$2003,M$8) -> 0 | N200: 0
A201: 102 | E201: =IFERROR(YEAR(VLOOKUP($D201,申請者リスト!$C$4:$Q$2003,7,FALSE)),"") ->  | F201: ・ | G201: =IFERROR(MONTH(VLOOKUP($D201,申請者リスト!$C$4:$Q$2003,7,FALSE)),"") ->  | H201: ・ | I201: =IFERROR(DAY(VLOOKUP($D201,申請者リスト!$C$4:$Q$2003,7,FALSE)),"") ->  | J201: =COUNTIFS(申請者リスト!$C$4:$C$2003,様式３!$D201,申請者リスト!$P$4:$P$2003,J$8) -> 0 | K201: =COUNTIFS(申請者リスト!$C$4:$C$2003,様式３!$D201,申請者リスト!$P$4:$P$2003,K$8) -> 0 | L201: =COUNTIFS(申請者リスト!$C$4:$C$2003,様式３!$D201,申請者リスト!$P$4:$P$2003,L$8) -> 0 | M201: =COUNTIFS(申請者リスト!$C$4:$C$2003,様式３!$D201,申請者リスト!$P$4:$P$2003,M$8) -> 0 | N201: 0
A202: 103 | E202: =IFERROR(YEAR(VLOOKUP($D202,申請者リスト!$C$4:$Q$2003,7,FALSE)),"") ->  | F202: ・ | G202: =IFERROR(MONTH(VLOOKUP($D202,申請者リスト!$C$4:$Q$2003,7,FALSE)),"") ->  | H202: ・ | I202: =IFERROR(DAY(VLOOKUP($D202,申請者リスト!$C$4:$Q$2003,7,FALSE)),"") ->  | J202: =COUNTIFS(申請者リスト!$C$4:$C$2003,様式３!$D202,申請者リスト!$P$4:$P$2003,J$8) -> 0 | K202: =COUNTIFS(申請者リスト!$C$4:$C$2003,様式３!$D202,申請者リスト!$P$4:$P$2003,K$8) -> 0 | L202: =COUNTIFS(申請者リスト!$C$4:$C$2003,様式３!$D202,申請者リスト!$P$4:$P$2003,L$8) -> 0 | M202: =COUNTIFS(申請者リスト!$C$4:$C$2003,様式３!$D202,申請者リスト!$P$4:$P$2003,M$8) -> 0 | N202: 0
A203: 104 | E203: =IFERROR(YEAR(VLOOKUP($D203,申請者リスト!$C$4:$Q$2003,7,FALSE)),"") ->  | F203: ・ | G203: =IFERROR(MONTH(VLOOKUP($D203,申請者リスト!$C$4:$Q$2003,7,FALSE)),"") ->  | H203: ・ | I203: =IFERROR(DAY(VLOOKUP($D203,申請者リスト!$C$4:$Q$2003,7,FALSE)),"") ->  | J203: =COUNTIFS(申請者リスト!$C$4:$C$2003,様式３!$D203,申請者リスト!$P$4:$P$2003,J$8) -> 0 | K203: =COUNTIFS(申請者リスト!$C$4:$C$2003,様式３!$D203,申請者リスト!$P$4:$P$2003,K$8) -> 0 | L203: =COUNTIFS(申請者リスト!$C$4:$C$2003,様式３!$D203,申請者リスト!$P$4:$P$2003,L$8) -> 0 | M203: =COUNTIFS(申請者リスト!$C$4:$C$2003,様式３!$D203,申請者リスト!$P$4:$P$2003,M$8) -> 0 | N203: 0
A204: 105 | E204: =IFERROR(YEAR(VLOOKUP($D204,申請者リスト!$C$4:$Q$2003,7,FALSE)),"") ->  | F204: ・ | G204: =IFERROR(MONTH(VLOOKUP($D204,申請者リスト!$C$4:$Q$2003,7,FALSE)),"") ->  | H204: ・ | I204: =IFERROR(DAY(VLOOKUP($D204,申請者リスト!$C$4:$Q$2003,7,FALSE)),"") ->  | J204: =COUNTIFS(申請者リスト!$C$4:$C$2003,様式３!$D204,申請者リスト!$P$4:$P$2003,J$8) -> 0 | K204: =COUNTIFS(申請者リスト!$C$4:$C$2003,様式３!$D204,申請者リスト!$P$4:$P$2003,K$8) -> 0 | L204: =COUNTIFS(申請者リスト!$C$4:$C$2003,様式３!$D204,申請者リスト!$P$4:$P$2003,L$8) -> 0 | M204: =COUNTIFS(申請者リスト!$C$4:$C$2003,様式３!$D204,申請者リスト!$P$4:$P$2003,M$8) -> 0 | N204: 0
A205: ※１ | B205: 学科の欄には、大学科名を記入する。
A206: ※２ | B206: 整理番号は、様式１の整理番号（担当者が付記）と一致させる。
B207: なお、整理番号については、各学校の大学科ごとに１～を割り振ること。
A208: ※３ | B208: 資格・試験等ランクの欄には、取得個数を記入する。
A209: ※４ | B209: 得点合計欄には、得点の合計を記入する。
A211: （様式３） | K211: ( | L211: =$L$1 -> 0 | M211: 枚中 | N211: =+N181+1 -> 8 | O211: 枚目）
A213: 埼玉県高校生専門資格等取得表彰推薦名簿
G215: 学 校 名 | J215: =$J$5 -> 0 | O215: 学校
A217: Ｎｏ | B217: 学 年 | C217: 学 科 | D217: 整理番号 | E217: 生 年 月 日 | J217: 資格・試験等ﾗﾝｸ | N217: 得点合計 | O217: 備 考
J218: A | K218: B | L218: C | M218: D
J219: 6 | K219: 3 | L219: 2 | M219: 1
A220: =+A204+1 -> 106 | E220: =IFERROR(YEAR(VLOOKUP($D220,申請者リスト!$C$4:$Q$2003,7,FALSE)),"") ->  | F220: ・ | G220: =IFERROR(MONTH(VLOOKUP($D220,申請者リスト!$C$4:$Q$2003,7,FALSE)),"") ->  | H220: ・ | I220: =IFERROR(DAY(VLOOKUP($D220,申請者リスト!$C$4:$Q$2003,7,FALSE)),"") ->  | J220: =COUNTIFS(申請者リスト!$C$4:$C$2003,様式３!$D220,申請者リスト!$P$4:$P$2003,J$8) -> 0 | K220: =COUNTIFS(申請者リスト!$C$4:$C$2003,様式３!$D220,申請者リスト!$P$4:$P$2003,K$8) -> 0 | L220: =COUNTIFS(申請者リスト!$C$4:$C$2003,様式３!$D220,申請者リスト!$P$4:$P$2003,L$8) -> 0 | M220: =COUNTIFS(申請者リスト!$C$4:$C$2003,様式３!$D220,申請者リスト!$P$4:$P$2003,M$8) -> 0 | N220: =J220*$J$9+K220*$K$9+L220*$L$9+M220*$M$9 -> 0
A221: =+A220+1 -> 107 | E221: =IFERROR(YEAR(VLOOKUP($D221,申請者リスト!$C$4:$Q$2003,7,FALSE)),"") ->  | F221: ・ | G221: =IFERROR(MONTH(VLOOKUP($D221,申請者リスト!$C$4:$Q$2003,7,FALSE)),"") ->  | H221: ・ | I221: =IFERROR(DAY(VLOOKUP($D221,申請者リスト!$C$4:$Q$2003,7,FALSE)),"") ->  | J221: =COUNTIFS(申請者リスト!$C$4:$C$2003,様式３!$D221,申請者リスト!$P$4:$P$2003,J$8) -> 0 | K221: =COUNTIFS(申請者リスト!$C$4:$C$2003,様式３!$D221,申請者リスト!$P$4:$P$2003,K$8) -> 0 | L221: =COUNTIFS(申請者リスト!$C$4:$C$2003,様式３!$D221,申請者リスト!$P$4:$P$2003,L$8) -> 0 | M221: =COUNTIFS(申請者リスト!$C$4:$C$2003,様式３!$D221,申請者リスト!$P$4:$P$2003,M$8) -> 0 | N221: =J221*$J$9+K221*$K$9+L221*$L$9+M221*$M$9 -> 0
A222: =+A221+1 -> 108 | E222: =IFERROR(YEAR(VLOOKUP($D222,申請者リスト!$C$4:$Q$2003,7,FALSE)),"") ->  | F222: ・ | G222: =IFERROR(MONTH(VLOOKUP($D222,申請者リスト!$C$4:$Q$2003,7,FALSE)),"") ->  | H222: ・ | I222: =IFERROR(DAY(VLOOKUP($D222,申請者リスト!$C$4:$Q$2003,7,FALSE)),"") ->  | J222: =COUNTIFS(申請者リスト!$C$4:$C$2003,様式３!$D222,申請者リスト!$P$4:$P$2003,J$8) -> 0 | K222: =COUNTIFS(申請者リスト!$C$4:$C$2003,様式３!$D222,申請者リスト!$P$4:$P$2003,K$8) -> 0 | L222: =COUNTIFS(申請者リスト!$C$4:$C$2003,様式３!$D222,申請者リスト!$P$4:$P$2003,L$8) -> 0 | M222: =COUNTIFS(申請者リスト!$C$4:$C$2003,様式３!$D222,申請者リスト!$P$4:$P$2003,M$8) -> 0 | N222: 0
A223: 109 | E223: =IFERROR(YEAR(VLOOKUP($D223,申請者リスト!$C$4:$Q$2003,7,FALSE)),"") ->  | F223: ・ | G223: =IFERROR(MONTH(VLOOKUP($D223,申請者リスト!$C$4:$Q$2003,7,FALSE)),"") ->  | H223: ・ | I223: =IFERROR(DAY(VLOOKUP($D223,申請者リスト!$C$4:$Q$2003,7,FALSE)),"") ->  | J223: =COUNTIFS(申請者リスト!$C$4:$C$2003,様式３!$D223,申請者リスト!$P$4:$P$2003,J$8) -> 0 | K223: =COUNTIFS(申請者リスト!$C$4:$C$2003,様式３!$D223,申請者リスト!$P$4:$P$2003,K$8) -> 0 | L223: =COUNTIFS(申請者リスト!$C$4:$C$2003,様式３!$D223,申請者リスト!$P$4:$P$2003,L$8) -> 0 | M223: =COUNTIFS(申請者リスト!$C$4:$C$2003,様式３!$D223,申請者リスト!$P$4:$P$2003,M$8) -> 0 | N223: 0
A224: 110 | E224: =IFERROR(YEAR(VLOOKUP($D224,申請者リスト!$C$4:$Q$2003,7,FALSE)),"") ->  | F224: ・ | G224: =IFERROR(MONTH(VLOOKUP($D224,申請者リスト!$C$4:$Q$2003,7,FALSE)),"") ->  | H224: ・ | I224: =IFERROR(DAY(VLOOKUP($D224,申請者リスト!$C$4:$Q$2003,7,FALSE)),"") ->  | J224: =COUNTIFS(申請者リスト!$C$4:$C$2003,様式３!$D224,申請者リスト!$P$4:$P$2003,J$8) -> 0 | K224: =COUNTIFS(申請者リスト!$C$4:$C$2003,様式３!$D224,申請者リスト!$P$4:$P$2003,K$8) -> 0 | L224: =COUNTIFS(申請者リスト!$C$4:$C$2003,様式３!$D224,申請者リスト!$P$4:$P$2003,L$8) -> 0 | M224: =COUNTIFS(申請者リスト!$C$4:$C$2003,様式３!$D224,申請者リスト!$P$4:$P$2003,M$8) -> 0 | N224: 0
A225: 111 | E225: =IFERROR(YEAR(VLOOKUP($D225,申請者リスト!$C$4:$Q$2003,7,FALSE)),"") ->  | F225: ・ | G225: =IFERROR(MONTH(VLOOKUP($D225,申請者リスト!$C$4:$Q$2003,7,FALSE)),"") ->  | H225: ・ | I225: =IFERROR(DAY(VLOOKUP($D225,申請者リスト!$C$4:$Q$2003,7,FALSE)),"") ->  | J225: =COUNTIFS(申請者リスト!$C$4:$C$2003,様式３!$D225,申請者リスト!$P$4:$P$2003,J$8) -> 0 | K225: =COUNTIFS(申請者リスト!$C$4:$C$2003,様式３!$D225,申請者リスト!$P$4:$P$2003,K$8) -> 0 | L225: =COUNTIFS(申請者リスト!$C$4:$C$2003,様式３!$D225,申請者リスト!$P$4:$P$2003,L$8) -> 0 | M225: =COUNTIFS(申請者リスト!$C$4:$C$2003,様式３!$D225,申請者リスト!$P$4:$P$2003,M$8) -> 0 | N225: 0
A226: 112 | E226: =IFERROR(YEAR(VLOOKUP($D226,申請者リスト!$C$4:$Q$2003,7,FALSE)),"") ->  | F226: ・ | G226: =IFERROR(MONTH(VLOOKUP($D226,申請者リスト!$C$4:$Q$2003,7,FALSE)),"") ->  | H226: ・ | I226: =IFERROR(DAY(VLOOKUP($D226,申請者リスト!$C$4:$Q$2003,7,FALSE)),"") ->  | J226: =COUNTIFS(申請者リスト!$C$4:$C$2003,様式３!$D226,申請者リスト!$P$4:$P$2003,J$8) -> 0 | K226: =COUNTIFS(申請者リスト!$C$4:$C$2003,様式３!$D226,申請者リスト!$P$4:$P$2003,K$8) -> 0 | L226: =COUNTIFS(申請者リスト!$C$4:$C$2003,様式３!$D226,申請者リスト!$P$4:$P$2003,L$8) -> 0 | M226: =COUNTIFS(申請者リスト!$C$4:$C$2003,様式３!$D226,申請者リスト!$P$4:$P$2003,M$8) -> 0 | N226: 0
A227: 113 | E227: =IFERROR(YEAR(VLOOKUP($D227,申請者リスト!$C$4:$Q$2003,7,FALSE)),"") ->  | F227: ・ | G227: =IFERROR(MONTH(VLOOKUP($D227,申請者リスト!$C$4:$Q$2003,7,FALSE)),"") ->  | H227: ・ | I227: =IFERROR(DAY(VLOOKUP($D227,申請者リスト!$C$4:$Q$2003,7,FALSE)),"") ->  | J227: =COUNTIFS(申請者リスト!$C$4:$C$2003,様式３!$D227,申請者リスト!$P$4:$P$2003,J$8) -> 0 | K227: =COUNTIFS(申請者リスト!$C$4:$C$2003,様式３!$D227,申請者リスト!$P$4:$P$2003,K$8) -> 0 | L227: =COUNTIFS(申請者リスト!$C$4:$C$2003,様式３!$D227,申請者リスト!$P$4:$P$2003,L$8) -> 0 | M227: =COUNTIFS(申請者リスト!$C$4:$C$2003,様式３!$D227,申請者リスト!$P$4:$P$2003,M$8) -> 0 | N227: 0
A228: 114 | E228: =IFERROR(YEAR(VLOOKUP($D228,申請者リスト!$C$4:$Q$2003,7,FALSE)),"") ->  | F228: ・ | G228: =IFERROR(MONTH(VLOOKUP($D228,申請者リスト!$C$4:$Q$2003,7,FALSE)),"") ->  | H228: ・ | I228: =IFERROR(DAY(VLOOKUP($D228,申請者リスト!$C$4:$Q$2003,7,FALSE)),"") ->  | J228: =COUNTIFS(申請者リスト!$C$4:$C$2003,様式３!$D228,申請者リスト!$P$4:$P$2003,J$8) -> 0 | K228: =COUNTIFS(申請者リスト!$C$4:$C$2003,様式３!$D228,申請者リスト!$P$4:$P$2003,K$8) -> 0 | L228: =COUNTIFS(申請者リスト!$C$4:$C$2003,様式３!$D228,申請者リスト!$P$4:$P$2003,L$8) -> 0 | M228: =COUNTIFS(申請者リスト!$C$4:$C$2003,様式３!$D228,申請者リスト!$P$4:$P$2003,M$8) -> 0 | N228: 0
A229: 115 | E229: =IFERROR(YEAR(VLOOKUP($D229,申請者リスト!$C$4:$Q$2003,7,FALSE)),"") ->  | F229: ・ | G229: =IFERROR(MONTH(VLOOKUP($D229,申請者リスト!$C$4:$Q$2003,7,FALSE)),"") ->  | H229: ・ | I229: =IFERROR(DAY(VLOOKUP($D229,申請者リスト!$C$4:$Q$2003,7,FALSE)),"") ->  | J229: =COUNTIFS(申請者リスト!$C$4:$C$2003,様式３!$D229,申請者リスト!$P$4:$P$2003,J$8) -> 0 | K229: =COUNTIFS(申請者リスト!$C$4:$C$2003,様式３!$D229,申請者リスト!$P$4:$P$2003,K$8) -> 0 | L229: =COUNTIFS(申請者リスト!$C$4:$C$2003,様式３!$D229,申請者リスト!$P$4:$P$2003,L$8) -> 0 | M229: =COUNTIFS(申請者リスト!$C$4:$C$2003,様式３!$D229,申請者リスト!$P$4:$P$2003,M$8) -> 0 | N229: 0
A230: 116 | E230: =IFERROR(YEAR(VLOOKUP($D230,申請者リスト!$C$4:$Q$2003,7,FALSE)),"") ->  | F230: ・ | G230: =IFERROR(MONTH(VLOOKUP($D230,申請者リスト!$C$4:$Q$2003,7,FALSE)),"") ->  | H230: ・ | I230: =IFERROR(DAY(VLOOKUP($D230,申請者リスト!$C$4:$Q$2003,7,FALSE)),"") ->  | J230: =COUNTIFS(申請者リスト!$C$4:$C$2003,様式３!$D230,申請者リスト!$P$4:$P$2003,J$8) -> 0 | K230: =COUNTIFS(申請者リスト!$C$4:$C$2003,様式３!$D230,申請者リスト!$P$4:$P$2003,K$8) -> 0 | L230: =COUNTIFS(申請者リスト!$C$4:$C$2003,様式３!$D230,申請者リスト!$P$4:$P$2003,L$8) -> 0 | M230: =COUNTIFS(申請者リスト!$C$4:$C$2003,様式３!$D230,申請者リスト!$P$4:$P$2003,M$8) -> 0 | N230: 0
A231: 117 | E231: =IFERROR(YEAR(VLOOKUP($D231,申請者リスト!$C$4:$Q$2003,7,FALSE)),"") ->  | F231: ・ | G231: =IFERROR(MONTH(VLOOKUP($D231,申請者リスト!$C$4:$Q$2003,7,FALSE)),"") ->  | H231: ・ | I231: =IFERROR(DAY(VLOOKUP($D231,申請者リスト!$C$4:$Q$2003,7,FALSE)),"") ->  | J231: =COUNTIFS(申請者リスト!$C$4:$C$2003,様式３!$D231,申請者リスト!$P$4:$P$2003,J$8) -> 0 | K231: =COUNTIFS(申請者リスト!$C$4:$C$2003,様式３!$D231,申請者リスト!$P$4:$P$2003,K$8) -> 0 | L231: =COUNTIFS(申請者リスト!$C$4:$C$2003,様式３!$D231,申請者リスト!$P$4:$P$2003,L$8) -> 0 | M231: =COUNTIFS(申請者リスト!$C$4:$C$2003,様式３!$D231,申請者リスト!$P$4:$P$2003,M$8) -> 0 | N231: 0
... 216 more rows

Sheet 様式６
B1: （様式６） | H1: （令和 | K1: 年度 | N1: 枚中 | O1: 1 | P1: 枚目）
B3: 埼玉県高校生専門資格等取得表彰証書発行台帳
F4: 学 校 名 | O4: 学校
F5: 発行年月日 令和 | L5: 年 | N5: 月 | P5: 日
B6: 発行番号 | C6: 学年 | D6: 学科 | E6: 整理番号 | F6: 生 年 月 日 | K6: 資格・試験等ﾗﾝｸ | O6: 得点 合計 | P6: 備考
K7: A | L7: B | M7: C | N7: D
K8: 6 | L8: 3 | M8: 2 | N8: 1
A9: 1 | C9: =IF(様式３!B10="","",様式３!B10) ->  | D9: =IF(様式３!C10="","",様式３!C10) ->  | E9: =IF(様式３!D10="","",様式３!D10) ->  | F9: =IF(様式３!E10="","",様式３!E10) ->  | G9: =IF(様式３!F10="","",様式３!F10) -> ・ | H9: =IF(様式３!G10="","",様式３!G10) ->  | I9: =IF(様式３!H10="","",様式３!H10) -> ・ | J9: =IF(様式３!I10="","",様式３!I10) ->  | K9: =IF(様式３!J10="","",様式３!J10) -> 0 | L9: =IF(様式３!K10="","",様式３!K10) -> 0 | M9: =IF(様式３!L10="","",様式３!L10) -> 0 | N9: =IF(様式３!M10="","",様式３!M10) -> 0 | O9: =IF(様式３!N10="","",様式３!N10) -> 0 | P9: =IF(様式３!O10="","",様式３!O10) -> 
A10: 2 | B10: =IF(E10="","",B9+1) ->  | C10: =IF(様式３!B11="","",様式３!B11) ->  | D10: =IF(様式３!C11="","",様式３!C11) ->  | E10: =IF(様式３!D11="","",様式３!D11) ->  | F10: =IF(様式３!E11="","",様式３!E11) ->  | G10: =IF(様式３!F11="","",様式３!F11) -> ・ | H10: =IF(様式３!G11="","",様式３!G11) ->  | I10: =IF(様式３!H11="","",様式３!H11) -> ・ | J10: =IF(様式３!I11="","",様式３!I11) ->  | K10: =IF(様式３!J11="","",様式３!J11) -> 0 | L10: =IF(様式３!K11="","",様式３!K11) -> 0 | M10: =IF(様式３!L11="","",様式３!L11) -> 0 | N10: =IF(様式３!M11="","",様式３!M11) -> 0 | O10: =IF(様式３!N11="","",様式３!N11) -> 0 | P10: =IF(様式３!O11="","",様式３!O11) -> 
A11: 3 | B11: =IF(E11="","",B10+1) ->  | C11: =IF(様式３!B12="","",様式３!B12) ->  | D11: =IF(様式３!C12="","",様式３!C12) ->  | E11: =IF(様式３!D12="","",様式３!D12) ->  | F11: =IF(様式３!E12="","",様式３!E12) ->  | G11: =IF(様式３!F12="","",様式３!F12) -> ・ | H11: =IF(様式３!G12="","",様式３!G12) ->  | I11: =IF(様式３!H12="","",様式３!H12) -> ・ | J11: =IF(様式３!I12="","",様式３!I12) ->  | K11: =IF(様式３!J12="","",様式３!J12) -> 0 | L11: =IF(様式３!K12="","",様式３!K12) -> 0 | M11: =IF(様式３!L12="","",様式３!L12) -> 0 | N11: =IF(様式３!M12="","",様式３!M12) -> 0 | O11: =IF(様式３!N12="","",様式３!N12) -> 0 | P11: =IF(様式３!O12="","",様式３!O12) -> 
A12: 4 | C12: =IF(様式３!B13="","",様式３!B13) ->  | D12: =IF(様式３!C13="","",様式３!C13) ->  | E12: =IF(様式３!D13="","",様式３!D13) ->  | F12: =IF(様式３!E13="","",様式３!E13) ->  | G12: =IF(様式３!F13="","",様式３!F13) -> ・ | H12: =IF(様式３!G13="","",様式３!G13) ->  | I12: =IF(様式３!H13="","",様式３!H13) -> ・ | J12: =IF(様式３!I13="","",様式３!I13) ->  | K12: =IF(様式３!J13="","",様式３!J13) -> 0 | L12: =IF(様式３!K13="","",様式３!K13) -> 0 | M12: =IF(様式３!L13="","",様式３!L13) -> 0 | N12: =IF(様式３!M13="","",様式３!M13) -> 0 | O12: =IF(様式３!N13="","",様式３!N13) -> 0 | P12: =IF(様式３!O13="","",様式３!O13) -> 
A13: 5 | C13: =IF(様式３!B14="","",様式３!B14) ->  | D13: =IF(様式３!C14="","",様式３!C14) ->  | E13: =IF(様式３!D14="","",様式３!D14) ->  | F13: =IF(様式３!E14="","",様式３!E14) ->  | G13: =IF(様式３!F14="","",様式３!F14) -> ・ | H13: =IF(様式３!G14="","",様式３!G14) ->  | I13: =IF(様式３!H14="","",様式３!H14) -> ・ | J13: =IF(様式３!I14="","",様式３!I14) ->  | K13: =IF(様式３!J14="","",様式３!J14) -> 0 | L13: =IF(様式３!K14="","",様式３!K14) -> 0 | M13: =IF(様式３!L14="","",様式３!L14) -> 0 | N13: =IF(様式３!M14="","",様式３!M14) -> 0 | O13: =IF(様式３!N14="","",様式３!N14) -> 0 | P13: =IF(様式３!O14="","",様式３!O14) -> 
A14: 6 | C14: =IF(様式３!B15="","",様式３!B15) ->  | D14: =IF(様式３!C15="","",様式３!C15) ->  | E14: =IF(様式３!D15="","",様式３!D15) ->  | F14: =IF(様式３!E15="","",様式３!E15) ->  | G14: =IF(様式３!F15="","",様式３!F15) -> ・ | H14: =IF(様式３!G15="","",様式３!G15) ->  | I14: =IF(様式３!H15="","",様式３!H15) -> ・ | J14: =IF(様式３!I15="","",様式３!I15) ->  | K14: =IF(様式３!J15="","",様式３!J15) -> 0 | L14: =IF(様式３!K15="","",様式３!K15) -> 0 | M14: =IF(様式３!L15="","",様式３!L15) -> 0 | N14: =IF(様式３!M15="","",様式３!M15) -> 0 | O14: =IF(様式３!N15="","",様式３!N15) -> 0 | P14: =IF(様式３!O15="","",様式３!O15) -> 
A15: 7 | C15: =IF(様式３!B16="","",様式３!B16) ->  | D15: =IF(様式３!C16="","",様式３!C16) ->  | E15: =IF(様式３!D16="","",様式３!D16) ->  | F15: =IF(様式３!E16="","",様式３!E16) ->  | G15: =IF(様式３!F16="","",様式３!F16) -> ・ | H15: =IF(様式３!G16="","",様式３!G16) ->  | I15: =IF(様式３!H16="","",様式３!H16) -> ・ | J15: =IF(様式３!I16="","",様式３!I16) ->  | K15: =IF(様式３!J16="","",様式３!J16) -> 0 | L15: =IF(様式３!K16="","",様式３!K16) -> 0 | M15: =IF(様式３!L16="","",様式３!L16) -> 0 | N15: =IF(様式３!M16="","",様式３!M16) -> 0 | O15: =IF(様式３!N16="","",様式３!N16) -> 0 | P15: =IF(様式３!O16="","",様式３!O16) -> 
A16: 8 | C16: =IF(様式３!B17="","",様式３!B17) ->  | D16: =IF(様式３!C17="","",様式３!C17) ->  | E16: =IF(様式３!D17="","",様式３!D17) ->  | F16: =IF(様式３!E17="","",様式３!E17) ->  | G16: =IF(様式３!F17="","",様式３!F17) -> ・ | H16: =IF(様式３!G17="","",様式３!G17) ->  | I16: =IF(様式３!H17="","",様式３!H17) -> ・ | J16: =IF(様式３!I17="","",様式３!I17) ->  | K16: =IF(様式３!J17="","",様式３!J17) -> 0 | L16: =IF(様式３!K17="","",様式３!K17) -> 0 | M16: =IF(様式３!L17="","",様式３!L17) -> 0 | N16: =IF(様式３!M17="","",様式３!M17) -> 0 | O16: =IF(様式３!N17="","",様式３!N17) -> 0 | P16: =IF(様式３!O17="","",様式３!O17) -> 
A17: 9 | C17: =IF(様式３!B18="","",様式３!B18) ->  | D17: =IF(様式３!C18="","",様式３!C18) ->  | E17: =IF(様式３!D18="","",様式３!D18) ->  | F17: =IF(様式３!E18="","",様式３!E18) ->  | G17: =IF(様式３!F18="","",様式３!F18) -> ・ | H17: =IF(様式３!G18="","",様式３!G18) ->  | I17: =IF(様式３!H18="","",様式３!H18) -> ・ | J17: =IF(様式３!I18="","",様式３!I18) ->  | K17: =IF(様式３!J18="","",様式３!J18) -> 0 | L17: =IF(様式３!K18="","",様式３!K18) -> 0 | M17: =IF(様式３!L18="","",様式３!L18) -> 0 | N17: =IF(様式３!M18="","",様式３!M18) -> 0 | O17: =IF(様式３!N18="","",様式３!N18) -> 0 | P17: =IF(様式３!O18="","",様式３!O18) -> 
A18: 10 | C18: =IF(様式３!B19="","",様式３!B19) ->  | D18: =IF(様式３!C19="","",様式３!C19) ->  | E18: =IF(様式３!D19="","",様式３!D19) ->  | F18: =IF(様式３!E19="","",様式３!E19) ->  | G18: =IF(様式３!F19="","",様式３!F19) -> ・ | H18: =IF(様式３!G19="","",様式３!G19) ->  | I18: =IF(様式３!H19="","",様式３!H19) -> ・ | J18: =IF(様式３!I19="","",様式３!I19) ->  | K18: =IF(様式３!J19="","",様式３!J19) -> 0 | L18: =IF(様式３!K19="","",様式３!K19) -> 0 | M18: =IF(様式３!L19="","",様式３!L19) -> 0 | N18: =IF(様式３!M19="","",様式３!M19) -> 0 | O18: =IF(様式３!N19="","",様式３!N19) -> 0 | P18: =IF(様式３!O19="","",様式３!O19) -> 
A19: 11 | C19: =IF(様式３!B20="","",様式３!B20) ->  | D19: =IF(様式３!C20="","",様式３!C20) ->  | E19: =IF(様式３!D20="","",様式３!D20) ->  | F19: =IF(様式３!E20="","",様式３!E20) ->  | G19: =IF(様式３!F20="","",様式３!F20) -> ・ | H19: =IF(様式３!G20="","",様式３!G20) ->  | I19: =IF(様式３!H20="","",様式３!H20) -> ・ | J19: =IF(様式３!I20="","",様式３!I20) ->  | K19: =IF(様式３!J20="","",様式３!J20) -> 0 | L19: =IF(様式３!K20="","",様式３!K20) -> 0 | M19: =IF(様式３!L20="","",様式３!L20) -> 0 | N19: =IF(様式３!M20="","",様式３!M20) -> 0 | O19: =IF(様式３!N20="","",様式３!N20) -> 0 | P19: =IF(様式３!O20="","",様式３!O20) -> 
A20: 12 | C20: =IF(様式３!B21="","",様式３!B21) ->  | D20: =IF(様式３!C21="","",様式３!C21) ->  | E20: =IF(様式３!D21="","",様式３!D21) ->  | F20: =IF(様式３!E21="","",様式３!E21) ->  | G20: =IF(様式３!F21="","",様式３!F21) -> ・ | H20: =IF(様式３!G21="","",様式３!G21) ->  | I20: =IF(様式３!H21="","",様式３!H21) -> ・ | J20: =IF(様式３!I21="","",様式３!I21) ->  | K20: =IF(様式３!J21="","",様式３!J21) -> 0 | L20: =IF(様式３!K21="","",様式３!K21) -> 0 | M20: =IF(様式３!L21="","",様式３!L21) -> 0 | N20: =IF(様式３!M21="","",様式３!M21) -> 0 | O20: =IF(様式３!N21="","",様式３!N21) -> 0 | P20: =IF(様式３!O21="","",様式３!O21) -> 
A21: 13 | C21: =IF(様式３!B22="","",様式３!B22) ->  | D21: =IF(様式３!C22="","",様式３!C22) ->  | E21: =IF(様式３!D22="","",様式３!D22) ->  | F21: =IF(様式３!E22="","",様式３!E22) ->  | G21: =IF(様式３!F22="","",様式３!F22) -> ・ | H21: =IF(様式３!G22="","",様式３!G22) ->  | I21: =IF(様式３!H22="","",様式３!H22) -> ・ | J21: =IF(様式３!I22="","",様式３!I22) ->  | K21: =IF(様式３!J22="","",様式３!J22) -> 0 | L21: =IF(様式３!K22="","",様式３!K22) -> 0 | M21: =IF(様式３!L22="","",様式３!L22) -> 0 | N21: =IF(様式３!M22="","",様式３!M22) -> 0 | O21: =IF(様式３!N22="","",様式３!N22) -> 0 | P21: =IF(様式３!O22="","",様式３!O22) -> 
A22: 14 | C22: =IF(様式３!B23="","",様式３!B23) ->  | D22: =IF(様式３!C23="","",様式３!C23) ->  | E22: =IF(様式３!D23="","",様式３!D23) ->  | F22: =IF(様式３!E23="","",様式３!E23) ->  | G22: =IF(様式３!F23="","",様式３!F23) -> ・ | H22: =IF(様式３!G23="","",様式３!G23) ->  | I22: =IF(様式３!H23="","",様式３!H23) -> ・ | J22: =IF(様式３!I23="","",様式３!I23) ->  | K22: =IF(様式３!J23="","",様式３!J23) -> 0 | L22: =IF(様式３!K23="","",様式３!K23) -> 0 | M22: =IF(様式３!L23="","",様式３!L23) -> 0 | N22: =IF(様式３!M23="","",様式３!M23) -> 0 | O22: =IF(様式３!N23="","",様式３!N23) -> 0 | P22: =IF(様式３!O23="","",様式３!O23) -> 
A23: 15 | C23: =IF(様式３!B24="","",様式３!B24) ->  | D23: =IF(様式３!C24="","",様式３!C24) ->  | E23: =IF(様式３!D24="","",様式３!D24) ->  | F23: =IF(様式３!E24="","",様式３!E24) ->  | G23: =IF(様式３!F24="","",様式３!F24) -> ・ | H23: =IF(様式３!G24="","",様式３!G24) ->  | I23: =IF(様式３!H24="","",様式３!H24) -> ・ | J23: =IF(様式３!I24="","",様式３!I24) ->  | K23: =IF(様式３!J24="","",様式３!J24) -> 0 | L23: =IF(様式３!K24="","",様式３!K24) -> 0 | M23: =IF(様式３!L24="","",様式３!L24) -> 0 | N23: =IF(様式３!M24="","",様式３!M24) -> 0 | O23: =IF(様式３!N24="","",様式３!N24) -> 0 | P23: =IF(様式３!O24="","",様式３!O24) -> 
B24: ※１ 学科の欄には、大学科名を記入する。
B25: ※２ 資格・試験等ランクの欄には、取得個数を記入する。
B26: ※３ 得点合計欄には、得点の合計を記入する。
B28: （様式６） | H28: （令和 | J28: =+J1 -> 0 | K28: 年度 | M28: =+M1 -> 0 | N28: 枚中 | O28: =+O1+1 -> 2 | P28: 枚目）
B30: 埼玉県高校生専門資格等取得表彰証書発行台帳
F31: 学 校 名 | I31: =+I4 -> 0 | O31: 学校
F32: 発行年月日 令和 | K32: =+K5 -> 0 | L32: 年 | M32: =+M5 -> 0 | N32: 月 | O32: =+O5 -> 0 | P32: 日
B33: 発行番号 | C33: 学年 | D33: 学科 | E33: 整理番号 | F33: 生 年 月 日 | K33: 資格・試験等ﾗﾝｸ | O33: 得点 合計 | P33: 備考
K34: A | L34: B | M34: C | N34: D
K35: 6 | L35: 3 | M35: 2 | N35: 1
A36: 1 | B36: =IF(E36="","",B23+1) ->  | C36: =IF(様式３!B40="","",様式３!B40) ->  | D36: =IF(様式３!C40="","",様式３!C40) ->  | E36: =IF(様式３!D40="","",様式３!D40) ->  | F36: =IF(様式３!E40="","",様式３!E40) ->  | G36: =IF(様式３!F40="","",様式３!F40) -> ・ | H36: =IF(様式３!G40="","",様式３!G40) ->  | I36: =IF(様式３!H40="","",様式３!H40) -> ・ | J36: =IF(様式３!I40="","",様式３!I40) ->  | K36: =IF(様式３!J40="","",様式３!J40) -> 0 | L36: =IF(様式３!K40="","",様式３!K40) -> 0 | M36: =IF(様式３!L40="","",様式３!L40) -> 0 | N36: =IF(様式３!M40="","",様式３!M40) -> 0 | O36: =IF(様式３!N40="","",様式３!N40) -> 0 | P36: =IF(様式３!O40="","",様式３!O40) -> 
A37: 2 | B37: =IF(E37="","",B36+1) ->  | C37: =IF(様式３!B41="","",様式３!B41) ->  | D37: =IF(様式３!C41="","",様式３!C41) ->  | E37: =IF(様式３!D41="","",様式３!D41) ->  | F37: =IF(様式３!E41="","",様式３!E41) ->  | G37: =IF(様式３!F41="","",様式３!F41) -> ・ | H37: =IF(様式３!G41="","",様式３!G41) ->  | I37: =IF(様式３!H41="","",様式３!H41) -> ・ | J37: =IF(様式３!I41="","",様式３!I41) ->  | K37: =IF(様式３!J41="","",様式３!J41) -> 0 | L37: =IF(様式３!K41="","",様式３!K41) -> 0 | M37: =IF(様式３!L41="","",様式３!L41) -> 0 | N37: =IF(様式３!M41="","",様式３!M41) -> 0 | O37: =IF(様式３!N41="","",様式３!N41) -> 0 | P37: =IF(様式３!O41="","",様式３!O41) -> 
A38: 3 | C38: =IF(様式３!B42="","",様式３!B42) ->  | D38: =IF(様式３!C42="","",様式３!C42) ->  | E38: =IF(様式３!D42="","",様式３!D42) ->  | F38: =IF(様式３!E42="","",様式３!E42) ->  | G38: =IF(様式３!F42="","",様式３!F42) -> ・ | H38: =IF(様式３!G42="","",様式３!G42) ->  | I38: =IF(様式３!H42="","",様式３!H42) -> ・ | J38: =IF(様式３!I42="","",様式３!I42) ->  | K38: =IF(様式３!J42="","",様式３!J42) -> 0 | L38: =IF(様式３!K42="","",様式３!K42) -> 0 | M38: =IF(様式３!L42="","",様式３!L42) -> 0 | N38: =IF(様式３!M42="","",様式３!M42) -> 0 | O38: =IF(様式３!N42="","",様式３!N42) -> 0 | P38: =IF(様式３!O42="","",様式３!O42) -> 
A39: 4 | C39: =IF(様式３!B43="","",様式３!B43) ->  | D39: =IF(様式３!C43="","",様式３!C43) ->  | E39: =IF(様式３!D43="","",様式３!D43) ->  | F39: =IF(様式３!E43="","",様式３!E43) ->  | G39: =IF(様式３!F43="","",様式３!F43) -> ・ | H39: =IF(様式３!G43="","",様式３!G43) ->  | I39: =IF(様式３!H43="","",様式３!H43) -> ・ | J39: =IF(様式３!I43="","",様式３!I43) ->  | K39: =IF(様式３!J43="","",様式３!J43) -> 0 | L39: =IF(様式３!K43="","",様式３!K43) -> 0 | M39: =IF(様式３!L43="","",様式３!L43) -> 0 | N39: =IF(様式３!M43="","",様式３!M43) -> 0 | O39: =IF(様式３!N43="","",様式３!N43) -> 0 | P39: =IF(様式３!O43="","",様式３!O43) -> 
A40: 5 | C40: =IF(様式３!B44="","",様式３!B44) ->  | D40: =IF(様式３!C44="","",様式３!C44) ->  | E40: =IF(様式３!D44="","",様式３!D44) ->  | F40: =IF(様式３!E44="","",様式３!E44) ->  | G40: =IF(様式３!F44="","",様式３!F44) -> ・ | H40: =IF(様式３!G44="","",様式３!G44) ->  | I40: =IF(様式３!H44="","",様式３!H44) -> ・ | J40: =IF(様式３!I44="","",様式３!I44) ->  | K40: =IF(様式３!J44="","",様式３!J44) -> 0 | L40: =IF(様式３!K44="","",様式３!K44) -> 0 | M40: =IF(様式３!L44="","",様式３!L44) -> 0 | N40: =IF(様式３!M44="","",様式３!M44) -> 0 | O40: =IF(様式３!N44="","",様式３!N44) -> 0 | P40: =IF(様式３!O44="","",様式３!O44) -> 
A41: 6 | C41: =IF(様式３!B45="","",様式３!B45) ->  | D41: =IF(様式３!C45="","",様式３!C45) ->  | E41: =IF(様式３!D45="","",様式３!D45) ->  | F41: =IF(様式３!E45="","",様式３!E45) ->  | G41: =IF(様式３!F45="","",様式３!F45) -> ・ | H41: =IF(様式３!G45="","",様式３!G45) ->  | I41: =IF(様式３!H45="","",様式３!H45) -> ・ | J41: =IF(様式３!I45="","",様式３!I45) ->  | K41: =IF(様式３!J45="","",様式３!J45) -> 0 | L41: =IF(様式３!K45="","",様式３!K45) -> 0 | M41: =IF(様式３!L45="","",様式３!L45) -> 0 | N41: =IF(様式３!M45="","",様式３!M45) -> 0 | O41: =IF(様式３!N45="","",様式３!N45) -> 0 | P41: =IF(様式３!O45="","",様式３!O45) -> 
A42: 7 | C42: =IF(様式３!B46="","",様式３!B46) ->  | D42: =IF(様式３!C46="","",様式３!C46) ->  | E42: =IF(様式３!D46="","",様式３!D46) ->  | F42: =IF(様式３!E46="","",様式３!E46) ->  | G42: =IF(様式３!F46="","",様式３!F46) -> ・ | H42: =IF(様式３!G46="","",様式３!G46) ->  | I42: =IF(様式３!H46="","",様式３!H46) -> ・ | J42: =IF(様式３!I46="","",様式３!I46) ->  | K42: =IF(様式３!J46="","",様式３!J46) -> 0 | L42: =IF(様式３!K46="","",様式３!K46) -> 0 | M42: =IF(様式３!L46="","",様式３!L46) -> 0 | N42: =IF(様式３!M46="","",様式３!M46) -> 0 | O42: =IF(様式３!N46="","",様式３!N46) -> 0 | P42: =IF(様式３!O46="","",様式３!O46) -> 
A43: 8 | C43: =IF(様式３!B47="","",様式３!B47) ->  | D43: =IF(様式３!C47="","",様式３!C47) ->  | E43: =IF(様式３!D47="","",様式３!D47) ->  | F43: =IF(様式３!E47="","",様式３!E47) ->  | G43: =IF(様式３!F47="","",様式３!F47) -> ・ | H43: =IF(様式３!G47="","",様式３!G47) ->  | I43: =IF(様式３!H47="","",様式３!H47) -> ・ | J43: =IF(様式３!I47="","",様式３!I47) ->  | K43: =IF(様式３!J47="","",様式３!J47) -> 0 | L43: =IF(様式３!K47="","",様式３!K47) -> 0 | M43: =IF(様式３!L47="","",様式３!L47) -> 0 | N43: =IF(様式３!M47="","",様式３!M47) -> 0 | O43: =IF(様式３!N47="","",様式３!N47) -> 0 | P43: =IF(様式３!O47="","",様式３!O47) -> 
A44: 9 | C44: =IF(様式３!B48="","",様式３!B48) ->  | D44: =IF(様式３!C48="","",様式３!C48) ->  | E44: =IF(様式３!D48="","",様式３!D48) ->  | F44: =IF(様式３!E48="","",様式３!E48) ->  | G44: =IF(様式３!F48="","",様式３!F48) -> ・ | H44: =IF(様式３!G48="","",様式３!G48) ->  | I44: =IF(様式３!H48="","",様式３!H48) -> ・ | J44: =IF(様式３!I48="","",様式３!I48) ->  | K44: =IF(様式３!J48="","",様式３!J48) -> 0 | L44: =IF(様式３!K48="","",様式３!K48) -> 0 | M44: =IF(様式３!L48="","",様式３!L48) -> 0 | N44: =IF(様式３!M48="","",様式３!M48) -> 0 | O44: =IF(様式３!N48="","",様式３!N48) -> 0 | P44: =IF(様式３!O48="","",様式３!O48) -> 
A45: 10 | C45: =IF(様式３!B49="","",様式３!B49) ->  | D45: =IF(様式３!C49="","",様式３!C49) ->  | E45: =IF(様式３!D49="","",様式３!D49) ->  | F45: =IF(様式３!E49="","",様式３!E49) ->  | G45: =IF(様式３!F49="","",様式３!F49) -> ・ | H45: =IF(様式３!G49="","",様式３!G49) ->  | I45: =IF(様式３!H49="","",様式３!H49) -> ・ | J45: =IF(様式３!I49="","",様式３!I49) ->  | K45: =IF(様式３!J49="","",様式３!J49) -> 0 | L45: =IF(様式３!K49="","",様式３!K49) -> 0 | M45: =IF(様式３!L49="","",様式３!L49) -> 0 | N45: =IF(様式３!M49="","",様式３!M49) -> 0 | O45: =IF(様式３!N49="","",様式３!N49) -> 0 | P45: =IF(様式３!O49="","",様式３!O49) -> 
A46: 11 | C46: =IF(様式３!B50="","",様式３!B50) ->  | D46: =IF(様式３!C50="","",様式３!C50) ->  | E46: =IF(様式３!D50="","",様式３!D50) ->  | F46: =IF(様式３!E50="","",様式３!E50) ->  | G46: =IF(様式３!F50="","",様式３!F50) -> ・ | H46: =IF(様式３!G50="","",様式３!G50) ->  | I46: =IF(様式３!H50="","",様式３!H50) -> ・ | J46: =IF(様式３!I50="","",様式３!I50) ->  | K46: =IF(様式３!J50="","",様式３!J50) -> 0 | L46: =IF(様式３!K50="","",様式３!K50) -> 0 | M46: =IF(様式３!L50="","",様式３!L50) -> 0 | N46: =IF(様式３!M50="","",様式３!M50) -> 0 | O46: =IF(様式３!N50="","",様式３!N50) -> 0 | P46: =IF(様式３!O50="","",様式３!O50) -> 
A47: 12 | C47: =IF(様式３!B51="","",様式３!B51) ->  | D47: =IF(様式３!C51="","",様式３!C51) ->  | E47: =IF(様式３!D51="","",様式３!D51) ->  | F47: =IF(様式３!E51="","",様式３!E51) ->  | G47: =IF(様式３!F51="","",様式３!F51) -> ・ | H47: =IF(様式３!G51="","",様式３!G51) ->  | I47: =IF(様式３!H51="","",様式３!H51) -> ・ | J47: =IF(様式３!I51="","",様式３!I51) ->  | K47: =IF(様式３!J51="","",様式３!J51) -> 0 | L47: =IF(様式３!K51="","",様式３!K51) -> 0 | M47: =IF(様式３!L51="","",様式３!L51) -> 0 | N47: =IF(様式３!M51="","",様式３!M51) -> 0 | O47: =IF(様式３!N51="","",様式３!N51) -> 0 | P47: =IF(様式３!O51="","",様式３!O51) -> 
A48: 13 | C48: =IF(様式３!B52="","",様式３!B52) ->  | D48: =IF(様式３!C52="","",様式３!C52) ->  | E48: =IF(様式３!D52="","",様式３!D52) ->  | F48: =IF(様式３!E52="","",様式３!E52) ->  | G48: =IF(様式３!F52="","",様式３!F52) -> ・ | H48: =IF(様式３!G52="","",様式３!G52) ->  | I48: =IF(様式３!H52="","",様式３!H52) -> ・ | J48: =IF(様式３!I52="","",様式３!I52) ->  | K48: =IF(様式３!J52="","",様式３!J52) -> 0 | L48: =IF(様式３!K52="","",様式３!K52) -> 0 | M48: =IF(様式３!L52="","",様式３!L52) -> 0 | N48: =IF(様式３!M52="","",様式３!M52) -> 0 | O48: =IF(様式３!N52="","",様式３!N52) -> 0 | P48: =IF(様式３!O52="","",様式３!O52) -> 
A49: 14 | C49: =IF(様式３!B53="","",様式３!B53) ->  | D49: =IF(様式３!C53="","",様式３!C53) ->  | E49: =IF(様式３!D53="","",様式３!D53) ->  | F49: =IF(様式３!E53="","",様式３!E53) ->  | G49: =IF(様式３!F53="","",様式３!F53) -> ・ | H49: =IF(様式３!G53="","",様式３!G53) ->  | I49: =IF(様式３!H53="","",様式３!H53) -> ・ | J49: =IF(様式３!I53="","",様式３!I53) ->  | K49: =IF(様式３!J53="","",様式３!J53) -> 0 | L49: =IF(様式３!K53="","",様式３!K53) -> 0 | M49: =IF(様式３!L53="","",様式３!L53) -> 0 | N49: =IF(様式３!M53="","",様式３!M53) -> 0 | O49: =IF(様式３!N53="","",様式３!N53) -> 0 | P49: =IF(様式３!O53="","",様式３!O53) -> 
A50: 15 | C50: =IF(様式３!B54="","",様式３!B54) ->  | D50: =IF(様式３!C54="","",様式３!C54) ->  | E50: =IF(様式３!D54="","",様式３!D54) ->  | F50: =IF(様式３!E54="","",様式３!E54) ->  | G50: =IF(様式３!F54="","",様式３!F54) -> ・ | H50: =IF(様式３!G54="","",様式３!G54) ->  | I50: =IF(様式３!H54="","",様式３!H54) -> ・ | J50: =IF(様式３!I54="","",様式３!I54) ->  | K50: =IF(様式３!J54="","",様式３!J54) -> 0 | L50: =IF(様式３!K54="","",様式３!K54) -> 0 | M50: =IF(様式３!L54="","",様式３!L54) -> 0 | N50: =IF(様式３!M54="","",様式３!M54) -> 0 | O50: =IF(様式３!N54="","",様式３!N54) -> 0 | P50: =IF(様式３!O54="","",様式３!O54) -> 
B51: =B24 -> ※１ 学科の欄には、大学科名を記入する。
B52: =B25 -> ※２ 資格・試験等ランクの欄には、取得個数を記入する。
B53: =B26 -> ※３ 得点合計欄には、得点の合計を記入する。
B55: （様式６） | H55: （令和 | J55: =+J28 -> 0 | K55: 年度 | M55: =+M28 -> 0 | N55: 枚中 | O55: =+O28+1 -> 3 | P55: 枚目）
B57: 埼玉県高校生専門資格等取得表彰証書発行台帳
F58: 学 校 名 | I58: =+I31 -> 0 | O58: 学校
F59: 発行年月日 令和 | K59: =+K32 -> 0 | L59: 年 | M59: =+M32 -> 0 | N59: 月 | O59: =+O32 -> 0 | P59: 日
B60: 発行番号 | C60: 学年 | D60: 学科 | E60: 整理番号 | F60: 生 年 月 日 | K60: 資格・試験等ﾗﾝｸ | O60: 得点 合計 | P60: 備考
K61: A | L61: B | M61: C | N61: D
K62: 6 | L62: 3 | M62: 2 | N62: 1
A63: 1 | B63: =IF(E63="","",B50+1) ->  | C63: =IF(様式３!B70="","",様式３!B70) ->  | D63: =IF(様式３!C70="","",様式３!C70) ->  | E63: =IF(様式３!D70="","",様式３!D70) ->  | F63: =IF(様式３!E70="","",様式３!E70) ->  | G63: =IF(様式３!F70="","",様式３!F70) -> ・ | H63: =IF(様式３!G70="","",様式３!G70) ->  | I63: =IF(様式３!H70="","",様式３!H70) -> ・ | J63: =IF(様式３!I70="","",様式３!I70) ->  | K63: =IF(様式３!J70="","",様式３!J70) -> 0 | L63: =IF(様式３!K70="","",様式３!K70) -> 0 | M63: =IF(様式３!L70="","",様式３!L70) -> 0 | N63: =IF(様式３!M70="","",様式３!M70) -> 0 | O63: =IF(様式３!N70="","",様式３!N70) -> 0 | P63: =IF(様式３!O70="","",様式３!O70) -> 
A64: 2 | B64: =IF(E64="","",B63+1) ->  | C64: =IF(様式３!B71="","",様式３!B71) ->  | D64: =IF(様式３!C71="","",様式３!C71) ->  | E64: =IF(様式３!D71="","",様式３!D71) ->  | F64: =IF(様式３!E71="","",様式３!E71) ->  | G64: =IF(様式３!F71="","",様式３!F71) -> ・ | H64: =IF(様式３!G71="","",様式３!G71) ->  | I64: =IF(様式３!H71="","",様式３!H71) -> ・ | J64: =IF(様式３!I71="","",様式３!I71) ->  | K64: =IF(様式３!J71="","",様式３!J71) -> 0 | L64: =IF(様式３!K71="","",様式３!K71) -> 0 | M64: =IF(様式３!L71="","",様式３!L71) -> 0 | N64: =IF(様式３!M71="","",様式３!M71) -> 0 | O64: =IF(様式３!N71="","",様式３!N71) -> 0 | P64: =IF(様式３!O71="","",様式３!O71) -> 
A65: 3 | C65: =IF(様式３!B72="","",様式３!B72) ->  | D65: =IF(様式３!C72="","",様式３!C72) ->  | E65: =IF(様式３!D72="","",様式３!D72) ->  | F65: =IF(様式３!E72="","",様式３!E72) ->  | G65: =IF(様式３!F72="","",様式３!F72) -> ・ | H65: =IF(様式３!G72="","",様式３!G72) ->  | I65: =IF(様式３!H72="","",様式３!H72) -> ・ | J65: =IF(様式３!I72="","",様式３!I72) ->  | K65: =IF(様式３!J72="","",様式３!J72) -> 0 | L65: =IF(様式３!K72="","",様式３!K72) -> 0 | M65: =IF(様式３!L72="","",様式３!L72) -> 0 | N65: =IF(様式３!M72="","",様式３!M72) -> 0 | O65: =IF(様式３!N72="","",様式３!N72) -> 0 | P65: =IF(様式３!O72="","",様式３!O72) -> 
A66: 4 | C66: =IF(様式３!B73="","",様式３!B73) ->  | D66: =IF(様式３!C73="","",様式３!C73) ->  | E66: =IF(様式３!D73="","",様式３!D73) ->  | F66: =IF(様式３!E73="","",様式３!E73) ->  | G66: =IF(様式３!F73="","",様式３!F73) -> ・ | H66: =IF(様式３!G73="","",様式３!G73) ->  | I66: =IF(様式３!H73="","",様式３!H73) -> ・ | J66: =IF(様式３!I73="","",様式３!I73) ->  | K66: =IF(様式３!J73="","",様式３!J73) -> 0 | L66: =IF(様式３!K73="","",様式３!K73) -> 0 | M66: =IF(様式３!L73="","",様式３!L73) -> 0 | N66: =IF(様式３!M73="","",様式３!M73) -> 0 | O66: =IF(様式３!N73="","",様式３!N73) -> 0 | P66: =IF(様式３!O73="","",様式３!O73) -> 
A67: 5 | C67: =IF(様式３!B74="","",様式３!B74) ->  | D67: =IF(様式３!C74="","",様式３!C74) ->  | E67: =IF(様式３!D74="","",様式３!D74) ->  | F67: =IF(様式３!E74="","",様式３!E74) ->  | G67: =IF(様式３!F74="","",様式３!F74) -> ・ | H67: =IF(様式３!G74="","",様式３!G74) ->  | I67: =IF(様式３!H74="","",様式３!H74) -> ・ | J67: =IF(様式３!I74="","",様式３!I74) ->  | K67: =IF(様式３!J74="","",様式３!J74) -> 0 | L67: =IF(様式３!K74="","",様式３!K74) -> 0 | M67: =IF(様式３!L74="","",様式３!L74) -> 0 | N67: =IF(様式３!M74="","",様式３!M74) -> 0 | O67: =IF(様式３!N74="","",様式３!N74) -> 0 | P67: =IF(様式３!O74="","",様式３!O74) -> 
A68: 6 | C68: =IF(様式３!B75="","",様式３!B75) ->  | D68: =IF(様式３!C75="","",様式３!C75) ->  | E68: =IF(様式３!D75="","",様式３!D75) ->  | F68: =IF(様式３!E75="","",様式３!E75) ->  | G68: =IF(様式３!F75="","",様式３!F75) -> ・ | H68: =IF(様式３!G75="","",様式３!G75) ->  | I68: =IF(様式３!H75="","",様式３!H75) -> ・ | J68: =IF(様式３!I75="","",様式３!I75) ->  | K68: =IF(様式３!J75="","",様式３!J75) -> 0 | L68: =IF(様式３!K75="","",様式３!K75) -> 0 | M68: =IF(様式３!L75="","",様式３!L75) -> 0 | N68: =IF(様式３!M75="","",様式３!M75) -> 0 | O68: =IF(様式３!N75="","",様式３!N75) -> 0 | P68: =IF(様式３!O75="","",様式３!O75) -> 
A69: 7 | C69: =IF(様式３!B76="","",様式３!B76) ->  | D69: =IF(様式３!C76="","",様式３!C76) ->  | E69: =IF(様式３!D76="","",様式３!D76) ->  | F69: =IF(様式３!E76="","",様式３!E76) ->  | G69: =IF(様式３!F76="","",様式３!F76) -> ・ | H69: =IF(様式３!G76="","",様式３!G76) ->  | I69: =IF(様式３!H76="","",様式３!H76) -> ・ | J69: =IF(様式３!I76="","",様式３!I76) ->  | K69: =IF(様式３!J76="","",様式３!J76) -> 0 | L69: =IF(様式３!K76="","",様式３!K76) -> 0 | M69: =IF(様式３!L76="","",様式３!L76) -> 0 | N69: =IF(様式３!M76="","",様式３!M76) -> 0 | O69: =IF(様式３!N76="","",様式３!N76) -> 0 | P69: =IF(様式３!O76="","",様式３!O76) -> 
A70: 8 | C70: =IF(様式３!B77="","",様式３!B77) ->  | D70: =IF(様式３!C77="","",様式３!C77) ->  | E70: =IF(様式３!D77="","",様式３!D77) ->  | F70: =IF(様式３!E77="","",様式３!E77) ->  | G70: =IF(様式３!F77="","",様式３!F77) -> ・ | H70: =IF(様式３!G77="","",様式３!G77) ->  | I70: =IF(様式３!H77="","",様式３!H77) -> ・ | J70: =IF(様式３!I77="","",様式３!I77) ->  | K70: =IF(様式３!J77="","",様式３!J77) -> 0 | L70: =IF(様式３!K77="","",様式３!K77) -> 0 | M70: =IF(様式３!L77="","",様式３!L77) -> 0 | N70: =IF(様式３!M77="","",様式３!M77) -> 0 | O70: =IF(様式３!N77="","",様式３!N77) -> 0 | P70: =IF(様式３!O77="","",様式３!O77) -> 
A71: 9 | C71: =IF(様式３!B78="","",様式３!B78) ->  | D71: =IF(様式３!C78="","",様式３!C78) ->  | E71: =IF(様式３!D78="","",様式３!D78) ->  | F71: =IF(様式３!E78="","",様式３!E78) ->  | G71: =IF(様式３!F78="","",様式３!F78) -> ・ | H71: =IF(様式３!G78="","",様式３!G78) ->  | I71: =IF(様式３!H78="","",様式３!H78) -> ・ | J71: =IF(様式３!I78="","",様式３!I78) ->  | K71: =IF(様式３!J78="","",様式３!J78) -> 0 | L71: =IF(様式３!K78="","",様式３!K78) -> 0 | M71: =IF(様式３!L78="","",様式３!L78) -> 0 | N71: =IF(様式３!M78="","",様式３!M78) -> 0 | O71: =IF(様式３!N78="","",様式３!N78) -> 0 | P71: =IF(様式３!O78="","",様式３!O78) -> 
A72: 10 | C72: =IF(様式３!B79="","",様式３!B79) ->  | D72: =IF(様式３!C79="","",様式３!C79) ->  | E72: =IF(様式３!D79="","",様式３!D79) ->  | F72: =IF(様式３!E79="","",様式３!E79) ->  | G72: =IF(様式３!F79="","",様式３!F79) -> ・ | H72: =IF(様式３!G79="","",様式３!G79) ->  | I72: =IF(様式３!H79="","",様式３!H79) -> ・ | J72: =IF(様式３!I79="","",様式３!I79) ->  | K72: =IF(様式３!J79="","",様式３!J79) -> 0 | L72: =IF(様式３!K79="","",様式３!K79) -> 0 | M72: =IF(様式３!L79="","",様式３!L79) -> 0 | N72: =IF(様式３!M79="","",様式３!M79) -> 0 | O72: =IF(様式３!N79="","",様式３!N79) -> 0 | P72: =IF(様式３!O79="","",様式３!O79) -> 
A73: 11 | C73: =IF(様式３!B80="","",様式３!B80) ->  | D73: =IF(様式３!C80="","",様式３!C80) ->  | E73: =IF(様式３!D80="","",様式３!D80) ->  | F73: =IF(様式３!E80="","",様式３!E80) ->  | G73: =IF(様式３!F80="","",様式３!F80) -> ・ | H73: =IF(様式３!G80="","",様式３!G80) ->  | I73: =IF(様式３!H80="","",様式３!H80) -> ・ | J73: =IF(様式３!I80="","",様式３!I80) ->  | K73: =IF(様式３!J80="","",様式３!J80) -> 0 | L73: =IF(様式３!K80="","",様式３!K80) -> 0 | M73: =IF(様式３!L80="","",様式３!L80) -> 0 | N73: =IF(様式３!M80="","",様式３!M80) -> 0 | O73: =IF(様式３!N80="","",様式３!N80) -> 0 | P73: =IF(様式３!O80="","",様式３!O80) -> 
A74: 12 | C74: =IF(様式３!B81="","",様式３!B81) ->  | D74: =IF(様式３!C81="","",様式３!C81) ->  | E74: =IF(様式３!D81="","",様式３!D81) ->  | F74: =IF(様式３!E81="","",様式３!E81) ->  | G74: =IF(様式３!F81="","",様式３!F81) -> ・ | H74: =IF(様式３!G81="","",様式３!G81) ->  | I74: =IF(様式３!H81="","",様式３!H81) -> ・ | J74: =IF(様式３!I81="","",様式３!I81) ->  | K74: =IF(様式３!J81="","",様式３!J81) -> 0 | L74: =IF(様式３!K81="","",様式３!K81) -> 0 | M74: =IF(様式３!L81="","",様式３!L81) -> 0 | N74: =IF(様式３!M81="","",様式３!M81) -> 0 | O74: =IF(様式３!N81="","",様式３!N81) -> 0 | P74: =IF(様式３!O81="","",様式３!O81) -> 
A75: 13 | C75: =IF(様式３!B82="","",様式３!B82) ->  | D75: =IF(様式３!C82="","",様式３!C82) ->  | E75: =IF(様式３!D82="","",様式３!D82) ->  | F75: =IF(様式３!E82="","",様式３!E82) ->  | G75: =IF(様式３!F82="","",様式３!F82) -> ・ | H75: =IF(様式３!G82="","",様式３!G82) ->  | I75: =IF(様式３!H82="","",様式３!H82) -> ・ | J75: =IF(様式３!I82="","",様式３!I82) ->  | K75: =IF(様式３!J82="","",様式３!J82) -> 0 | L75: =IF(様式３!K82="","",様式３!K82) -> 0 | M75: =IF(様式３!L82="","",様式３!L82) -> 0 | N75: =IF(様式３!M82="","",様式３!M82) -> 0 | O75: =IF(様式３!N82="","",様式３!N82) -> 0 | P75: =IF(様式３!O82="","",様式３!O82) -> 
A76: 14 | C76: =IF(様式３!B83="","",様式３!B83) ->  | D76: =IF(様式３!C83="","",様式３!C83) ->  | E76: =IF(様式３!D83="","",様式３!D83) ->  | F76: =IF(様式３!E83="","",様式３!E83) ->  | G76: =IF(様式３!F83="","",様式３!F83) -> ・ | H76: =IF(様式３!G83="","",様式３!G83) ->  | I76: =IF(様式３!H83="","",様式３!H83) -> ・ | J76: =IF(様式３!I83="","",様式３!I83) ->  | K76: =IF(様式３!J83="","",様式３!J83) -> 0 | L76: =IF(様式３!K83="","",様式３!K83) -> 0 | M76: =IF(様式３!L83="","",様式３!L83) -> 0 | N76: =IF(様式３!M83="","",様式３!M83) -> 0 | O76: =IF(様式３!N83="","",様式３!N83) -> 0 | P76: =IF(様式３!O83="","",様式３!O83) -> 
A77: 15 | C77: =IF(様式３!B84="","",様式３!B84) ->  | D77: =IF(様式３!C84="","",様式３!C84) ->  | E77: =IF(様式３!D84="","",様式３!D84) ->  | F77: =IF(様式３!E84="","",様式３!E84) ->  | G77: =IF(様式３!F84="","",様式３!F84) -> ・ | H77: =IF(様式３!G84="","",様式３!G84) ->  | I77: =IF(様式３!H84="","",様式３!H84) -> ・ | J77: =IF(様式３!I84="","",様式３!I84) ->  | K77: =IF(様式３!J84="","",様式３!J84) -> 0 | L77: =IF(様式３!K84="","",様式３!K84) -> 0 | M77: =IF(様式３!L84="","",様式３!L84) -> 0 | N77: =IF(様式３!M84="","",様式３!M84) -> 0 | O77: =IF(様式３!N84="","",様式３!N84) -> 0 | P77: =IF(様式３!O84="","",様式３!O84) -> 
B78: =B24 -> ※１ 学科の欄には、大学科名を記入する。
B79: =B25 -> ※２ 資格・試験等ランクの欄には、取得個数を記入する。
B80: =B26 -> ※３ 得点合計欄には、得点の合計を記入する。
B82: （様式６） | H82: （令和 | J82: =+J55 -> 0 | K82: 年度 | M82: =+M55 -> 0 | N82: 枚中 | O82: =+O55+1 -> 4 | P82: 枚目）
B84: 埼玉県高校生専門資格等取得表彰証書発行台帳
F85: 学 校 名 | I85: =+I58 -> 0 | O85: 学校
F86: 発行年月日 令和 | K86: =+K59 -> 0 | L86: 年 | M86: =+M59 -> 0 | N86: 月 | O86: =+O59 -> 0 | P86: 日
B87: 発行番号 | C87: 学年 | D87: 学科 | E87: 整理番号 | F87: 生 年 月 日 | K87: 資格・試験等ﾗﾝｸ | O87: 得点 合計 | P87: 備考
K88: A | L88: B | M88: C | N88: D
K89: 6 | L89: 3 | M89: 2 | N89: 1
A90: 1 | B90: =IF(E90="","",B77+1) ->  | C90: =IF(様式３!B100="","",様式３!B100) ->  | D90: =IF(様式３!C100="","",様式３!C100) ->  | E90: =IF(様式３!D100="","",様式３!D100) ->  | F90: =IF(様式３!E100="","",様式３!E100) ->  | G90: =IF(様式３!F100="","",様式３!F100) -> ・ | H90: =IF(様式３!G100="","",様式３!G100) ->  | I90: =IF(様式３!H100="","",様式３!H100) -> ・ | J90: =IF(様式３!I100="","",様式３!I100) ->  | K90: =IF(様式３!J100="","",様式３!J100) -> 0 | L90: =IF(様式３!K100="","",様式３!K100) -> 0 | M90: =IF(様式３!L100="","",様式３!L100) -> 0 | N90: =IF(様式３!M100="","",様式３!M100) -> 0 | O90: =IF(様式３!N100="","",様式３!N100) -> 0 | P90: =IF(様式３!O100="","",様式３!O100) -> 
A91: 2 | B91: =IF(E91="","",B90+1) ->  | C91: =IF(様式３!B101="","",様式３!B101) ->  | D91: =IF(様式３!C101="","",様式３!C101) ->  | E91: =IF(様式３!D101="","",様式３!D101) ->  | F91: =IF(様式３!E101="","",様式３!E101) ->  | G91: =IF(様式３!F101="","",様式３!F101) -> ・ | H91: =IF(様式３!G101="","",様式３!G101) ->  | I91: =IF(様式３!H101="","",様式３!H101) -> ・ | J91: =IF(様式３!I101="","",様式３!I101) ->  | K91: =IF(様式３!J101="","",様式３!J101) -> 0 | L91: =IF(様式３!K101="","",様式３!K101) -> 0 | M91: =IF(様式３!L101="","",様式３!L101) -> 0 | N91: =IF(様式３!M101="","",様式３!M101) -> 0 | O91: =IF(様式３!N101="","",様式３!N101) -> 0 | P91: =IF(様式３!O101="","",様式３!O101) -> 
A92: 3 | C92: =IF(様式３!B102="","",様式３!B102) ->  | D92: =IF(様式３!C102="","",様式３!C102) ->  | E92: =IF(様式３!D102="","",様式３!D102) ->  | F92: =IF(様式３!E102="","",様式３!E102) ->  | G92: =IF(様式３!F102="","",様式３!F102) -> ・ | H92: =IF(様式３!G102="","",様式３!G102) ->  | I92: =IF(様式３!H102="","",様式３!H102) -> ・ | J92: =IF(様式３!I102="","",様式３!I102) ->  | K92: =IF(様式３!J102="","",様式３!J102) -> 0 | L92: =IF(様式３!K102="","",様式３!K102) -> 0 | M92: =IF(様式３!L102="","",様式３!L102) -> 0 | N92: =IF(様式３!M102="","",様式３!M102) -> 0 | O92: =IF(様式３!N102="","",様式３!N102) -> 0 | P92: =IF(様式３!O102="","",様式３!O102) -> 
A93: 4 | C93: =IF(様式３!B103="","",様式３!B103) ->  | D93: =IF(様式３!C103="","",様式３!C103) ->  | E93: =IF(様式３!D103="","",様式３!D103) ->  | F93: =IF(様式３!E103="","",様式３!E103) ->  | G93: =IF(様式３!F103="","",様式３!F103) -> ・ | H93: =IF(様式３!G103="","",様式３!G103) ->  | I93: =IF(様式３!H103="","",様式３!H103) -> ・ | J93: =IF(様式３!I103="","",様式３!I103) ->  | K93: =IF(様式３!J103="","",様式３!J103) -> 0 | L93: =IF(様式３!K103="","",様式３!K103) -> 0 | M93: =IF(様式３!L103="","",様式３!L103) -> 0 | N93: =IF(様式３!M103="","",様式３!M103) -> 0 | O93: =IF(様式３!N103="","",様式３!N103) -> 0 | P93: =IF(様式３!O103="","",様式３!O103) -> 
A94: 5 | C94: =IF(様式３!B104="","",様式３!B104) ->  | D94: =IF(様式３!C104="","",様式３!C104) ->  | E94: =IF(様式３!D104="","",様式３!D104) ->  | F94: =IF(様式３!E104="","",様式３!E104) ->  | G94: =IF(様式３!F104="","",様式３!F104) -> ・ | H94: =IF(様式３!G104="","",様式３!G104) ->  | I94: =IF(様式３!H104="","",様式３!H104) -> ・ | J94: =IF(様式３!I104="","",様式３!I104) ->  | K94: =IF(様式３!J104="","",様式３!J104) -> 0 | L94: =IF(様式３!K104="","",様式３!K104) -> 0 | M94: =IF(様式３!L104="","",様式３!L104) -> 0 | N94: =IF(様式３!M104="","",様式３!M104) -> 0 | O94: =IF(様式３!N104="","",様式３!N104) -> 0 | P94: =IF(様式３!O104="","",様式３!O104) -> 
A95: 6 | C95: =IF(様式３!B105="","",様式３!B105) ->  | D95: =IF(様式３!C105="","",様式３!C105) ->  | E95: =IF(様式３!D105="","",様式３!D105) ->  | F95: =IF(様式３!E105="","",様式３!E105) ->  | G95: =IF(様式３!F105="","",様式３!F105) -> ・ | H95: =IF(様式３!G105="","",様式３!G105) ->  | I95: =IF(様式３!H105="","",様式３!H105) -> ・ | J95: =IF(様式３!I105="","",様式３!I105) ->  | K95: =IF(様式３!J105="","",様式３!J105) -> 0 | L95: =IF(様式３!K105="","",様式３!K105) -> 0 | M95: =IF(様式３!L105="","",様式３!L105) -> 0 | N95: =IF(様式３!M105="","",様式３!M105) -> 0 | O95: =IF(様式３!N105="","",様式３!N105) -> 0 | P95: =IF(様式３!O105="","",様式３!O105) -> 
A96: 7 | C96: =IF(様式３!B106="","",様式３!B106) ->  | D96: =IF(様式３!C106="","",様式３!C106) ->  | E96: =IF(様式３!D106="","",様式３!D106) ->  | F96: =IF(様式３!E106="","",様式３!E106) ->  | G96: =IF(様式３!F106="","",様式３!F106) -> ・ | H96: =IF(様式３!G106="","",様式３!G106) ->  | I96: =IF(様式３!H106="","",様式３!H106) -> ・ | J96: =IF(様式３!I106="","",様式３!I106) ->  | K96: =IF(様式３!J106="","",様式３!J106) -> 0 | L96: =IF(様式３!K106="","",様式３!K106) -> 0 | M96: =IF(様式３!L106="","",様式３!L106) -> 0 | N96: =IF(様式３!M106="","",様式３!M106) -> 0 | O96: =IF(様式３!N106="","",様式３!N106) -> 0 | P96: =IF(様式３!O106="","",様式３!O106) -> 
A97: 8 | C97: =IF(様式３!B107="","",様式３!B107) ->  | D97: =IF(様式３!C107="","",様式３!C107) ->  | E97: =IF(様式３!D107="","",様式３!D107) ->  | F97: =IF(様式３!E107="","",様式３!E107) ->  | G97: =IF(様式３!F107="","",様式３!F107) -> ・ | H97: =IF(様式３!G107="","",様式３!G107) ->  | I97: =IF(様式３!H107="","",様式３!H107) -> ・ | J97: =IF(様式３!I107="","",様式３!I107) ->  | K97: =IF(様式３!J107="","",様式３!J107) -> 0 | L97: =IF(様式３!K107="","",様式３!K107) -> 0 | M97: =IF(様式３!L107="","",様式３!L107) -> 0 | N97: =IF(様式３!M107="","",様式３!M107) -> 0 | O97: =IF(様式３!N107="","",様式３!N107) -> 0 | P97: =IF(様式３!O107="","",様式３!O107) -> 
A98: 9 | C98: =IF(様式３!B108="","",様式３!B108) ->  | D98: =IF(様式３!C108="","",様式３!C108) ->  | E98: =IF(様式３!D108="","",様式３!D108) ->  | F98: =IF(様式３!E108="","",様式３!E108) ->  | G98: =IF(様式３!F108="","",様式３!F108) -> ・ | H98: =IF(様式３!G108="","",様式３!G108) ->  | I98: =IF(様式３!H108="","",様式３!H108) -> ・ | J98: =IF(様式３!I108="","",様式３!I108) ->  | K98: =IF(様式３!J108="","",様式３!J108) -> 0 | L98: =IF(様式３!K108="","",様式３!K108) -> 0 | M98: =IF(様式３!L108="","",様式３!L108) -> 0 | N98: =IF(様式３!M108="","",様式３!M108) -> 0 | O98: =IF(様式３!N108="","",様式３!N108) -> 0 | P98: =IF(様式３!O108="","",様式３!O108) -> 
A99: 10 | C99: =IF(様式３!B109="","",様式３!B109) ->  | D99: =IF(様式３!C109="","",様式３!C109) ->  | E99: =IF(様式３!D109="","",様式３!D109) ->  | F99: =IF(様式３!E109="","",様式３!E109) ->  | G99: =IF(様式３!F109="","",様式３!F109) -> ・ | H99: =IF(様式３!G109="","",様式３!G109) ->  | I99: =IF(様式３!H109="","",様式３!H109) -> ・ | J99: =IF(様式３!I109="","",様式３!I109) ->  | K99: =IF(様式３!J109="","",様式３!J109) -> 0 | L99: =IF(様式３!K109="","",様式３!K109) -> 0 | M99: =IF(様式３!L109="","",様式３!L109) -> 0 | N99: =IF(様式３!M109="","",様式３!M109) -> 0 | O99: =IF(様式３!N109="","",様式３!N109) -> 0 | P99: =IF(様式３!O109="","",様式３!O109) -> 
A100: 11 | C100: =IF(様式３!B110="","",様式３!B110) ->  | D100: =IF(様式３!C110="","",様式３!C110) ->  | E100: =IF(様式３!D110="","",様式３!D110) ->  | F100: =IF(様式３!E110="","",様式３!E110) ->  | G100: =IF(様式３!F110="","",様式３!F110) -> ・ | H100: =IF(様式３!G110="","",様式３!G110) ->  | I100: =IF(様式３!H110="","",様式３!H110) -> ・ | J100: =IF(様式３!I110="","",様式３!I110) ->  | K100: =IF(様式３!J110="","",様式３!J110) -> 0 | L100: =IF(様式３!K110="","",様式３!K110) -> 0 | M100: =IF(様式３!L110="","",様式３!L110) -> 0 | N100: =IF(様式３!M110="","",様式３!M110) -> 0 | O100: =IF(様式３!N110="","",様式３!N110) -> 0 | P100: =IF(様式３!O110="","",様式３!O110) -> 
A101: 12 | C101: =IF(様式３!B111="","",様式３!B111) ->  | D101: =IF(様式３!C111="","",様式３!C111) ->  | E101: =IF(様式３!D111="","",様式３!D111) ->  | F101: =IF(様式３!E111="","",様式３!E111) ->  | G101: =IF(様式３!F111="","",様式３!F111) -> ・ | H101: =IF(様式３!G111="","",様式３!G111) ->  | I101: =IF(様式３!H111="","",様式３!H111) -> ・ | J101: =IF(様式３!I111="","",様式３!I111) ->  | K101: =IF(様式３!J111="","",様式３!J111) -> 0 | L101: =IF(様式３!K111="","",様式３!K111) -> 0 | M101: =IF(様式３!L111="","",様式３!L111) -> 0 | N101: =IF(様式３!M111="","",様式３!M111) -> 0 | O101: =IF(様式３!N111="","",様式３!N111) -> 0 | P101: =IF(様式３!O111="","",様式３!O111) -> 
A102: 13 | C102: =IF(様式３!B112="","",様式３!B112) ->  | D102: =IF(様式３!C112="","",様式３!C112) ->  | E102: =IF(様式３!D112="","",様式３!D112) ->  | F102: =IF(様式３!E112="","",様式３!E112) ->  | G102: =IF(様式３!F112="","",様式３!F112) -> ・ | H102: =IF(様式３!G112="","",様式３!G112) ->  | I102: =IF(様式３!H112="","",様式３!H112) -> ・ | J102: =IF(様式３!I112="","",様式３!I112) ->  | K102: =IF(様式３!J112="","",様式３!J112) -> 0 | L102: =IF(様式３!K112="","",様式３!K112) -> 0 | M102: =IF(様式３!L112="","",様式３!L112) -> 0 | N102: =IF(様式３!M112="","",様式３!M112) -> 0 | O102: =IF(様式３!N112="","",様式３!N112) -> 0 | P102: =IF(様式３!O112="","",様式３!O112) -> 
A103: 14 | C103: =IF(様式３!B113="","",様式３!B113) ->  | D103: =IF(様式３!C113="","",様式３!C113) ->  | E103: =IF(様式３!D113="","",様式３!D113) ->  | F103: =IF(様式３!E113="","",様式３!E113) ->  | G103: =IF(様式３!F113="","",様式３!F113) -> ・ | H103: =IF(様式３!G113="","",様式３!G113) ->  | I103: =IF(様式３!H113="","",様式３!H113) -> ・ | J103: =IF(様式３!I113="","",様式３!I113) ->  | K103: =IF(様式３!J113="","",様式３!J113) -> 0 | L103: =IF(様式３!K113="","",様式３!K113) -> 0 | M103: =IF(様式３!L113="","",様式３!L113) -> 0 | N103: =IF(様式３!M113="","",様式３!M113) -> 0 | O103: =IF(様式３!N113="","",様式３!N113) -> 0 | P103: =IF(様式３!O113="","",様式３!O113) -> 
A104: 15 | C104: =IF(様式３!B114="","",様式３!B114) ->  | D104: =IF(様式３!C114="","",様式３!C114) ->  | E104: =IF(様式３!D114="","",様式３!D114) ->  | F104: =IF(様式３!E114="","",様式３!E114) ->  | G104: =IF(様式３!F114="","",様式３!F114) -> ・ | H104: =IF(様式３!G114="","",様式３!G114) ->  | I104: =IF(様式３!H114="","",様式３!H114) -> ・ | J104: =IF(様式３!I114="","",様式３!I114) ->  | K104: =IF(様式３!J114="","",様式３!J114) -> 0 | L104: =IF(様式３!K114="","",様式３!K114) -> 0 | M104: =IF(様式３!L114="","",様式３!L114) -> 0 | N104: =IF(様式３!M114="","",様式３!M114) -> 0 | O104: =IF(様式３!N114="","",様式３!N114) -> 0 | P104: =IF(様式３!O114="","",様式３!O114) -> 
B105: =B24 -> ※１ 学科の欄には、大学科名を記入する。
B106: =B25 -> ※２ 資格・試験等ランクの欄には、取得個数を記入する。
B107: =B26 -> ※３ 得点合計欄には、得点の合計を記入する。
B109: （様式６） | H109: （令和 | J109: =+J82 -> 0 | K109: 年度 | M109: =+M82 -> 0 | N109: 枚中 | O109: =+O82+1 -> 5 | P109: 枚目）
B111: 埼玉県高校生専門資格等取得表彰証書発行台帳
F112: 学 校 名 | I112: =+I85 -> 0 | O112: 学校
F113: 発行年月日 令和 | K113: =+K86 -> 0 | L113: 年 | M113: =+M86 -> 0 | N113: 月 | O113: =+O86 -> 0 | P113: 日
B114: 発行番号 | C114: 学年 | D114: 学科 | E114: 整理番号 | F114: 生 年 月 日 | K114: 資格・試験等ﾗﾝｸ | O114: 得点 合計 | P114: 備考
K115: A | L115: B | M115: C | N115: D
K116: 6 | L116: 3 | M116: 2 | N116: 1
A117: 1 | B117: =IF(E117="","",B104+1) ->  | C117: =IF(様式３!B130="","",様式３!B130) ->  | D117: =IF(様式３!C130="","",様式３!C130) ->  | E117: =IF(様式３!D130="","",様式３!D130) ->  | F117: =IF(様式３!E130="","",様式３!E130) ->  | G117: =IF(様式３!F130="","",様式３!F130) -> ・ | H117: =IF(様式３!G130="","",様式３!G130) ->  | I117: =IF(様式３!H130="","",様式３!H130) -> ・ | J117: =IF(様式３!I130="","",様式３!I130) ->  | K117: =IF(様式３!J130="","",様式３!J130) -> 0 | L117: =IF(様式３!K130="","",様式３!K130) -> 0 | M117: =IF(様式３!L130="","",様式３!L130) -> 0 | N117: =IF(様式３!M130="","",様式３!M130) -> 0 | O117: =IF(様式３!N130="","",様式３!N130) -> 0 | P117: =IF(様式３!O130="","",様式３!O130) -> 
A118: 2 | B118: =IF(E118="","",B117+1) ->  | C118: =IF(様式３!B131="","",様式３!B131) ->  | D118: =IF(様式３!C131="","",様式３!C131) ->  | E118: =IF(様式３!D131="","",様式３!D131) ->  | F118: =IF(様式３!E131="","",様式３!E131) ->  | G118: =IF(様式３!F131="","",様式３!F131) -> ・ | H118: =IF(様式３!G131="","",様式３!G131) ->  | I118: =IF(様式３!H131="","",様式３!H131) -> ・ | J118: =IF(様式３!I131="","",様式３!I131) ->  | K118: =IF(様式３!J131="","",様式３!J131) -> 0 | L118: =IF(様式３!K131="","",様式３!K131) -> 0 | M118: =IF(様式３!L131="","",様式３!L131) -> 0 | N118: =IF(様式３!M131="","",様式３!M131) -> 0 | O118: =IF(様式３!N131="","",様式３!N131) -> 0 | P118: =IF(様式３!O131="","",様式３!O131) -> 
A119: 3 | C119: =IF(様式３!B132="","",様式３!B132) ->  | D119: =IF(様式３!C132="","",様式３!C132) ->  | E119: =IF(様式３!D132="","",様式３!D132) ->  | F119: =IF(様式３!E132="","",様式３!E132) ->  | G119: =IF(様式３!F132="","",様式３!F132) -> ・ | H119: =IF(様式３!G132="","",様式３!G132) ->  | I119: =IF(様式３!H132="","",様式３!H132) -> ・ | J119: =IF(様式３!I132="","",様式３!I132) ->  | K119: =IF(様式３!J132="","",様式３!J132) -> 0 | L119: =IF(様式３!K132="","",様式３!K132) -> 0 | M119: =IF(様式３!L132="","",様式３!L132) -> 0 | N119: =IF(様式３!M132="","",様式３!M132) -> 0 | O119: =IF(様式３!N132="","",様式３!N132) -> 0 | P119: =IF(様式３!O132="","",様式３!O132) -> 
A120: 4 | C120: =IF(様式３!B133="","",様式３!B133) ->  | D120: =IF(様式３!C133="","",様式３!C133) ->  | E120: =IF(様式３!D133="","",様式３!D133) ->  | F120: =IF(様式３!E133="","",様式３!E133) ->  | G120: =IF(様式３!F133="","",様式３!F133) -> ・ | H120: =IF(様式３!G133="","",様式３!G133) ->  | I120: =IF(様式３!H133="","",様式３!H133) -> ・ | J120: =IF(様式３!I133="","",様式３!I133) ->  | K120: =IF(様式３!J133="","",様式３!J133) -> 0 | L120: =IF(様式３!K133="","",様式３!K133) -> 0 | M120: =IF(様式３!L133="","",様式３!L133) -> 0 | N120: =IF(様式３!M133="","",様式３!M133) -> 0 | O120: =IF(様式３!N133="","",様式３!N133) -> 0 | P120: =IF(様式３!O133="","",様式３!O133) -> 
A121: 5 | C121: =IF(様式３!B134="","",様式３!B134) ->  | D121: =IF(様式３!C134="","",様式３!C134) ->  | E121: =IF(様式３!D134="","",様式３!D134) ->  | F121: =IF(様式３!E134="","",様式３!E134) ->  | G121: =IF(様式３!F134="","",様式３!F134) -> ・ | H121: =IF(様式３!G134="","",様式３!G134) ->  | I121: =IF(様式３!H134="","",様式３!H134) -> ・ | J121: =IF(様式３!I134="","",様式３!I134) ->  | K121: =IF(様式３!J134="","",様式３!J134) -> 0 | L121: =IF(様式３!K134="","",様式３!K134) -> 0 | M121: =IF(様式３!L134="","",様式３!L134) -> 0 | N121: =IF(様式３!M134="","",様式３!M134) -> 0 | O121: =IF(様式３!N134="","",様式３!N134) -> 0 | P121: =IF(様式３!O134="","",様式３!O134) -> 
A122: 6 | C122: =IF(様式３!B135="","",様式３!B135) ->  | D122: =IF(様式３!C135="","",様式３!C135) ->  | E122: =IF(様式３!D135="","",様式３!D135) ->  | F122: =IF(様式３!E135="","",様式３!E135) ->  | G122: =IF(様式３!F135="","",様式３!F135) -> ・ | H122: =IF(様式３!G135="","",様式３!G135) ->  | I122: =IF(様式３!H135="","",様式３!H135) -> ・ | J122: =IF(様式３!I135="","",様式３!I135) ->  | K122: =IF(様式３!J135="","",様式３!J135) -> 0 | L122: =IF(様式３!K135="","",様式３!K135) -> 0 | M122: =IF(様式３!L135="","",様式３!L135) -> 0 | N122: =IF(様式３!M135="","",様式３!M135) -> 0 | O122: =IF(様式３!N135="","",様式３!N135) -> 0 | P122: =IF(様式３!O135="","",様式３!O135) -> 
A123: 7 | C123: =IF(様式３!B136="","",様式３!B136) ->  | D123: =IF(様式３!C136="","",様式３!C136) ->  | E123: =IF(様式３!D136="","",様式３!D136) ->  | F123: =IF(様式３!E136="","",様式３!E136) ->  | G123: =IF(様式３!F136="","",様式３!F136) -> ・ | H123: =IF(様式３!G136="","",様式３!G136) ->  | I123: =IF(様式３!H136="","",様式３!H136) -> ・ | J123: =IF(様式３!I136="","",様式３!I136) ->  | K123: =IF(様式３!J136="","",様式３!J136) -> 0 | L123: =IF(様式３!K136="","",様式３!K136) -> 0 | M123: =IF(様式３!L136="","",様式３!L136) -> 0 | N123: =IF(様式３!M136="","",様式３!M136) -> 0 | O123: =IF(様式３!N136="","",様式３!N136) -> 0 | P123: =IF(様式３!O136="","",様式３!O136) -> 
A124: 8 | C124: =IF(様式３!B137="","",様式３!B137) ->  | D124: =IF(様式３!C137="","",様式３!C137) ->  | E124: =IF(様式３!D137="","",様式３!D137) ->  | F124: =IF(様式３!E137="","",様式３!E137) ->  | G124: =IF(様式３!F137="","",様式３!F137) -> ・ | H124: =IF(様式３!G137="","",様式３!G137) ->  | I124: =IF(様式３!H137="","",様式３!H137) -> ・ | J124: =IF(様式３!I137="","",様式３!I137) ->  | K124: =IF(様式３!J137="","",様式３!J137) -> 0 | L124: =IF(様式３!K137="","",様式３!K137) -> 0 | M124: =IF(様式３!L137="","",様式３!L137) -> 0 | N124: =IF(様式３!M137="","",様式３!M137) -> 0 | O124: =IF(様式３!N137="","",様式３!N137) -> 0 | P124: =IF(様式３!O137="","",様式３!O137) -> 
A125: 9 | C125: =IF(様式３!B138="","",様式３!B138) ->  | D125: =IF(様式３!C138="","",様式３!C138) ->  | E125: =IF(様式３!D138="","",様式３!D138) ->  | F125: =IF(様式３!E138="","",様式３!E138) ->  | G125: =IF(様式３!F138="","",様式３!F138) -> ・ | H125: =IF(様式３!G138="","",様式３!G138) ->  | I125: =IF(様式３!H138="","",様式３!H138) -> ・ | J125: =IF(様式３!I138="","",様式３!I138) ->  | K125: =IF(様式３!J138="","",様式３!J138) -> 0 | L125: =IF(様式３!K138="","",様式３!K138) -> 0 | M125: =IF(様式３!L138="","",様式３!L138) -> 0 | N125: =IF(様式３!M138="","",様式３!M138) -> 0 | O125: =IF(様式３!N138="","",様式３!N138) -> 0 | P125: =IF(様式３!O138="","",様式３!O138) -> 
A126: 10 | C126: =IF(様式３!B139="","",様式３!B139) ->  | D126: =IF(様式３!C139="","",様式３!C139) ->  | E126: =IF(様式３!D139="","",様式３!D139) ->  | F126: =IF(様式３!E139="","",様式３!E139) ->  | G126: =IF(様式３!F139="","",様式３!F139) -> ・ | H126: =IF(様式３!G139="","",様式３!G139) ->  | I126: =IF(様式３!H139="","",様式３!H139) -> ・ | J126: =IF(様式３!I139="","",様式３!I139) ->  | K126: =IF(様式３!J139="","",様式３!J139) -> 0 | L126: =IF(様式３!K139="","",様式３!K139) -> 0 | M126: =IF(様式３!L139="","",様式３!L139) -> 0 | N126: =IF(様式３!M139="","",様式３!M139) -> 0 | O126: =IF(様式３!N139="","",様式３!N139) -> 0 | P126: =IF(様式３!O139="","",様式３!O139) -> 
A127: 11 | C127: =IF(様式３!B140="","",様式３!B140) ->  | D127: =IF(様式３!C140="","",様式３!C140) ->  | E127: =IF(様式３!D140="","",様式３!D140) ->  | F127: =IF(様式３!E140="","",様式３!E140) ->  | G127: =IF(様式３!F140="","",様式３!F140) -> ・ | H127: =IF(様式３!G140="","",様式３!G140) ->  | I127: =IF(様式３!H140="","",様式３!H140) -> ・ | J127: =IF(様式３!I140="","",様式３!I140) ->  | K127: =IF(様式３!J140="","",様式３!J140) -> 0 | L127: =IF(様式３!K140="","",様式３!K140) -> 0 | M127: =IF(様式３!L140="","",様式３!L140) -> 0 | N127: =IF(様式３!M140="","",様式３!M140) -> 0 | O127: =IF(様式３!N140="","",様式３!N140) -> 0 | P127: =IF(様式３!O140="","",様式３!O140) -> 
A128: 12 | C128: =IF(様式３!B141="","",様式３!B141) ->  | D128: =IF(様式３!C141="","",様式３!C141) ->  | E128: =IF(様式３!D141="","",様式３!D141) ->  | F128: =IF(様式３!E141="","",様式３!E141) ->  | G128: =IF(様式３!F141="","",様式３!F141) -> ・ | H128: =IF(様式３!G141="","",様式３!G141) ->  | I128: =IF(様式３!H141="","",様式３!H141) -> ・ | J128: =IF(様式３!I141="","",様式３!I141) ->  | K128: =IF(様式３!J141="","",様式３!J141) -> 0 | L128: =IF(様式３!K141="","",様式３!K141) -> 0 | M128: =IF(様式３!L141="","",様式３!L141) -> 0 | N128: =IF(様式３!M141="","",様式３!M141) -> 0 | O128: =IF(様式３!N141="","",様式３!N141) -> 0 | P128: =IF(様式３!O141="","",様式３!O141) -> 
A129: 13 | C129: =IF(様式３!B142="","",様式３!B142) ->  | D129: =IF(様式３!C142="","",様式３!C142) ->  | E129: =IF(様式３!D142="","",様式３!D142) ->  | F129: =IF(様式３!E142="","",様式３!E142) ->  | G129: =IF(様式３!F142="","",様式３!F142) -> ・ | H129: =IF(様式３!G142="","",様式３!G142) ->  | I129: =IF(様式３!H142="","",様式３!H142) -> ・ | J129: =IF(様式３!I142="","",様式３!I142) ->  | K129: =IF(様式３!J142="","",様式３!J142) -> 0 | L129: =IF(様式３!K142="","",様式３!K142) -> 0 | M129: =IF(様式３!L142="","",様式３!L142) -> 0 | N129: =IF(様式３!M142="","",様式３!M142) -> 0 | O129: =IF(様式３!N142="","",様式３!N142) -> 0 | P129: =IF(様式３!O142="","",様式３!O142) -> 
A130: 14 | C130: =IF(様式３!B143="","",様式３!B143) ->  | D130: =IF(様式３!C143="","",様式３!C143) ->  | E130: =IF(様式３!D143="","",様式３!D143) ->  | F130: =IF(様式３!E143="","",様式３!E143) ->  | G130: =IF(様式３!F143="","",様式３!F143) -> ・ | H130: =IF(様式３!G143="","",様式３!G143) ->  | I130: =IF(様式３!H143="","",様式３!H143) -> ・ | J130: =IF(様式３!I143="","",様式３!I143) ->  | K130: =IF(様式３!J143="","",様式３!J143) -> 0 | L130: =IF(様式３!K143="","",様式３!K143) -> 0 | M130: =IF(様式３!L143="","",様式３!L143) -> 0 | N130: =IF(様式３!M143="","",様式３!M143) -> 0 | O130: =IF(様式３!N143="","",様式３!N143) -> 0 | P130: =IF(様式３!O143="","",様式３!O143) -> 
A131: 15 | C131: =IF(様式３!B144="","",様式３!B144) ->  | D131: =IF(様式３!C144="","",様式３!C144) ->  | E131: =IF(様式３!D144="","",様式３!D144) ->  | F131: =IF(様式３!E144="","",様式３!E144) ->  | G131: =IF(様式３!F144="","",様式３!F144) -> ・ | H131: =IF(様式３!G144="","",様式３!G144) ->  | I131: =IF(様式３!H144="","",様式３!H144) -> ・ | J131: =IF(様式３!I144="","",様式３!I144) ->  | K131: =IF(様式３!J144="","",様式３!J144) -> 0 | L131: =IF(様式３!K144="","",様式３!K144) -> 0 | M131: =IF(様式３!L144="","",様式３!L144) -> 0 | N131: =IF(様式３!M144="","",様式３!M144) -> 0 | O131: =IF(様式３!N144="","",様式３!N144) -> 0 | P131: =IF(様式３!O144="","",様式３!O144) -> 
B132: =B24 -> ※１ 学科の欄には、大学科名を記入する。
B133: =B25 -> ※２ 資格・試験等ランクの欄には、取得個数を記入する。
B134: =B26 -> ※３ 得点合計欄には、得点の合計を記入する。
B136: （様式６） | H136: （令和 | J136: =+J109 -> 0 | K136: 年度 | M136: =+M109 -> 0 | N136: 枚中 | O136: =+O109+1 -> 6 | P136: 枚目）
B138: 埼玉県高校生専門資格等取得表彰証書発行台帳
F139: 学 校 名 | I139: =+I112 -> 0 | O139: 学校
F140: 発行年月日 令和 | K140: =+K113 -> 0 | L140: 年 | M140: =+M113 -> 0 | N140: 月 | O140: =+O113 -> 0 | P140: 日
B141: 発行番号 | C141: 学年 | D141: 学科 | E141: 整理番号 | F141: 生 年 月 日 | K141: 資格・試験等ﾗﾝｸ | O141: 得点 合計 | P141: 備考
K142: A | L142: B | M142: C | N142: D
K143: 6 | L143: 3 | M143: 2 | N143: 1
A144: 1 | B144: =IF(E144="","",B131+1) ->  | C144: =IF(様式３!B160="","",様式３!B160) ->  | D144: =IF(様式３!C160="","",様式３!C160) ->  | E144: =IF(様式３!D160="","",様式３!D160) ->  | F144: =IF(様式３!E160="","",様式３!E160) ->  | G144: =IF(様式３!F160="","",様式３!F160) -> ・ | H144: =IF(様式３!G160="","",様式３!G160) ->  | I144: =IF(様式３!H160="","",様式３!H160) -> ・ | J144: =IF(様式３!I160="","",様式３!I160) ->  | K144: =IF(様式３!J160="","",様式３!J160) -> 0 | L144: =IF(様式３!K160="","",様式３!K160) -> 0 | M144: =IF(様式３!L160="","",様式３!L160) -> 0 | N144: =IF(様式３!M160="","",様式３!M160) -> 0 | O144: =IF(様式３!N160="","",様式３!N160) -> 0 | P144: =IF(様式３!O160="","",様式３!O160) -> 
A145: 2 | B145: =IF(E145="","",B144+1) ->  | C145: =IF(様式３!B161="","",様式３!B161) ->  | D145: =IF(様式３!C161="","",様式３!C161) ->  | E145: =IF(様式３!D161="","",様式３!D161) ->  | F145: =IF(様式３!E161="","",様式３!E161) ->  | G145: =IF(様式３!F161="","",様式３!F161) -> ・ | H145: =IF(様式３!G161="","",様式３!G161) ->  | I145: =IF(様式３!H161="","",様式３!H161) -> ・ | J145: =IF(様式３!I161="","",様式３!I161) ->  | K145: =IF(様式３!J161="","",様式３!J161) -> 0 | L145: =IF(様式３!K161="","",様式３!K161) -> 0 | M145: =IF(様式３!L161="","",様式３!L161) -> 0 | N145: =IF(様式３!M161="","",様式３!M161) -> 0 | O145: =IF(様式３!N161="","",様式３!N161) -> 0 | P145: =IF(様式３!O161="","",様式３!O161) -> 
A146: 3 | C146: =IF(様式３!B162="","",様式３!B162) ->  | D146: =IF(様式３!C162="","",様式３!C162) ->  | E146: =IF(様式３!D162="","",様式３!D162) ->  | F146: =IF(様式３!E162="","",様式３!E162) ->  | G146: =IF(様式３!F162="","",様式３!F162) -> ・ | H146: =IF(様式３!G162="","",様式３!G162) ->  | I146: =IF(様式３!H162="","",様式３!H162) -> ・ | J146: =IF(様式３!I162="","",様式３!I162) ->  | K146: =IF(様式３!J162="","",様式３!J162) -> 0 | L146: =IF(様式３!K162="","",様式３!K162) -> 0 | M146: =IF(様式３!L162="","",様式３!L162) -> 0 | N146: =IF(様式３!M162="","",様式３!M162) -> 0 | O146: =IF(様式３!N162="","",様式３!N162) -> 0 | P146: =IF(様式３!O162="","",様式３!O162) -> 
A147: 4 | C147: =IF(様式３!B163="","",様式３!B163) ->  | D147: =IF(様式３!C163="","",様式３!C163) ->  | E147: =IF(様式３!D163="","",様式３!D163) ->  | F147: =IF(様式３!E163="","",様式３!E163) ->  | G147: =IF(様式３!F163="","",様式３!F163) -> ・ | H147: =IF(様式３!G163="","",様式３!G163) ->  | I147: =IF(様式３!H163="","",様式３!H163) -> ・ | J147: =IF(様式３!I163="","",様式３!I163) ->  | K147: =IF(様式３!J163="","",様式３!J163) -> 0 | L147: =IF(様式３!K163="","",様式３!K163) -> 0 | M147: =IF(様式３!L163="","",様式３!L163) -> 0 | N147: =IF(様式３!M163="","",様式３!M163) -> 0 | O147: =IF(様式３!N163="","",様式３!N163) -> 0 | P147: =IF(様式３!O163="","",様式３!O163) -> 
A148: 5 | C148: =IF(様式３!B164="","",様式３!B164) ->  | D148: =IF(様式３!C164="","",様式３!C164) ->  | E148: =IF(様式３!D164="","",様式３!D164) ->  | F148: =IF(様式３!E164="","",様式３!E164) ->  | G148: =IF(様式３!F164="","",様式３!F164) -> ・ | H148: =IF(様式３!G164="","",様式３!G164) ->  | I148: =IF(様式３!H164="","",様式３!H164) -> ・ | J148: =IF(様式３!I164="","",様式３!I164) ->  | K148: =IF(様式３!J164="","",様式３!J164) -> 0 | L148: =IF(様式３!K164="","",様式３!K164) -> 0 | M148: =IF(様式３!L164="","",様式３!L164) -> 0 | N148: =IF(様式３!M164="","",様式３!M164) -> 0 | O148: =IF(様式３!N164="","",様式３!N164) -> 0 | P148: =IF(様式３!O164="","",様式３!O164) -> 
A149: 6 | C149: =IF(様式３!B165="","",様式３!B165) ->  | D149: =IF(様式３!C165="","",様式３!C165) ->  | E149: =IF(様式３!D165="","",様式３!D165) ->  | F149: =IF(様式３!E165="","",様式３!E165) ->  | G149: =IF(様式３!F165="","",様式３!F165) -> ・ | H149: =IF(様式３!G165="","",様式３!G165) ->  | I149: =IF(様式３!H165="","",様式３!H165) -> ・ | J149: =IF(様式３!I165="","",様式３!I165) ->  | K149: =IF(様式３!J165="","",様式３!J165) -> 0 | L149: =IF(様式３!K165="","",様式３!K165) -> 0 | M149: =IF(様式３!L165="","",様式３!L165) -> 0 | N149: =IF(様式３!M165="","",様式３!M165) -> 0 | O149: =IF(様式３!N165="","",様式３!N165) -> 0 | P149: =IF(様式３!O165="","",様式３!O165) -> 
A150: 7 | C150: =IF(様式３!B166="","",様式３!B166) ->  | D150: =IF(様式３!C166="","",様式３!C166) ->  | E150: =IF(様式３!D166="","",様式３!D166) ->  | F150: =IF(様式３!E166="","",様式３!E166) ->  | G150: =IF(様式３!F166="","",様式３!F166) -> ・ | H150: =IF(様式３!G166="","",様式３!G166) ->  | I150: =IF(様式３!H166="","",様式３!H166) -> ・ | J150: =IF(様式３!I166="","",様式３!I166) ->  | K150: =IF(様式３!J166="","",様式３!J166) -> 0 | L150: =IF(様式３!K166="","",様式３!K166) -> 0 | M150: =IF(様式３!L166="","",様式３!L166) -> 0 | N150: =IF(様式３!M166="","",様式３!M166) -> 0 | O150: =IF(様式３!N166="","",様式３!N166) -> 0 | P150: =IF(様式３!O166="","",様式３!O166) -> 
A151: 8 | C151: =IF(様式３!B167="","",様式３!B167) ->  | D151: =IF(様式３!C167="","",様式３!C167) ->  | E151: =IF(様式３!D167="","",様式３!D167) ->  | F151: =IF(様式３!E167="","",様式３!E167) ->  | G151: =IF(様式３!F167="","",様式３!F167) -> ・ | H151: =IF(様式３!G167="","",様式３!G167) ->  | I151: =IF(様式３!H167="","",様式３!H167) -> ・ | J151: =IF(様式３!I167="","",様式３!I167) ->  | K151: =IF(様式３!J167="","",様式３!J167) -> 0 | L151: =IF(様式３!K167="","",様式３!K167) -> 0 | M151: =IF(様式３!L167="","",様式３!L167) -> 0 | N151: =IF(様式３!M167="","",様式３!M167) -> 0 | O151: =IF(様式３!N167="","",様式３!N167) -> 0 | P151: =IF(様式３!O167="","",様式３!O167) -> 
A152: 9 | C152: =IF(様式３!B168="","",様式３!B168) ->  | D152: =IF(様式３!C168="","",様式３!C168) ->  | E152: =IF(様式３!D168="","",様式３!D168) ->  | F152: =IF(様式３!E168="","",様式３!E168) ->  | G152: =IF(様式３!F168="","",様式３!F168) -> ・ | H152: =IF(様式３!G168="","",様式３!G168) ->  | I152: =IF(様式３!H168="","",様式３!H168) -> ・ | J152: =IF(様式３!I168="","",様式３!I168) ->  | K152: =IF(様式３!J168="","",様式３!J168) -> 0 | L152: =IF(様式３!K168="","",様式３!K168) -> 0 | M152: =IF(様式３!L168="","",様式３!L168) -> 0 | N152: =IF(様式３!M168="","",様式３!M168) -> 0 | O152: =IF(様式３!N168="","",様式３!N168) -> 0 | P152: =IF(様式３!O168="","",様式３!O168) -> 
A153: 10 | C153: =IF(様式３!B169="","",様式３!B169) ->  | D153: =IF(様式３!C169="","",様式３!C169) ->  | E153: =IF(様式３!D169="","",様式３!D169) ->  | F153: =IF(様式３!E169="","",様式３!E169) ->  | G153: =IF(様式３!F169="","",様式３!F169) -> ・ | H153: =IF(様式３!G169="","",様式３!G169) ->  | I153: =IF(様式３!H169="","",様式３!H169) -> ・ | J153: =IF(様式３!I169="","",様式３!I169) ->  | K153: =IF(様式３!J169="","",様式３!J169) -> 0 | L153: =IF(様式３!K169="","",様式３!K169) -> 0 | M153: =IF(様式３!L169="","",様式３!L169) -> 0 | N153: =IF(様式３!M169="","",様式３!M169) -> 0 | O153: =IF(様式３!N169="","",様式３!N169) -> 0 | P153: =IF(様式３!O169="","",様式３!O169) -> 
A154: 11 | C154: =IF(様式３!B170="","",様式３!B170) ->  | D154: =IF(様式３!C170="","",様式３!C170) ->  | E154: =IF(様式３!D170="","",様式３!D170) ->  | F154: =IF(様式３!E170="","",様式３!E170) ->  | G154: =IF(様式３!F170="","",様式３!F170) -> ・ | H154: =IF(様式３!G170="","",様式３!G170) ->  | I154: =IF(様式３!H170="","",様式３!H170) -> ・ | J154: =IF(様式３!I170="","",様式３!I170) ->  | K154: =IF(様式３!J170="","",様式３!J170) -> 0 | L154: =IF(様式３!K170="","",様式３!K170) -> 0 | M154: =IF(様式３!L170="","",様式３!L170) -> 0 | N154: =IF(様式３!M170="","",様式３!M170) -> 0 | O154: =IF(様式３!N170="","",様式３!N170) -> 0 | P154: =IF(様式３!O170="","",様式３!O170) -> 
A155: 12 | C155: =IF(様式３!B171="","",様式３!B171) ->  | D155: =IF(様式３!C171="","",様式３!C171) ->  | E155: =IF(様式３!D171="","",様式３!D171) ->  | F155: =IF(様式３!E171="","",様式３!E171) ->  | G155: =IF(様式３!F171="","",様式３!F171) -> ・ | H155: =IF(様式３!G171="","",様式３!G171) ->  | I155: =IF(様式３!H171="","",様式３!H171) -> ・ | J155: =IF(様式３!I171="","",様式３!I171) ->  | K155: =IF(様式３!J171="","",様式３!J171) -> 0 | L155: =IF(様式３!K171="","",様式３!K171) -> 0 | M155: =IF(様式３!L171="","",様式３!L171) -> 0 | N155: =IF(様式３!M171="","",様式３!M171) -> 0 | O155: =IF(様式３!N171="","",様式３!N171) -> 0 | P155: =IF(様式３!O171="","",様式３!O171) -> 
A156: 13 | C156: =IF(様式３!B172="","",様式３!B172) ->  | D156: =IF(様式３!C172="","",様式３!C172) ->  | E156: =IF(様式３!D172="","",様式３!D172) ->  | F156: =IF(様式３!E172="","",様式３!E172) ->  | G156: =IF(様式３!F172="","",様式３!F172) -> ・ | H156: =IF(様式３!G172="","",様式３!G172) ->  | I156: =IF(様式３!H172="","",様式３!H172) -> ・ | J156: =IF(様式３!I172="","",様式３!I172) ->  | K156: =IF(様式３!J172="","",様式３!J172) -> 0 | L156: =IF(様式３!K172="","",様式３!K172) -> 0 | M156: =IF(様式３!L172="","",様式３!L172) -> 0 | N156: =IF(様式３!M172="","",様式３!M172) -> 0 | O156: =IF(様式３!N172="","",様式３!N172) -> 0 | P156: =IF(様式３!O172="","",様式３!O172) -> 
A157: 14 | C157: =IF(様式３!B173="","",様式３!B173) ->  | D157: =IF(様式３!C173="","",様式３!C173) ->  | E157: =IF(様式３!D173="","",様式３!D173) ->  | F157: =IF(様式３!E173="","",様式３!E173) ->  | G157: =IF(様式３!F173="","",様式３!F173) -> ・ | H157: =IF(様式３!G173="","",様式３!G173) ->  | I157: =IF(様式３!H173="","",様式３!H173) -> ・ | J157: =IF(様式３!I173="","",様式３!I173) ->  | K157: =IF(様式３!J173="","",様式３!J173) -> 0 | L157: =IF(様式３!K173="","",様式３!K173) -> 0 | M157: =IF(様式３!L173="","",様式３!L173) -> 0 | N157: =IF(様式３!M173="","",様式３!M173) -> 0 | O157: =IF(様式３!N173="","",様式３!N173) -> 0 | P157: =IF(様式３!O173="","",様式３!O173) -> 
A158: 15 | C158: =IF(様式３!B174="","",様式３!B174) ->  | D158: =IF(様式３!C174="","",様式３!C174) ->  | E158: =IF(様式３!D174="","",様式３!D174) ->  | F158: =IF(様式３!E174="","",様式３!E174) ->  | G158: =IF(様式３!F174="","",様式３!F174) -> ・ | H158: =IF(様式３!G174="","",様式３!G174) ->  | I158: =IF(様式３!H174="","",様式３!H174) -> ・ | J158: =IF(様式３!I174="","",様式３!I174) ->  | K158: =IF(様式３!J174="","",様式３!J174) -> 0 | L158: =IF(様式３!K174="","",様式３!K174) -> 0 | M158: =IF(様式３!L174="","",様式３!L174) -> 0 | N158: =IF(様式３!M174="","",様式３!M174) -> 0 | O158: =IF(様式３!N174="","",様式３!N174) -> 0 | P158: =IF(様式３!O174="","",様式３!O174) -> 
B159: =B24 -> ※１ 学科の欄には、大学科名を記入する。
B160: =B25 -> ※２ 資格・試験等ランクの欄には、取得個数を記入する。
B161: =B26 -> ※３ 得点合計欄には、得点の合計を記入する。
B163: （様式６） | H163: （令和 | J163: =+J136 -> 0 | K163: 年度 | M163: =+M136 -> 0 | N163: 枚中 | O163: =+O136+1 -> 7 | P163: 枚目）
B165: 埼玉県高校生専門資格等取得表彰証書発行台帳
F166: 学 校 名 | I166: =+I139 -> 0 | O166: 学校
F167: 発行年月日 令和 | K167: =+K140 -> 0 | L167: 年 | M167: =+M140 -> 0 | N167: 月 | O167: =+O140 -> 0 | P167: 日
B168: 発行番号 | C168: 学年 | D168: 学科 | E168: 整理番号 | F168: 生 年 月 日 | K168: 資格・試験等ﾗﾝｸ | O168: 得点 合計 | P168: 備考
K169: A | L169: B | M169: C | N169: D
K170: 6 | L170: 3 | M170: 2 | N170: 1
A171: 1 | B171: =IF(E171="","",B158+1) ->  | C171: =IF(様式３!B190="","",様式３!B190) ->  | D171: =IF(様式３!C190="","",様式３!C190) ->  | E171: =IF(様式３!D190="","",様式３!D190) ->  | F171: =IF(様式３!E190="","",様式３!E190) ->  | G171: =IF(様式３!F190="","",様式３!F190) -> ・ | H171: =IF(様式３!G190="","",様式３!G190) ->  | I171: =IF(様式３!H190="","",様式３!H190) -> ・ | J171: =IF(様式３!I190="","",様式３!I190) ->  | K171: =IF(様式３!J190="","",様式３!J190) -> 0 | L171: =IF(様式３!K190="","",様式３!K190) -> 0 | M171: =IF(様式３!L190="","",様式３!L190) -> 0 | N171: =IF(様式３!M190="","",様式３!M190) -> 0 | O171: =IF(様式３!N190="","",様式３!N190) -> 0 | P171: =IF(様式３!O190="","",様式３!O190) -> 
A172: 2 | B172: =IF(E172="","",B171+1) ->  | C172: =IF(様式３!B191="","",様式３!B191) ->  | D172: =IF(様式３!C191="","",様式３!C191) ->  | E172: =IF(様式３!D191="","",様式３!D191) ->  | F172: =IF(様式３!E191="","",様式３!E191) ->  | G172: =IF(様式３!F191="","",様式３!F191) -> ・ | H172: =IF(様式３!G191="","",様式３!G191) ->  | I172: =IF(様式３!H191="","",様式３!H191) -> ・ | J172: =IF(様式３!I191="","",様式３!I191) ->  | K172: =IF(様式３!J191="","",様式３!J191) -> 0 | L172: =IF(様式３!K191="","",様式３!K191) -> 0 | M172: =IF(様式３!L191="","",様式３!L191) -> 0 | N172: =IF(様式３!M191="","",様式３!M191) -> 0 | O172: =IF(様式３!N191="","",様式３!N191) -> 0 | P172: =IF(様式３!O191="","",様式３!O191) -> 
A173: 3 | C173: =IF(様式３!B192="","",様式３!B192) ->  | D173: =IF(様式３!C192="","",様式３!C192) ->  | E173: =IF(様式３!D192="","",様式３!D192) ->  | F173: =IF(様式３!E192="","",様式３!E192) ->  | G173: =IF(様式３!F192="","",様式３!F192) -> ・ | H173: =IF(様式３!G192="","",様式３!G192) ->  | I173: =IF(様式３!H192="","",様式３!H192) -> ・ | J173: =IF(様式３!I192="","",様式３!I192) ->  | K173: =IF(様式３!J192="","",様式３!J192) -> 0 | L173: =IF(様式３!K192="","",様式３!K192) -> 0 | M173: =IF(様式３!L192="","",様式３!L192) -> 0 | N173: =IF(様式３!M192="","",様式３!M192) -> 0 | O173: =IF(様式３!N192="","",様式３!N192) -> 0 | P173: =IF(様式３!O192="","",様式３!O192) -> 
A174: 4 | C174: =IF(様式３!B193="","",様式３!B193) ->  | D174: =IF(様式３!C193="","",様式３!C193) ->  | E174: =IF(様式３!D193="","",様式３!D193) ->  | F174: =IF(様式３!E193="","",様式３!E193) ->  | G174: =IF(様式３!F193="","",様式３!F193) -> ・ | H174: =IF(様式３!G193="","",様式３!G193) ->  | I174: =IF(様式３!H193="","",様式３!H193) -> ・ | J174: =IF(様式３!I193="","",様式３!I193) ->  | K174: =IF(様式３!J193="","",様式３!J193) -> 0 | L174: =IF(様式３!K193="","",様式３!K193) -> 0 | M174: =IF(様式３!L193="","",様式３!L193) -> 0 | N174: =IF(様式３!M193="","",様式３!M193) -> 0 | O174: =IF(様式３!N193="","",様式３!N193) -> 0 | P174: =IF(様式３!O193="","",様式３!O193) -> 
A175: 5 | C175: =IF(様式３!B194="","",様式３!B194) ->  | D175: =IF(様式３!C194="","",様式３!C194) ->  | E175: =IF(様式３!D194="","",様式３!D194) ->  | F175: =IF(様式３!E194="","",様式３!E194) ->  | G175: =IF(様式３!F194="","",様式３!F194) -> ・ | H175: =IF(様式３!G194="","",様式３!G194) ->  | I175: =IF(様式３!H194="","",様式３!H194) -> ・ | J175: =IF(様式３!I194="","",様式３!I194) ->  | K175: =IF(様式３!J194="","",様式３!J194) -> 0 | L175: =IF(様式３!K194="","",様式３!K194) -> 0 | M175: =IF(様式３!L194="","",様式３!L194) -> 0 | N175: =IF(様式３!M194="","",様式３!M194) -> 0 | O175: =IF(様式３!N194="","",様式３!N194) -> 0 | P175: =IF(様式３!O194="","",様式３!O194) -> 
A176: 6 | C176: =IF(様式３!B195="","",様式３!B195) ->  | D176: =IF(様式３!C195="","",様式３!C195) ->  | E176: =IF(様式３!D195="","",様式３!D195) ->  | F176: =IF(様式３!E195="","",様式３!E195) ->  | G176: =IF(様式３!F195="","",様式３!F195) -> ・ | H176: =IF(様式３!G195="","",様式３!G195) ->  | I176: =IF(様式３!H195="","",様式３!H195) -> ・ | J176: =IF(様式３!I195="","",様式３!I195) ->  | K176: =IF(様式３!J195="","",様式３!J195) -> 0 | L176: =IF(様式３!K195="","",様式３!K195) -> 0 | M176: =IF(様式３!L195="","",様式３!L195) -> 0 | N176: =IF(様式３!M195="","",様式３!M195) -> 0 | O176: =IF(様式３!N195="","",様式３!N195) -> 0 | P176: =IF(様式３!O195="","",様式３!O195) -> 
A177: 7 | C177: =IF(様式３!B196="","",様式３!B196) ->  | D177: =IF(様式３!C196="","",様式３!C196) ->  | E177: =IF(様式３!D196="","",様式３!D196) ->  | F177: =IF(様式３!E196="","",様式３!E196) ->  | G177: =IF(様式３!F196="","",様式３!F196) -> ・ | H177: =IF(様式３!G196="","",様式３!G196) ->  | I177: =IF(様式３!H196="","",様式３!H196) -> ・ | J177: =IF(様式３!I196="","",様式３!I196) ->  | K177: =IF(様式３!J196="","",様式３!J196) -> 0 | L177: =IF(様式３!K196="","",様式３!K196) -> 0 | M177: =IF(様式３!L196="","",様式３!L196) -> 0 | N177: =IF(様式３!M196="","",様式３!M196) -> 0 | O177: =IF(様式３!N196="","",様式３!N196) -> 0 | P177: =IF(様式３!O196="","",様式３!O196) -> 
A178: 8 | C178: =IF(様式３!B197="","",様式３!B197) ->  | D178: =IF(様式３!C197="","",様式３!C197) ->  | E178: =IF(様式３!D197="","",様式３!D197) ->  | F178: =IF(様式３!E197="","",様式３!E197) ->  | G178: =IF(様式３!F197="","",様式３!F197) -> ・ | H178: =IF(様式３!G197="","",様式３!G197) ->  | I178: =IF(様式３!H197="","",様式３!H197) -> ・ | J178: =IF(様式３!I197="","",様式３!I197) ->  | K178: =IF(様式３!J197="","",様式３!J197) -> 0 | L178: =IF(様式３!K197="","",様式３!K197) -> 0 | M178: =IF(様式３!L197="","",様式３!L197) -> 0 | N178: =IF(様式３!M197="","",様式３!M197) -> 0 | O178: =IF(様式３!N197="","",様式３!N197) -> 0 | P178: =IF(様式３!O197="","",様式３!O197) -> 
A179: 9 | C179: =IF(様式３!B198="","",様式３!B198) ->  | D179: =IF(様式３!C198="","",様式３!C198) ->  | E179: =IF(様式３!D198="","",様式３!D198) ->  | F179: =IF(様式３!E198="","",様式３!E198) ->  | G179: =IF(様式３!F198="","",様式３!F198) -> ・ | H179: =IF(様式３!G198="","",様式３!G198) ->  | I179: =IF(様式３!H198="","",様式３!H198) -> ・ | J179: =IF(様式３!I198="","",様式３!I198) ->  | K179: =IF(様式３!J198="","",様式３!J198) -> 0 | L179: =IF(様式３!K198="","",様式３!K198) -> 0 | M179: =IF(様式３!L198="","",様式３!L198) -> 0 | N179: =IF(様式３!M198="","",様式３!M198) -> 0 | O179: =IF(様式３!N198="","",様式３!N198) -> 0 | P179: =IF(様式３!O198="","",様式３!O198) -> 
A180: 10 | C180: =IF(様式３!B199="","",様式３!B199) ->  | D180: =IF(様式３!C199="","",様式３!C199) ->  | E180: =IF(様式３!D199="","",様式３!D199) ->  | F180: =IF(様式３!E199="","",様式３!E199) ->  | G180: =IF(様式３!F199="","",様式３!F199) -> ・ | H180: =IF(様式３!G199="","",様式３!G199) ->  | I180: =IF(様式３!H199="","",様式３!H199) -> ・ | J180: =IF(様式３!I199="","",様式３!I199) ->  | K180: =IF(様式３!J199="","",様式３!J199) -> 0 | L180: =IF(様式３!K199="","",様式３!K199) -> 0 | M180: =IF(様式３!L199="","",様式３!L199) -> 0 | N180: =IF(様式３!M199="","",様式３!M199) -> 0 | O180: =IF(様式３!N199="","",様式３!N199) -> 0 | P180: =IF(様式３!O199="","",様式３!O199) -> 
A181: 11 | C181: =IF(様式３!B200="","",様式３!B200) ->  | D181: =IF(様式３!C200="","",様式３!C200) ->  | E181: =IF(様式３!D200="","",様式３!D200) ->  | F181: =IF(様式３!E200="","",様式３!E200) ->  | G181: =IF(様式３!F200="","",様式３!F200) -> ・ | H181: =IF(様式３!G200="","",様式３!G200) ->  | I181: =IF(様式３!H200="","",様式３!H200) -> ・ | J181: =IF(様式３!I200="","",様式３!I200) ->  | K181: =IF(様式３!J200="","",様式３!J200) -> 0 | L181: =IF(様式３!K200="","",様式３!K200) -> 0 | M181: =IF(様式３!L200="","",様式３!L200) -> 0 | N181: =IF(様式３!M200="","",様式３!M200) -> 0 | O181: =IF(様式３!N200="","",様式３!N200) -> 0 | P181: =IF(様式３!O200="","",様式３!O200) -> 
A182: 12 | C182: =IF(様式３!B201="","",様式３!B201) ->  | D182: =IF(様式３!C201="","",様式３!C201) ->  | E182: =IF(様式３!D201="","",様式３!D201) ->  | F182: =IF(様式３!E201="","",様式３!E201) ->  | G182: =IF(様式３!F201="","",様式３!F201) -> ・ | H182: =IF(様式３!G201="","",様式３!G201) ->  | I182: =IF(様式３!H201="","",様式３!H201) -> ・ | J182: =IF(様式３!I201="","",様式３!I201) ->  | K182: =IF(様式３!J201="","",様式３!J201) -> 0 | L182: =IF(様式３!K201="","",様式３!K201) -> 0 | M182: =IF(様式３!L201="","",様式３!L201) -> 0 | N182: =IF(様式３!M201="","",様式３!M201) -> 0 | O182: =IF(様式３!N201="","",様式３!N201) -> 0 | P182: =IF(様式３!O201="","",様式３!O201) -> 
A183: 13 | C183: =IF(様式３!B202="","",様式３!B202) ->  | D183: =IF(様式３!C202="","",様式３!C202) ->  | E183: =IF(様式３!D202="","",様式３!D202) ->  | F183: =IF(様式３!E202="","",様式３!E202) ->  | G183: =IF(様式３!F202="","",様式３!F202) -> ・ | H183: =IF(様式３!G202="","",様式３!G202) ->  | I183: =IF(様式３!H202="","",様式３!H202) -> ・ | J183: =IF(様式３!I202="","",様式３!I202) ->  | K183: =IF(様式３!J202="","",様式３!J202) -> 0 | L183: =IF(様式３!K202="","",様式３!K202) -> 0 | M183: =IF(様式３!L202="","",様式３!L202) -> 0 | N183: =IF(様式３!M202="","",様式３!M202) -> 0 | O183: =IF(様式３!N202="","",様式３!N202) -> 0 | P183: =IF(様式３!O202="","",様式３!O202) -> 
A184: 14 | C184: =IF(様式３!B203="","",様式３!B203) ->  | D184: =IF(様式３!C203="","",様式３!C203) ->  | E184: =IF(様式３!D203="","",様式３!D203) ->  | F184: =IF(様式３!E203="","",様式３!E203) ->  | G184: =IF(様式３!F203="","",様式３!F203) -> ・ | H184: =IF(様式３!G203="","",様式３!G203) ->  | I184: =IF(様式３!H203="","",様式３!H203) -> ・ | J184: =IF(様式３!I203="","",様式３!I203) ->  | K184: =IF(様式３!J203="","",様式３!J203) -> 0 | L184: =IF(様式３!K203="","",様式３!K203) -> 0 | M184: =IF(様式３!L203="","",様式３!L203) -> 0 | N184: =IF(様式３!M203="","",様式３!M203) -> 0 | O184: =IF(様式３!N203="","",様式３!N203) -> 0 | P184: =IF(様式３!O203="","",様式３!O203) -> 
A185: 15 | C185: =IF(様式３!B204="","",様式３!B204) ->  | D185: =IF(様式３!C204="","",様式３!C204) ->  | E185: =IF(様式３!D204="","",様式３!D204) ->  | F185: =IF(様式３!E204="","",様式３!E204) ->  | G185: =IF(様式３!F204="","",様式３!F204) -> ・ | H185: =IF(様式３!G204="","",様式３!G204) ->  | I185: =IF(様式３!H204="","",様式３!H204) -> ・ | J185: =IF(様式３!I204="","",様式３!I204) ->  | K185: =IF(様式３!J204="","",様式３!J204) -> 0 | L185: =IF(様式３!K204="","",様式３!K204) -> 0 | M185: =IF(様式３!L204="","",様式３!L204) -> 0 | N185: =IF(様式３!M204="","",様式３!M204) -> 0 | O185: =IF(様式３!N204="","",様式３!N204) -> 0 | P185: =IF(様式３!O204="","",様式３!O204) -> 
B186: =B24 -> ※１ 学科の欄には、大学科名を記入する。
B187: =B25 -> ※２ 資格・試験等ランクの欄には、取得個数を記入する。
B188: =B26 -> ※３ 得点合計欄には、得点の合計を記入する。
B190: （様式６） | H190: （令和 | J190: =+J163 -> 0 | K190: 年度 | M190: =+M163 -> 0 | N190: 枚中 | O190: =+O163+1 -> 8 | P190: 枚目）
B192: 埼玉県高校生専門資格等取得表彰証書発行台帳
F193: 学 校 名 | I193: =+I166 -> 0 | O193: 学校
F194: 発行年月日 令和 | K194: =+K167 -> 0 | L194: 年 | M194: =+M167 -> 0 | N194: 月 | O194: =+O167 -> 0 | P194: 日
B195: 発行番号 | C195: 学年 | D195: 学科 | E195: 整理番号 | F195: 生 年 月 日 | K195: 資格・試験等ﾗﾝｸ | O195: 得点 合計 | P195: 備考
K196: A | L196: B | M196: C | N196: D
K197: 6 | L197: 3 | M197: 2 | N197: 1
A198: 1 | B198: =IF(E198="","",B185+1) ->  | C198: =IF(様式３!B220="","",様式３!B220) ->  | D198: =IF(様式３!C220="","",様式３!C220) ->  | E198: =IF(様式３!D220="","",様式３!D220) ->  | F198: =IF(様式３!E220="","",様式３!E220) ->  | G198: =IF(様式３!F220="","",様式３!F220) -> ・ | H198: =IF(様式３!G220="","",様式３!G220) ->  | I198: =IF(様式３!H220="","",様式３!H220) -> ・ | J198: =IF(様式３!I220="","",様式３!I220) ->  | K198: =IF(様式３!J220="","",様式３!J220) -> 0 | L198: =IF(様式３!K220="","",様式３!K220) -> 0 | M198: =IF(様式３!L220="","",様式３!L220) -> 0 | N198: =IF(様式３!M220="","",様式３!M220) -> 0 | O198: =IF(様式３!N220="","",様式３!N220) -> 0 | P198: =IF(様式３!O220="","",様式３!O220) -> 
A199: 2 | B199: =IF(E199="","",B198+1) ->  | C199: =IF(様式３!B221="","",様式３!B221) ->  | D199: =IF(様式３!C221="","",様式３!C221) ->  | E199: =IF(様式３!D221="","",様式３!D221) ->  | F199: =IF(様式３!E221="","",様式３!E221) ->  | G199: =IF(様式３!F221="","",様式３!F221) -> ・ | H199: =IF(様式３!G221="","",様式３!G221) ->  | I199: =IF(様式３!H221="","",様式３!H221) -> ・ | J199: =IF(様式３!I221="","",様式３!I221) ->  | K199: =IF(様式３!J221="","",様式３!J221) -> 0 | L199: =IF(様式３!K221="","",様式３!K221) -> 0 | M199: =IF(様式３!L221="","",様式３!L221) -> 0 | N199: =IF(様式３!M221="","",様式３!M221) -> 0 | O199: =IF(様式３!N221="","",様式３!N221) -> 0 | P199: =IF(様式３!O221="","",様式３!O221) -> 
A200: 3 | C200: =IF(様式３!B222="","",様式３!B222) ->  | D200: =IF(様式３!C222="","",様式３!C222) ->  | E200: =IF(様式３!D222="","",様式３!D222) ->  | F200: =IF(様式３!E222="","",様式３!E222) ->  | G200: =IF(様式３!F222="","",様式３!F222) -> ・ | H200: =IF(様式３!G222="","",様式３!G222) ->  | I200: =IF(様式３!H222="","",様式３!H222) -> ・ | J200: =IF(様式３!I222="","",様式３!I222) ->  | K200: =IF(様式３!J222="","",様式３!J222) -> 0 | L200: =IF(様式３!K222="","",様式３!K222) -> 0 | M200: =IF(様式３!L222="","",様式３!L222) -> 0 | N200: =IF(様式３!M222="","",様式３!M222) -> 0 | O200: =IF(様式３!N222="","",様式３!N222) -> 0 | P200: =IF(様式３!O222="","",様式３!O222) -> 
A201: 4 | C201: =IF(様式３!B223="","",様式３!B223) ->  | D201: =IF(様式３!C223="","",様式３!C223) ->  | E201: =IF(様式３!D223="","",様式３!D223) ->  | F201: =IF(様式３!E223="","",様式３!E223) ->  | G201: =IF(様式３!F223="","",様式３!F223) -> ・ | H201: =IF(様式３!G223="","",様式３!G223) ->  | I201: =IF(様式３!H223="","",様式３!H223) -> ・ | J201: =IF(様式３!I223="","",様式３!I223) ->  | K201: =IF(様式３!J223="","",様式３!J223) -> 0 | L201: =IF(様式３!K223="","",様式３!K223) -> 0 | M201: =IF(様式３!L223="","",様式３!L223) -> 0 | N201: =IF(様式３!M223="","",様式３!M223) -> 0 | O201: =IF(様式３!N223="","",様式３!N223) -> 0 | P201: =IF(様式３!O223="","",様式３!O223) -> 
A202: 5 | C202: =IF(様式３!B224="","",様式３!B224) ->  | D202: =IF(様式３!C224="","",様式３!C224) ->  | E202: =IF(様式３!D224="","",様式３!D224) ->  | F202: =IF(様式３!E224="","",様式３!E224) ->  | G202: =IF(様式３!F224="","",様式３!F224) -> ・ | H202: =IF(様式３!G224="","",様式３!G224) ->  | I202: =IF(様式３!H224="","",様式３!H224) -> ・ | J202: =IF(様式３!I224="","",様式３!I224) ->  | K202: =IF(様式３!J224="","",様式３!J224) -> 0 | L202: =IF(様式３!K224="","",様式３!K224) -> 0 | M202: =IF(様式３!L224="","",様式３!L224) -> 0 | N202: =IF(様式３!M224="","",様式３!M224) -> 0 | O202: =IF(様式３!N224="","",様式３!N224) -> 0 | P202: =IF(様式３!O224="","",様式３!O224) -> 
A203: 6 | C203: =IF(様式３!B225="","",様式３!B225) ->  | D203: =IF(様式３!C225="","",様式３!C225) ->  | E203: =IF(様式３!D225="","",様式３!D225) ->  | F203: =IF(様式３!E225="","",様式３!E225) ->  | G203: =IF(様式３!F225="","",様式３!F225) -> ・ | H203: =IF(様式３!G225="","",様式３!G225) ->  | I203: =IF(様式３!H225="","",様式３!H225) -> ・ | J203: =IF(様式３!I225="","",様式３!I225) ->  | K203: =IF(様式３!J225="","",様式３!J225) -> 0 | L203: =IF(様式３!K225="","",様式３!K225) -> 0 | M203: =IF(様式３!L225="","",様式３!L225) -> 0 | N203: =IF(様式３!M225="","",様式３!M225) -> 0 | O203: =IF(様式３!N225="","",様式３!N225) -> 0 | P203: =IF(様式３!O225="","",様式３!O225) -> 
A204: 7 | C204: =IF(様式３!B226="","",様式３!B226) ->  | D204: =IF(様式３!C226="","",様式３!C226) ->  | E204: =IF(様式３!D226="","",様式３!D226) ->  | F204: =IF(様式３!E226="","",様式３!E226) ->  | G204: =IF(様式３!F226="","",様式３!F226) -> ・ | H204: =IF(様式３!G226="","",様式３!G226) ->  | I204: =IF(様式３!H226="","",様式３!H226) -> ・ | J204: =IF(様式３!I226="","",様式３!I226) ->  | K204: =IF(様式３!J226="","",様式３!J226) -> 0 | L204: =IF(様式３!K226="","",様式３!K226) -> 0 | M204: =IF(様式３!L226="","",様式３!L226) -> 0 | N204: =IF(様式３!M226="","",様式３!M226) -> 0 | O204: =IF(様式３!N226="","",様式３!N226) -> 0 | P204: =IF(様式３!O226="","",様式３!O226) -> 
A205: 8 | C205: =IF(様式３!B227="","",様式３!B227) ->  | D205: =IF(様式３!C227="","",様式３!C227) ->  | E205: =IF(様式３!D227="","",様式３!D227) ->  | F205: =IF(様式３!E227="","",様式３!E227) ->  | G205: =IF(様式３!F227="","",様式３!F227) -> ・ | H205: =IF(様式３!G227="","",様式３!G227) ->  | I205: =IF(様式３!H227="","",様式３!H227) -> ・ | J205: =IF(様式３!I227="","",様式３!I227) ->  | K205: =IF(様式３!J227="","",様式３!J227) -> 0 | L205: =IF(様式３!K227="","",様式３!K227) -> 0 | M205: =IF(様式３!L227="","",様式３!L227) -> 0 | N205: =IF(様式３!M227="","",様式３!M227) -> 0 | O205: =IF(様式３!N227="","",様式３!N227) -> 0 | P205: =IF(様式３!O227="","",様式３!O227) -> 
A206: 9 | C206: =IF(様式３!B228="","",様式３!B228) ->  | D206: =IF(様式３!C228="","",様式３!C228) ->  | E206: =IF(様式３!D228="","",様式３!D228) ->  | F206: =IF(様式３!E228="","",様式３!E228) ->  | G206: =IF(様式３!F228="","",様式３!F228) -> ・ | H206: =IF(様式３!G228="","",様式３!G228) ->  | I206: =IF(様式３!H228="","",様式３!H228) -> ・ | J206: =IF(様式３!I228="","",様式３!I228) ->  | K206: =IF(様式３!J228="","",様式３!J228) -> 0 | L206: =IF(様式３!K228="","",様式３!K228) -> 0 | M206: =IF(様式３!L228="","",様式３!L228) -> 0 | N206: =IF(様式３!M228="","",様式３!M228) -> 0 | O206: =IF(様式３!N228="","",様式３!N228) -> 0 | P206: =IF(様式３!O228="","",様式３!O228) -> 
A207: 10 | C207: =IF(様式３!B229="","",様式３!B229) ->  | D207: =IF(様式３!C229="","",様式３!C229) ->  | E207: =IF(様式３!D229="","",様式３!D229) ->  | F207: =IF(様式３!E229="","",様式３!E229) ->  | G207: =IF(様式３!F229="","",様式３!F229) -> ・ | H207: =IF(様式３!G229="","",様式３!G229) ->  | I207: =IF(様式３!H229="","",様式３!H229) -> ・ | J207: =IF(様式３!I229="","",様式３!I229) ->  | K207: =IF(様式３!J229="","",様式３!J229) -> 0 | L207: =IF(様式３!K229="","",様式３!K229) -> 0 | M207: =IF(様式３!L229="","",様式３!L229) -> 0 | N207: =IF(様式３!M229="","",様式３!M229) -> 0 | O207: =IF(様式３!N229="","",様式３!N229) -> 0 | P207: =IF(様式３!O229="","",様式３!O229) -> 
A208: 11 | C208: =IF(様式３!B230="","",様式３!B230) ->  | D208: =IF(様式３!C230="","",様式３!C230) ->  | E208: =IF(様式３!D230="","",様式３!D230) ->  | F208: =IF(様式３!E230="","",様式３!E230) ->  | G208: =IF(様式３!F230="","",様式３!F230) -> ・ | H208: =IF(様式３!G230="","",様式３!G230) ->  | I208: =IF(様式３!H230="","",様式３!H230) -> ・ | J208: =IF(様式３!I230="","",様式３!I230) ->  | K208: =IF(様式３!J230="","",様式３!J230) -> 0 | L208: =IF(様式３!K230="","",様式３!K230) -> 0 | M208: =IF(様式３!L230="","",様式３!L230) -> 0 | N208: =IF(様式３!M230="","",様式３!M230) -> 0 | O208: =IF(様式３!N230="","",様式３!N230) -> 0 | P208: =IF(様式３!O230="","",様式３!O230) -> 
A209: 12 | C209: =IF(様式３!B231="","",様式３!B231) ->  | D209: =IF(様式３!C231="","",様式３!C231) ->  | E209: =IF(様式３!D231="","",様式３!D231) ->  | F209: =IF(様式３!E231="","",様式３!E231) ->  | G209: =IF(様式３!F231="","",様式３!F231) -> ・ | H209: =IF(様式３!G231="","",様式３!G231) ->  | I209: =IF(様式３!H231="","",様式３!H231) -> ・ | J209: =IF(様式３!I231="","",様式３!I231) ->  | K209: =IF(様式３!J231="","",様式３!J231) -> 0 | L209: =IF(様式３!K231="","",様式３!K231) -> 0 | M209: =IF(様式３!L231="","",様式３!L231) -> 0 | N209: =IF(様式３!M231="","",様式３!M231) -> 0 | O209: =IF(様式３!N231="","",様式３!N231) -> 0 | P209: =IF(様式３!O231="","",様式３!O231) -> 
A210: 13 | C210: =IF(様式３!B232="","",様式３!B232) ->  | D210: =IF(様式３!C232="","",様式３!C232) ->  | E210: =IF(様式３!D232="","",様式３!D232) ->  | F210: =IF(様式３!E232="","",様式３!E232) ->  | G210: =IF(様式３!F232="","",様式３!F232) -> ・ | H210: =IF(様式３!G232="","",様式３!G232) ->  | I210: =IF(様式３!H232="","",様式３!H232) -> ・ | J210: =IF(様式３!I232="","",様式３!I232) ->  | K210: =IF(様式３!J232="","",様式３!J232) -> 0 | L210: =IF(様式３!K232="","",様式３!K232) -> 0 | M210: =IF(様式３!L232="","",様式３!L232) -> 0 | N210: =IF(様式３!M232="","",様式３!M232) -> 0 | O210: =IF(様式３!N232="","",様式３!N232) -> 0 | P210: =IF(様式３!O232="","",様式３!O232) -> 
A211: 14 | C211: =IF(様式３!B233="","",様式３!B233) ->  | D211: =IF(様式３!C233="","",様式３!C233) ->  | E211: =IF(様式３!D233="","",様式３!D233) ->  | F211: =IF(様式３!E233="","",様式３!E233) ->  | G211: =IF(様式３!F233="","",様式３!F233) -> ・ | H211: =IF(様式３!G233="","",様式３!G233) ->  | I211: =IF(様式３!H233="","",様式３!H233) -> ・ | J211: =IF(様式３!I233="","",様式３!I233) ->  | K211: =IF(様式３!J233="","",様式３!J233) -> 0 | L211: =IF(様式３!K233="","",様式３!K233) -> 0 | M211: =IF(様式３!L233="","",様式３!L233) -> 0 | N211: =IF(様式３!M233="","",様式３!M233) -> 0 | O211: =IF(様式３!N233="","",様式３!N233) -> 0 | P211: =IF(様式３!O233="","",様式３!O233) -> 
A212: 15 | C212: =IF(様式３!B234="","",様式３!B234) ->  | D212: =IF(様式３!C234="","",様式３!C234) ->  | E212: =IF(様式３!D234="","",様式３!D234) ->  | F212: =IF(様式３!E234="","",様式３!E234) ->  | G212: =IF(様式３!F234="","",様式３!F234) -> ・ | H212: =IF(様式３!G234="","",様式３!G234) ->  | I212: =IF(様式３!H234="","",様式３!H234) -> ・ | J212: =IF(様式３!I234="","",様式３!I234) ->  | K212: =IF(様式３!J234="","",様式３!J234) -> 0 | L212: =IF(様式３!K234="","",様式３!K234) -> 0 | M212: =IF(様式３!L234="","",様式３!L234) -> 0 | N212: =IF(様式３!M234="","",様式３!M234) -> 0 | O212: =IF(様式３!N234="","",様式３!N234) -> 0 | P212: =IF(様式３!O234="","",様式３!O234) -> 
B213: =B24 -> ※１ 学科の欄には、大学科名を記入する。
B214: =B25 -> ※２ 資格・試験等ランクの欄には、取得個数を記入する。
B215: =B26 -> ※３ 得点合計欄には、得点の合計を記入する。
... 200 more rows
